Workbook

Sheet ①借入条件表
E1: 株式会社 ○○○○ 銀行別借入条件表 (令和○年〇月～令和○年〇月)
CL3: <単位：円>
E4: 金融機関名 | L4: 保全状況 | Q4: 借入期間（月） | W4: 当初借入額 | AD4: 残高シェア | AH4: 約定返済額/月 | AN4: 金利 | AR4: 金利 | AV4: 資金使途 | AZ4: 具体的使途 | BF4: 担保 | BK4: 保証 | BO4: 普通 | BU4: 定期 | CA4: 合計 | CG4: その他
L5: (ﾌﾟ、協) | Q5: 借入期間（年） | W5: 令和 | X5: 4 | Y5: 年 | Z5: 5 | AA5: 月末 | AC5: 残高 | AH5: 約定返済額/年 | BO5: 普:預貸率 | BU5: 定:預貸率 | CA5: 合:預貸率
A6: =W6 -> 10000000 | B6: =W7 -> 8000000 | C6: =AH6 -> 167000 | D6: =AH7 -> 2004000 | E6: Ａ銀行 | L6: プロパー | Q6: 60 | W6: 10000000 | AH6: 167000 | AN6: 0.015 | CR6: =IF(L6="データなし","〇","") -> 
Q7: 5 | W7: 8000000 | AD7: =W7/$W$133 -> 0.347826087 | AH7: =AH6*12 -> 2004000 | AV7: - | CR7: =CR6 -> 
A8: =W8 -> 30000000 | B8: =W9 -> 15000000 | C8: =AH8 -> 500000 | D8: =AH9 -> 6000000 | L8: 協会 | Q8: 60 | W8: 30000000 | AH8: 500000 | AN8: 0.012 | CR8: =IF(L8="データなし","〇","") -> 
Q9: 5 | W9: 15000000 | AD9: =W9/$W$133 -> 0.652173913 | AH9: =AH8*12 -> 6000000 | AV9: - | CR9: =CR8 -> 
A10: =W10 -> 0 | B10: =W11 -> 0 | C10: =AH10 -> 0 | D10: =AH11 -> 0 | L10: データなし | CR10: =IF(L10="データなし","〇","") -> 〇
AD11: =W11/$W$133 -> 0 | AH11: 0 | AV11: - | CR11: =CR10 -> 〇
A12: =W12 -> 0 | B12: =W13 -> 0 | C12: =AH12 -> 0 | D12: =AH13 -> 0 | L12: データなし | CR12: =IF(L12="データなし","〇","") -> 〇
AD13: =W13/$W$133 -> 0 | AH13: =AH12*12 -> 0 | AV13: - | CR13: =CR12 -> 〇
A14: =W14 -> 0 | B14: =W15 -> 0 | C14: =AH14 -> 0 | D14: =AH15 -> 0 | L14: データなし | CR14: =IF(L14="データなし","〇","") -> 〇
AD15: =W15/$W$133 -> 0 | AH15: =AH14*12 -> 0 | AV15: - | CR15: =CR14 -> 〇
L16: プロパー計 | W16: =SUMIF($L6:$P15,"プロパー",A6:A15) -> 10000000 | AH16: =SUMIF($L6:$P15,"プロパー",C6:C15) -> 167000 | AN16: =SUMIF($L6:$P15,"プロパー",AN6:AQ15)/COUNTIF($L6:$P15,"プロパー") -> 0.015 | AR16: =SUMIF($L6:$P15,"プロパー",AR6:AU15)/COUNTIF($L6:$P15,"プロパー") -> 0 | CR16: =IF(W17>0,"","〇") -> 
W17: =SUMIF($L6:$P15,"プロパー",B6:B15) -> 8000000 | AD17: =W17/$W$133 -> 0.347826087 | AH17: =SUMIF($L6:$P15,"プロパー",D6:D15) -> 2004000 | AV17: - | CR17: =CR16 -> 
L18: 保証協会計 | W18: =SUMIF($L6:$P15,"協会",A6:A15) -> 30000000 | AH18: =SUMIF($L6:$P15,"協会",C6:C15) -> 500000 | AN18: =SUMIF($L6:$P15,"協会",AN6:AQ15)/COUNTIF($L6:$P15,"協会") -> 0.012 | AR18: =SUMIF($L6:$P15,"協会",AR6:AU15)/COUNTIF($L6:$P15,"協会") -> 0 | CR18: =IF(W19>0,"","〇") -> 
W19: =SUMIF($L6:$P15,"協会",B6:B15) -> 15000000 | AD19: =W19/$W$133 -> 0.652173913 | AH19: =SUMIF($L6:$P15,"協会",D6:D15) -> 6000000 | AV19: - | CR19: =CR18 -> 
L20: 小計 | W20: =W16+W18 -> 40000000 | AH20: =AH18+AH16 -> 667000 | AN20: =(AN16+AN18)/2 -> 0.0135 | AR20: =(AR16+AR18)/2 -> 0 | CA20: =SUM(BO20:BZ20) -> 0 | CR20: =IF(W21>0,"","〇") -> 
W21: =W17+W19 -> 23000000 | AD21: =W21/$W$133 -> 1 | AH21: =AH19+AH17 -> 8004000 | AV21: - | BO21: =BO20/$W$21 -> 0 | BU21: =BU20/$W$21 -> 0 | CA21: =CA20/W21 -> 0 | CR21: =CR20 -> 
A22: =W22 -> 0 | B22: =W23 -> 0 | C22: =AH22 -> 0 | D22: =AH23 -> 0 | E22: Ｂ銀行 | L22: データなし | CR22: =IF(L22="データなし","〇","") -> 〇
AD23: =W23/$W$133 -> 0 | AH23: =AH22*12 -> 0 | AV23: - | CR23: =CR22 -> 〇
A24: =W24 -> 0 | B24: =W25 -> 0 | C24: =AH24 -> 0 | D24: =AH25 -> 0 | L24: データなし | CR24: 〇
AD25: =W25/$W$133 -> 0 | AH25: =AH24*12 -> 0 | AV25: - | CR25: =CR24 -> 〇
A26: =W26 -> 0 | B26: =W27 -> 0 | C26: =AH26 -> 0 | D26: =AH27 -> 0 | L26: データなし | CR26: 〇
AD27: =W27/$W$133 -> 0 | AH27: =AH26*12 -> 0 | AV27: - | CR27: =CR26 -> 〇
A28: =W28 -> 0 | B28: =W29 -> 0 | C28: =AH28 -> 0 | D28: =AH29 -> 0 | L28: データなし | CR28: 〇
AD29: =W29/$W$133 -> 0 | AH29: =AH28*12 -> 0 | AV29: - | CR29: =CR28 -> 〇
A30: =W30 -> 0 | B30: =W31 -> 0 | C30: =AH30 -> 0 | D30: =AH31 -> 0 | L30: データなし | CR30: 〇
AD31: =W31/$W$133 -> 0 | AH31: =AH30*12 -> 0 | AV31: - | CR31: =CR30 -> 〇
L32: プロパー計 | W32: =SUMIF($L22:$P31,"プロパー",A22:A31) -> 0 | AH32: =SUMIF($L22:$P31,"プロパー",C22:C31) -> 0 | AN32: =SUMIF(L22:P31,"プロパー",AN22:AQ31)/COUNTIF(L22:P31,"プロパー") ->  | AR32: =SUMIF(L22:P31,"プロパー",AR22:AU31)/COUNTIF(L22:P31,"プロパー") ->  | CR32: =IF(W33>0,"","〇") -> 〇
W33: =SUMIF($L22:$P31,"プロパー",B22:B31) -> 0 | AD33: =W33/$W$133 -> 0 | AH33: =SUMIF($L22:$P31,"プロパー",D22:D31) -> 0 | AV33: - | CR33: =CR32 -> 〇
L34: 保証協会計 | W34: =SUMIF($L22:$P31,"協会",A22:A31) -> 0 | AH34: =SUMIF($L22:$P31,"協会",C22:C31) -> 0 | AN34: =SUMIF(L22:P31,"協会",AN22:AQ31)/COUNTIF(L22:P31,"協会") ->  | AR34: =SUMIF(L22:P31,"協会",AR22:AU31)/COUNTIF(L22:P31,"協会") ->  | CR34: =IF(W35>0,"","〇") -> 〇
W35: =SUMIF($L22:$P31,"協会",B22:B31) -> 0 | AD35: =W35/$W$133 -> 0 | AH35: =SUMIF($L22:$P31,"協会",D22:D31) -> 0 | AV35: - | CR35: =CR34 -> 〇
L36: 小計 | W36: =W32+W34 -> 0 | AH36: =AH34+AH32 -> 0 | AN36: =(AN32+AN34)/2 ->  | AR36: =(AR32+AR34)/2 ->  | CA36: =SUM(BO36:BZ36) -> 0 | CR36: =IF(W37>0,"","〇") -> 〇
W37: =W33+W35 -> 0 | AD37: =W37/$W$133 -> 0 | AH37: =AH35+AH33 -> 0 | AV37: - | BO37: =BO36/$W$21 -> 0 | BU37: =BU36/$W$21 -> 0 | CA37: =CA36/W37 ->  | CR37: =CR36 -> 〇
A38: =W38 -> 0 | B38: =W39 -> 0 | C38: =AH38 -> 0 | D38: =AH39 -> 0 | L38: データなし | CR38: =IF(L38="データなし","〇","") -> 〇
AD39: =W39/$W$133 -> 0 | AH39: =AH38*12 -> 0 | AV39: - | CR39: =CR38 -> 〇
A40: =W40 -> 0 | B40: =W41 -> 0 | C40: =AH40 -> 0 | D40: =AH41 -> 0 | L40: データなし | CR40: 〇
AD41: =W41/$W$133 -> 0 | AH41: =AH40*12 -> 0 | AV41: - | CR41: =CR40 -> 〇
A42: =W42 -> 0 | B42: =W43 -> 0 | C42: =AH42 -> 0 | D42: =AH43 -> 0 | L42: データなし | CR42: 〇
AD43: =W43/$W$133 -> 0 | AH43: =AH42*12 -> 0 | AV43: - | CR43: =CR42 -> 〇
A44: =W44 -> 0 | B44: =W45 -> 0 | C44: =AH44 -> 0 | D44: =AH45 -> 0 | L44: データなし | CR44: 〇
AD45: =W45/$W$133 -> 0 | AH45: =AH44*12 -> 0 | AV45: - | CR45: =CR44 -> 〇
A46: =W46 -> 0 | B46: =W47 -> 0 | C46: =AH46 -> 0 | D46: =AH47 -> 0 | L46: データなし | CR46: 〇
AD47: =W47/$W$133 -> 0 | AH47: =AH46*12 -> 0 | AV47: - | CR47: =CR46 -> 〇
L48: プロパー計 | W48: =SUMIF($L38:$P47,"プロパー",A38:A47) -> 0 | AH48: =SUMIF($L38:$P47,"プロパー",C38:C47) -> 0 | AN48: =SUMIF(L38:P47,"プロパー",AN38:AQ47)/COUNTIF(L38:P47,"プロパー") ->  | AR48: =SUMIF(L38:P47,"プロパー",AR38:AU47)/COUNTIF(L38:P47,"プロパー") ->  | CR48: =IF(W49>0,"","〇") -> 〇
W49: =SUMIF($L38:$P47,"プロパー",B38:B47) -> 0 | AD49: =W49/$W$133 -> 0 | AH49: =SUMIF($L38:$P47,"プロパー",D38:D47) -> 0 | AV49: - | CR49: =CR48 -> 〇
L50: 保証協会計 | W50: =SUMIF($L38:$P47,"協会",A38:A47) -> 0 | AH50: =SUMIF($L38:$P47,"協会",C38:C47) -> 0 | AN50: =SUMIF(L38:P47,"協会",AN38:AQ47)/COUNTIF(L38:P47,"協会") ->  | AR50: =SUMIF(L38:P47,"協会",AR38:AU47)/COUNTIF(L38:P47,"協会") ->  | CR50: =IF(W51>0,"","〇") -> 〇
W51: =SUMIF($L38:$P47,"協会",B38:B47) -> 0 | AD51: =W51/$W$133 -> 0 | AH51: =SUMIF($L38:$P47,"協会",D38:D47) -> 0 | AV51: - | CR51: =CR50 -> 〇
L52: 小計 | W52: =W48+W50 -> 0 | AH52: =AH50+AH48 -> 0 | AN52: =(AN48+AN50)/2 ->  | AR52: =(AR48+AR50)/2 ->  | CA52: =SUM(BO52:BZ52) -> 0 | CR52: =IF(W53>0,"","〇") -> 〇
W53: =W49+W51 -> 0 | AD53: =W53/$W$133 -> 0 | AH53: =AH51+AH49 -> 0 | AV53: - | BO53: =BO52/$W$21 -> 0 | BU53: =BU52/$W$21 -> 0 | CA53: =CA52/W53 ->  | CR53: =CR52 -> 〇
A54: =W54 -> 0 | B54: =W55 -> 0 | C54: =AH54 -> 0 | D54: =AH55 -> 0 | L54: データなし | CR54: =IF(L54="データなし","〇","") -> 〇
AD55: =W55/$W$133 -> 0 | AH55: =AH54*12 -> 0 | AV55: - | CR55: =CR54 -> 〇
A56: =W56 -> 0 | B56: =W57 -> 0 | C56: =AH56 -> 0 | D56: =AH57 -> 0 | L56: データなし | CR56: 〇
AD57: =W57/$W$133 -> 0 | AH57: =AH56*12 -> 0 | AV57: - | CR57: =CR56 -> 〇
A58: =W58 -> 0 | B58: =W59 -> 0 | C58: =AH58 -> 0 | D58: =AH59 -> 0 | L58: データなし | CR58: 〇
AD59: =W59/$W$133 -> 0 | AH59: =AH58*12 -> 0 | AV59: - | CR59: =CR58 -> 〇
A60: =W60 -> 0 | B60: =W61 -> 0 | C60: =AH60 -> 0 | D60: =AH61 -> 0 | L60: データなし | CR60: 〇
AD61: =W61/$W$133 -> 0 | AH61: =AH60*12 -> 0 | AV61: - | CR61: =CR60 -> 〇
A62: =W62 -> 0 | B62: =W63 -> 0 | C62: =AH62 -> 0 | D62: =AH63 -> 0 | L62: データなし | CR62: 〇
AD63: =W63/$W$133 -> 0 | AH63: =AH62*12 -> 0 | AV63: - | CR63: =CR62 -> 〇
L64: プロパー計 | W64: =SUMIF($L54:$P63,"プロパー",A54:A63) -> 0 | AH64: =SUMIF($L54:$P63,"プロパー",C54:C63) -> 0 | AN64: =SUMIF(L54:P63,"プロパー",AN54:AQ63)/COUNTIF(L54:P63,"プロパー") ->  | AR64: =SUMIF(L54:P63,"プロパー",AR54:AU63)/COUNTIF(L54:P63,"プロパー") ->  | CR64: =IF(W65>0,"","〇") -> 〇
W65: =SUMIF($L54:$P63,"プロパー",B54:B63) -> 0 | AD65: =W65/$W$133 -> 0 | AH65: =SUMIF($L54:$P63,"プロパー",D54:D63) -> 0 | AV65: - | CR65: =CR64 -> 〇
L66: 保証協会計 | W66: =SUMIF($L54:$P63,"協会",A54:A63) -> 0 | AH66: =SUMIF($L54:$P63,"協会",C54:C63) -> 0 | AN66: =SUMIF(L54:P63,"協会",AN54:AQ63)/COUNTIF(L54:P63,"協会") ->  | AR66: =SUMIF(L54:P63,"協会",AR54:AU63)/COUNTIF(L54:P63,"協会") ->  | CR66: =IF(W67>0,"","〇") -> 〇
W67: =SUMIF($L54:$P63,"協会",B54:B63) -> 0 | AD67: =W67/$W$133 -> 0 | AH67: =SUMIF($L54:$P63,"協会",D54:D63) -> 0 | AV67: - | CR67: =CR66 -> 〇
L68: 小計 | W68: =W64+W66 -> 0 | AH68: =AH66+AH64 -> 0 | AN68: =(AN64+AN66)/2 ->  | AR68: =(AR64+AR66)/2 ->  | CA68: =SUM(BO68:BZ68) -> 0 | CR68: =IF(W69>0,"","〇") -> 〇
W69: =W65+W67 -> 0 | AD69: =W69/$W$133 -> 0 | AH69: =AH67+AH65 -> 0 | AV69: - | BO69: =BO68/$W$21 -> 0 | BU69: =BU68/$W$21 -> 0 | CA69: =CA68/W69 ->  | CR69: =CR68 -> 〇
A70: =W70 -> 0 | B70: =W71 -> 0 | C70: =AH70 -> 0 | D70: =AH71 -> 0 | L70: データなし | CR70: =IF(L70="データなし","〇","") -> 〇
AD71: =W71/$W$133 -> 0 | AH71: =AH70*12 -> 0 | AV71: - | CR71: =CR70 -> 〇
A72: =W72 -> 0 | B72: =W73 -> 0 | C72: =AH72 -> 0 | D72: =AH73 -> 0 | L72: データなし | CR72: 〇
AD73: =W73/$W$133 -> 0 | AH73: =AH72*12 -> 0 | AV73: - | CR73: =CR72 -> 〇
A74: =W74 -> 0 | B74: =W75 -> 0 | C74: =AH74 -> 0 | D74: =AH75 -> 0 | L74: データなし | CR74: 〇
AD75: =W75/$W$133 -> 0 | AH75: =AH74*12 -> 0 | AV75: - | CR75: =CR74 -> 〇
A76: =W76 -> 0 | B76: =W77 -> 0 | C76: =AH76 -> 0 | D76: =AH77 -> 0 | L76: データなし | CR76: 〇
AD77: =W77/$W$133 -> 0 | AH77: =AH76*12 -> 0 | AV77: - | CR77: =CR76 -> 〇
A78: =W78 -> 0 | B78: =W79 -> 0 | C78: =AH78 -> 0 | D78: =AH79 -> 0 | L78: データなし | CR78: 〇
AD79: =W79/$W$133 -> 0 | AH79: =AH78*12 -> 0 | AV79: - | CR79: =CR78 -> 〇
L80: プロパー計 | W80: =SUMIF($L70:$P79,"プロパー",A70:A79) -> 0 | AH80: =SUMIF($L70:$P79,"プロパー",C70:C79) -> 0 | AN80: =SUMIF(L70:P79,"プロパー",AN70:AQ79)/COUNTIF(L70:P79,"プロパー") ->  | AR80: =SUMIF(L70:P79,"プロパー",AR70:AU79)/COUNTIF(L70:P79,"プロパー") ->  | CR80: =IF(W81>0,"","〇") -> 〇
W81: =SUMIF($L70:$P79,"プロパー",B70:B79) -> 0 | AD81: =W81/$W$133 -> 0 | AH81: =SUMIF($L70:$P79,"プロパー",D70:D79) -> 0 | AV81: - | CR81: =CR80 -> 〇
L82: 保証協会計 | W82: =SUMIF($L70:$P79,"協会",A70:A79) -> 0 | AH82: =SUMIF($L70:$P79,"協会",C70:C79) -> 0 | AN82: =SUMIF(L70:P79,"協会",AN70:AQ79)/COUNTIF(L70:P79,"協会") ->  | AR82: =SUMIF(L70:P79,"協会",AR70:AU79)/COUNTIF(L70:P79,"協会") ->  | CR82: =IF(W83>0,"","〇") -> 〇
W83: =SUMIF($L70:$P79,"協会",B70:B79) -> 0 | AD83: =W83/$W$133 -> 0 | AH83: =SUMIF($L70:$P79,"協会",D70:D79) -> 0 | AV83: - | CR83: =CR82 -> 〇
L84: 小計 | W84: =W80+W82 -> 0 | AH84: =AH82+AH80 -> 0 | AN84: =(AN80+AN82)/2 ->  | AR84: =(AR80+AR82)/2 ->  | CA84: =SUM(BO84:BZ84) -> 0 | CR84: =IF(W85>0,"","〇") -> 〇
W85: =W81+W83 -> 0 | AD85: =W85/$W$133 -> 0 | AH85: =AH83+AH81 -> 0 | AV85: - | BO85: =BO84/$W$21 -> 0 | BU85: =BU84/$W$21 -> 0 | CA85: =CA84/W85 ->  | CR85: =CR84 -> 〇
A86: =W86 -> 0 | B86: =W87 -> 0 | L86: データなし | CR86: =IF(L86="データなし","〇","") -> 〇
AD87: =W87/$W$133 -> 0 | AH87: =AH86*12 -> 0 | AV87: - | CR87: =CR86 -> 〇
A88: =W88 -> 0 | B88: =W89 -> 0 | L88: データなし | CR88: 〇
AD89: =W89/$W$133 -> 0 | AH89: =AH88*12 -> 0 | AV89: - | CR89: =CR88 -> 〇
A90: =W90 -> 0 | B90: =W91 -> 0 | L90: データなし | CR90: 〇
AD91: =W91/$W$133 -> 0 | AH91: =AH90*12 -> 0 | AV91: - | CR91: =CR90 -> 〇
A92: =W92 -> 0 | B92: =W93 -> 0 | L92: データなし | CR92: 〇
AD93: =W93/$W$133 -> 0 | AH93: =AH92*12 -> 0 | AV93: - | CR93: =CR92 -> 〇
A94: =W94 -> 0 | B94: =W95 -> 0 | L94: データなし | CR94: 〇
AD95: =W95/$W$133 -> 0 | AH95: =AH94*12 -> 0 | AV95: - | CR95: =CR94 -> 〇
L96: プロパー計 | W96: =SUMIF($L86:$P95,"プロパー",A86:A95) -> 0 | AH96: =SUMIF($L86:$P95,"プロパー",C86:C95) -> 0 | AN96: =SUMIF(L86:P95,"プロパー",AN86:AQ95)/COUNTIF(L86:P95,"プロパー") ->  | AR96: =SUMIF(L86:P95,"プロパー",AR86:AU95)/COUNTIF(L86:P95,"プロパー") ->  | CR96: =IF(W97>0,"","〇") -> 〇
W97: =SUMIF($L86:$P95,"プロパー",B86:B95) -> 0 | AD97: =W97/$W$133 -> 0 | AH97: =SUMIF($L86:$P95,"プロパー",D86:D95) -> 0 | AV97: - | CR97: =CR96 -> 〇
L98: 保証協会計 | W98: =SUMIF($L86:$P95,"協会",A86:A95) -> 0 | AH98: =SUMIF($L86:$P95,"協会",C86:C95) -> 0 | AN98: =SUMIF(L86:P95,"協会",AN86:AQ95)/COUNTIF(L86:P95,"協会") ->  | AR98: =SUMIF(L86:P95,"協会",AR86:AU95)/COUNTIF(L86:P95,"協会") ->  | CR98: =IF(W99>0,"","〇") -> 〇
W99: =SUMIF($L86:$P95,"協会",B86:B95) -> 0 | AD99: =W99/$W$133 -> 0 | AH99: =SUMIF($L86:$P95,"協会",D86:D95) -> 0 | AV99: - | CR99: =CR98 -> 〇
L100: 小計 | W100: =W96+W98 -> 0 | AH100: =AH98+AH96 -> 0 | AN100: =(AN96+AN98)/2 ->  | AR100: =(AR96+AR98)/2 ->  | CA100: =SUM(BO100:BZ100) -> 0 | CR100: =IF(W101>0,"","〇") -> 〇
W101: =W97+W99 -> 0 | AD101: =W101/$W$133 -> 0 | AH101: =AH99+AH97 -> 0 | AV101: - | BO101: =BO100/$W$21 -> 0 | BU101: =BU100/$W$21 -> 0 | CA101: =CA100/W101 ->  | CR101: =CR100 -> 〇
A102: =W102 -> 0 | B102: =W103 -> 0 | C102: =AH102 -> 0 | D102: =AH103 -> 0 | L102: データなし | CR102: =IF(L102="データなし","〇","") -> 〇
AD103: =W103/$W$133 -> 0 | AH103: =AH102*12 -> 0 | AV103: - | CR103: =CR102 -> 〇
A104: =W104 -> 0 | B104: =W105 -> 0 | C104: =AH104 -> 0 | D104: =AH105 -> 0 | L104: データなし | CR104: 〇
AD105: =W105/$W$133 -> 0 | AH105: =AH104*12 -> 0 | AV105: - | CR105: =CR104 -> 〇
A106: =W106 -> 0 | B106: =W107 -> 0 | C106: =AH106 -> 0 | D106: =AH107 -> 0 | L106: データなし | CR106: 〇
AD107: =W107/$W$133 -> 0 | AH107: =AH106*12 -> 0 | AV107: - | CR107: =CR106 -> 〇
A108: =W108 -> 0 | B108: =W109 -> 0 | C108: =AH108 -> 0 | D108: =AH109 -> 0 | L108: データなし | CR108: 〇
AD109: =W109/$W$133 -> 0 | AH109: =AH108*12 -> 0 | AV109: - | CR109: =CR108 -> 〇
A110: =W110 -> 0 | B110: =W111 -> 0 | C110: =AH110 -> 0 | D110: =AH111 -> 0 | L110: データなし | CR110: 〇
AD111: =W111/$W$133 -> 0 | AH111: =AH110*12 -> 0 | AV111: - | CR111: =CR110 -> 〇
L112: プロパー計 | W112: =SUMIF($L102:$P111,"プロパー",A102:A111) -> 0 | AH112: =SUMIF($L102:$P111,"プロパー",C102:C111) -> 0 | AN112: =SUMIF(L102:P111,"プロパー",AN102:AQ111)/COUNTIF(L102:P111,"プロパー") ->  | AR112: =SUMIF(L102:P111,"プロパー",AR102:AU111)/COUNTIF(L102:P111,"プロパー") ->  | CR112: =IF(W113>0,"","〇") -> 〇
W113: =SUMIF($L102:$P111,"プロパー",B102:B111) -> 0 | AD113: =W113/$W$133 -> 0 | AH113: =SUMIF($L102:$P111,"プロパー",D102:D111) -> 0 | AV113: - | CR113: =CR112 -> 〇
L114: 保証協会計 | W114: =SUMIF($L102:$P111,"協会",A102:A111) -> 0 | AH114: =SUMIF($L102:$P111,"協会",C102:C111) -> 0 | AN114: =SUMIF(L102:P111,"協会",AN102:AQ111)/COUNTIF(L102:P111,"協会") ->  | AR114: =SUMIF(L102:P111,"協会",AR102:AU111)/COUNTIF(L102:P111,"協会") ->  | CR114: =IF(W115>0,"","〇") -> 〇
W115: =SUMIF($L102:$P111,"協会",B102:B111) -> 0 | AD115: =W115/$W$133 -> 0 | AH115: =SUMIF($L102:$P111,"協会",D102:D111) -> 0 | AV115: - | CR115: =CR114 -> 〇
L116: 小計 | W116: =W112+W114 -> 0 | AH116: =AH114+AH112 -> 0 | AN116: =(AN112+AN114)/2 ->  | AR116: =(AR112+AR114)/2 ->  | CA116: =SUM(BO116:BZ116) -> 0 | CR116: =IF(W117>0,"","〇") -> 〇
W117: =W113+W115 -> 0 | AD117: =W117/$W$133 -> 0 | AH117: =AH115+AH113 -> 0 | AV117: - | BO117: =BO116/$W$21 -> 0 | BU117: =BU116/$W$21 -> 0 | CA117: =CA116/W117 ->  | CR117: =CR116 -> 〇
A118: =W118 -> 0 | B118: =W119 -> 0 | E118: 日本政策金融公庫 | L118: データなし | CR118: =IF(L118="データなし","〇","") -> 〇
AD119: =W119/$W$133 -> 0 | AH119: =AH118*12 -> 0 | AV119: - | CR119: =CR118 -> 〇
A120: =W120 -> 0 | B120: =W121 -> 0 | L120: データなし | CR120: =IF(L120="データなし","〇","") -> 〇
AD121: =W121/$W$133 -> 0 | AH121: =AH120*12 -> 0 | AV121: - | CR121: =CR120 -> 〇
A122: =W122 -> 0 | B122: =W123 -> 0 | L122: データなし | CR122: =IF(L122="データなし","〇","") -> 〇
AD123: =W123/$W$133 -> 0 | AH123: =AH122*12 -> 0 | AV123: - | CR123: =CR122 -> 〇
A124: =W124 -> 0 | B124: =W125 -> 0 | L124: データなし | CR124: =IF(L124="データなし","〇","") -> 〇
AD125: =W125/$W$133 -> 0 | AH125: =AH124*12 -> 0 | AV125: - | CR125: =CR124 -> 〇
A126: =W126 -> 0 | B126: =W127 -> 0 | L126: 小計 | W126: =W118+W120+W122+W124 -> 0 | AH126: =AH118+AH120+AH122+AH124 -> 0 | AN126: =SUMIF(L118:P125,"プロパー",AN118:AQ125)/COUNTIF(L118:P125,"プロパー") ->  | AR126: =SUMIF(L118:P125,"プロパー",AR118:AU125)/COUNTIF(L118:P125,"プロパー") ->  | CA126: =SUM(BO126:BZ126) -> 0 | CR126: =IF(W127>0,"","〇") -> 〇
W127: =W119+W121+W123+W125 -> 0 | AD127: =W127/$W$133 -> 0 | AH127: =AH119+AH121+AH123+AH125 -> 0 | BO127: =BO126/W127 ->  | BU127: =BU126/W127 ->  | CA127: =CA126/W127 ->  | CR127: =CR126 -> 〇
E128: プロパー合計 | W128: =W16+W32+W48+W126+W64+W80+W96+W112 -> 10000000 | AH128: =AH16+AH32+AH48+AH126+AH64+AH80+AH96+AH112 -> 167000 | AN128: - | AR128: - | BO128: その他預金
W129: =W17+W33+W49+W127+W65+W81+W97+W113 -> 8000000 | AD129: =W129/$W$133 -> 0.347826087 | AH129: =AH17+AH33+AH49+AH127+AH65+AH81+AH97+AH113 -> 2004000 | BO129: 0
E130: 保証協会合計 | W130: =W18+W34+W50+W66+W82+W98+W114 -> 30000000 | AH130: =AH18+AH34+AH50+AH66+AH82+AH98+AH114 -> 500000 | AN130: - | AR130: - | BO130: 普通 | BU130: 定期 | CA130: 合計
W131: =W19+W35+W51+W67+W83+W99+W115 -> 15000000 | AD131: =W131/$W$133 -> 0.652173913 | AH131: =AH19+AH35+AH51+AH67+AH83+AH99+AH115 -> 6000000 | BO131: =BO20+BO126+BO58+BO68+BO78+BO88+BO98+BO116 ->  | BU131: =BU20+BU126+BU58+BU68+BU78+BU88+BU98+BU116 -> 0 | CA131: =SUM(BO131:BZ131) -> 
E132: 総借入額 | W132: =W128+W130 -> 40000000 | AH132: =AH128+AH130 -> 667000 | AN132: - | AR132: - | BO132: =BO20+BO48+BO126+BO129 -> 0 | BU132: =BU20+BU48+BU126 -> 0 | CA132: =CA20+CA48+CA126 -> 0 | CG132: 預金総計
W133: =W129+W131 -> 23000000 | AD133: =W133/$W$133 -> 1 | AH133: =AH129+AH131 -> 8004000 | BO133: =BO132/$W$133 -> 0 | BU133: =BU132/$W$133 -> 0 | CA133: =CA132/W133 -> 0

Sheet ②銀行別取引推移表
A1: 株式会社 ○○○○ 銀行別残高推移表 (令和〇年〇月～令和〇年〇月）
R3: （単位 ： 円）
A4: 金融機関 | B4: 借入期間（月） | C4: 当初借入額 | D4: 元金返済 | E4: 推移 | Q4: 期末合計 | R4: 来期返済 総額(予測値)
B5: 借入期間（年） | C5: 期首残高 | D5: 支払利息 | E5: =①借入条件表!$Z$5+1 -> 6 | F5: =IF(E5=12,1,E5+1) -> 7 | G5: =IF(F5=12,1,F5+1) -> 8 | H5: 9 | I5: 10 | J5: 11 | K5: 12 | L5: 1 | M5: 2 | N5: 3 | O5: 4 | P5: 5
B6: 保全状況 | C6: 金利 | D6: 残高
A7: =①借入条件表!E6 -> Ａ銀行 | B7: =①借入条件表!Q6 -> 60 | C7: =①借入条件表!W6 -> 10000000 | D7: 元金返済 | E7: =①借入条件表!$AH6 -> 167000 | F7: =IF(E9<=0,0,IF(E9<E7,E9,①借入条件表!$AH6)) -> 167000 | G7: =IF(F9<=0,0,IF(F9<F7,F9,①借入条件表!$AH6)) -> 167000 | H7: =IF(G9<=0,0,IF(G9<G7,G9,①借入条件表!$AH6)) -> 167000 | I7: =IF(H9<=0,0,IF(H9<H7,H9,①借入条件表!$AH6)) -> 167000 | J7: =IF(I9<=0,0,IF(I9<I7,I9,①借入条件表!$AH6)) -> 167000 | K7: =IF(J9<=0,0,IF(J9<J7,J9,①借入条件表!$AH6)) -> 167000 | L7: =IF(K9<=0,0,IF(K9<K7,K9,①借入条件表!$AH6)) -> 167000 | M7: =IF(L9<=0,0,IF(L9<L7,L9,①借入条件表!$AH6)) -> 167000 | N7: =IF(M9<=0,0,IF(M9<M7,M9,①借入条件表!$AH6)) -> 167000 | O7: =IF(N9<=0,0,IF(N9<N7,N9,①借入条件表!$AH6)) -> 167000 | P7: =IF(O9<=0,0,IF(O9<O7,O9,①借入条件表!$AH6)) -> 167000 | Q7: =SUM(E7:P7) -> 2004000 | R7: =IF(P9>Q7,P7*12,P9) -> 2004000 | T7: =IF(B9="データなし","〇"," ") -> 
B8: =①借入条件表!Q7 -> 5 | C8: =①借入条件表!W7 -> 8000000 | D8: 利息 | E8: =C8*C9/12 -> 10000 | F8: =E9*$C9/12 -> 9791.25 | G8: =F9*$C9/12 -> 9582.5 | H8: 9373.75 | I8: 9165 | J8: 8956.25 | K8: =J9*$C9/12 -> 8747.5 | L8: =K9*$C9/12 -> 8538.75 | M8: 8330 | N8: 8121.25 | O8: 7912.5 | P8: 7703.75 | Q8: =SUM(E8:P8) -> 106222.5 | R8: =P8*12 -> 92445 | T8: =IF(B9="データなし","〇"," ") -> 
B9: =①借入条件表!L6 -> プロパー | C9: =①借入条件表!AN6+①借入条件表!AR6 -> 0.015 | D9: 残高 | E9: =C8-E7 -> 7833000 | F9: =E9-F7 -> 7666000 | G9: =F9-G7 -> 7499000 | H9: 7332000 | I9: 7165000 | J9: 6998000 | K9: 6831000 | L9: 6664000 | M9: 6497000 | N9: 6330000 | O9: 6163000 | P9: 5996000 | Q9: =P9 -> 5996000 | R9: =IF(P9>Q7,P9-Q7,0) -> 3992000 | T9: =IF(B9="データなし","〇"," ") -> 
B10: =①借入条件表!Q8 -> 60 | C10: =①借入条件表!W8 -> 30000000 | D10: 元金返済 | E10: =①借入条件表!$AH8 -> 500000 | F10: =IF(E12<=0,0,IF(E12<E10,E12,①借入条件表!$AH8)) -> 500000 | G10: =IF(F12<=0,0,IF(F12<F10,F12,①借入条件表!$AH8)) -> 500000 | H10: =IF(G12<=0,0,IF(G12<G10,G12,①借入条件表!$AH8)) -> 500000 | I10: =IF(H12<=0,0,IF(H12<H10,H12,①借入条件表!$AH8)) -> 500000 | J10: =IF(I12<=0,0,IF(I12<I10,I12,①借入条件表!$AH8)) -> 500000 | K10: =IF(J12<=0,0,IF(J12<J10,J12,①借入条件表!$AH8)) -> 500000 | L10: =IF(K12<=0,0,IF(K12<K10,K12,①借入条件表!$AH8)) -> 500000 | M10: =IF(L12<=0,0,IF(L12<L10,L12,①借入条件表!$AH8)) -> 500000 | N10: =IF(M12<=0,0,IF(M12<M10,M12,①借入条件表!$AH8)) -> 500000 | O10: =IF(N12<=0,0,IF(N12<N10,N12,①借入条件表!$AH8)) -> 500000 | P10: =IF(O12<=0,0,IF(O12<O10,O12,①借入条件表!$AH8)) -> 500000 | Q10: =SUM(E10:P10) -> 6000000 | R10: =IF(P12>Q10,P10*12,P12) -> 6000000 | T10: =IF(B12="データなし","〇"," ") -> 
B11: =①借入条件表!Q9 -> 5 | C11: =①借入条件表!W9 -> 15000000 | D11: 利息 | E11: =C11*C12/12 -> 15000 | F11: =E12*$C12/12 -> 14500 | G11: =F12*$C12/12 -> 14000 | H11: =G12*$C12/12 -> 13500 | I11: =H12*$C12/12 -> 13000 | J11: =I12*$C12/12 -> 12500 | K11: =J12*$C12/12 -> 12000 | L11: =K12*$C12/12 -> 11500 | M11: =L12*$C12/12 -> 11000 | N11: =M12*$C12/12 -> 10500 | O11: =N12*$C12/12 -> 10000 | P11: =O12*$C12/12 -> 9500 | Q11: =SUM(E11:P11) -> 147000 | R11: =P11*12 -> 114000 | T11: =IF(B12="データなし","〇"," ") -> 
B12: =①借入条件表!L8 -> 協会 | C12: =①借入条件表!AN8+①借入条件表!AR8 -> 0.012 | D12: 残高 | E12: =C11-E10 -> 14500000 | F12: =E12-F10 -> 14000000 | G12: =F12-G10 -> 13500000 | H12: =G12-H10 -> 13000000 | I12: =H12-I10 -> 12500000 | J12: =I12-J10 -> 12000000 | K12: =J12-K10 -> 11500000 | L12: =K12-L10 -> 11000000 | M12: =L12-M10 -> 10500000 | N12: =M12-N10 -> 10000000 | O12: =N12-O10 -> 9500000 | P12: =O12-P10 -> 9000000 | Q12: =P12 -> 9000000 | R12: =IF(P12>Q10,P12-Q10,0) -> 3000000 | T12: =IF(B12="データなし","〇"," ") -> 
B13: =①借入条件表!Q10 -> 0 | C13: =①借入条件表!W10 -> 0 | D13: 元金返済 | E13: =①借入条件表!$AH10 -> 0 | F13: =IF(E15<=0,0,IF(E15<E13,E15,①借入条件表!$AH10)) -> 0 | G13: =IF(F15<=0,0,IF(F15<F13,F15,①借入条件表!$AH10)) -> 0 | H13: =IF(G15<=0,0,IF(G15<G13,G15,①借入条件表!$AH10)) -> 0 | I13: =IF(H15<=0,0,IF(H15<H13,H15,①借入条件表!$AH10)) -> 0 | J13: =IF(I15<=0,0,IF(I15<I13,I15,①借入条件表!$AH10)) -> 0 | K13: =IF(J15<=0,0,IF(J15<J13,J15,①借入条件表!$AH10)) -> 0 | L13: =IF(K15<=0,0,IF(K15<K13,K15,①借入条件表!$AH10)) -> 0 | M13: =IF(L15<=0,0,IF(L15<L13,L15,①借入条件表!$AH10)) -> 0 | N13: =IF(M15<=0,0,IF(M15<M13,M15,①借入条件表!$AH10)) -> 0 | O13: =IF(N15<=0,0,IF(N15<N13,N15,①借入条件表!$AH10)) -> 0 | P13: =IF(O15<=0,0,IF(O15<O13,O15,①借入条件表!$AH10)) -> 0 | Q13: =SUM(E13:P13) -> 0 | R13: =IF(P15>Q13,P13*12,P15) -> 0 | T13: =IF(B15="データなし","〇"," ") -> 〇
B14: =①借入条件表!Q11 -> 0 | C14: =①借入条件表!W11 -> 0 | D14: 利息 | E14: =C14*C15/12 -> 0 | F14: =E15*$C15/12 -> 0 | G14: =F15*$C15/12 -> 0 | H14: =G15*$C15/12 -> 0 | I14: =H15*$C15/12 -> 0 | J14: =I15*$C15/12 -> 0 | K14: =J15*$C15/12 -> 0 | L14: =K15*$C15/12 -> 0 | M14: =L15*$C15/12 -> 0 | N14: =M15*$C15/12 -> 0 | O14: =N15*$C15/12 -> 0 | P14: =O15*$C15/12 -> 0 | Q14: =SUM(E14:P14) -> 0 | R14: =P14*12 -> 0 | T14: =IF(B15="データなし","〇"," ") -> 〇
B15: =①借入条件表!L10 -> データなし | C15: =①借入条件表!AN10+①借入条件表!AR10 -> 0 | D15: 残高 | E15: =C14-E13 -> 0 | F15: =E15-F13 -> 0 | G15: =F15-G13 -> 0 | H15: =G15-H13 -> 0 | I15: =H15-I13 -> 0 | J15: =I15-J13 -> 0 | K15: =J15-K13 -> 0 | L15: =K15-L13 -> 0 | M15: =L15-M13 -> 0 | N15: =M15-N13 -> 0 | O15: =N15-O13 -> 0 | P15: =O15-P13 -> 0 | Q15: =P15 -> 0 | R15: =IF(P15>Q13,P15-Q13,0) -> 0 | T15: =IF(B15="データなし","〇"," ") -> 〇
B16: =①借入条件表!Q12 -> 0 | C16: =①借入条件表!W12 -> 0 | D16: 元金返済 | E16: =①借入条件表!$AH12 -> 0 | F16: =IF(E18<=0,0,IF(E18<E16,E18,①借入条件表!$AH12)) -> 0 | G16: =IF(F18<=0,0,IF(F18<F16,F18,①借入条件表!$AH12)) -> 0 | H16: =IF(G18<=0,0,IF(G18<G16,G18,①借入条件表!$AH12)) -> 0 | I16: =IF(H18<=0,0,IF(H18<H16,H18,①借入条件表!$AH12)) -> 0 | J16: =IF(I18<=0,0,IF(I18<I16,I18,①借入条件表!$AH12)) -> 0 | K16: =IF(J18<=0,0,IF(J18<J16,J18,①借入条件表!$AH12)) -> 0 | L16: =IF(K18<=0,0,IF(K18<K16,K18,①借入条件表!$AH12)) -> 0 | M16: =IF(L18<=0,0,IF(L18<L16,L18,①借入条件表!$AH12)) -> 0 | N16: =IF(M18<=0,0,IF(M18<M16,M18,①借入条件表!$AH12)) -> 0 | O16: =IF(N18<=0,0,IF(N18<N16,N18,①借入条件表!$AH12)) -> 0 | P16: =IF(O18<=0,0,IF(O18<O16,O18,①借入条件表!$AH12)) -> 0 | Q16: =SUM(E16:P16) -> 0 | R16: =IF(P18>Q16,P16*12,P18) -> 0 | T16: =IF(B18="データなし","〇"," ") -> 〇
B17: =①借入条件表!Q13 -> 0 | C17: =①借入条件表!W13 -> 0 | D17: 利息 | E17: =C17*C18/12 -> 0 | F17: =E18*$C18/12 -> 0 | G17: =F18*$C18/12 -> 0 | H17: =G18*$C18/12 -> 0 | I17: =H18*$C18/12 -> 0 | J17: =I18*$C18/12 -> 0 | K17: =J18*$C18/12 -> 0 | L17: =K18*$C18/12 -> 0 | M17: =L18*$C18/12 -> 0 | N17: =M18*$C18/12 -> 0 | O17: =N18*$C18/12 -> 0 | P17: =O18*$C18/12 -> 0 | Q17: =SUM(E17:P17) -> 0 | R17: =P17*12 -> 0 | T17: =IF(B18="データなし","〇"," ") -> 〇
B18: =①借入条件表!L12 -> データなし | C18: =①借入条件表!AN12+①借入条件表!AR12 -> 0 | D18: 残高 | E18: =C17-E16 -> 0 | F18: =E18-F16 -> 0 | G18: =F18-G16 -> 0 | H18: =G18-H16 -> 0 | I18: =H18-I16 -> 0 | J18: =I18-J16 -> 0 | K18: =J18-K16 -> 0 | L18: =K18-L16 -> 0 | M18: =L18-M16 -> 0 | N18: =M18-N16 -> 0 | O18: =N18-O16 -> 0 | P18: =O18-P16 -> 0 | Q18: =P18 -> 0 | R18: =IF(P18>Q16,P18-Q16,0) -> 0 | T18: =IF(B18="データなし","〇"," ") -> 〇
B19: =①借入条件表!Q14 -> 0 | C19: =①借入条件表!W14 -> 0 | D19: 元金返済 | E19: =①借入条件表!$AH14 -> 0 | F19: =IF(E21<=0,0,IF(E21<E19,E21,①借入条件表!$AH14)) -> 0 | G19: =IF(F21<=0,0,IF(F21<F19,F21,①借入条件表!$AH14)) -> 0 | H19: =IF(G21<=0,0,IF(G21<G19,G21,①借入条件表!$AH14)) -> 0 | I19: =IF(H21<=0,0,IF(H21<H19,H21,①借入条件表!$AH14)) -> 0 | J19: =IF(I21<=0,0,IF(I21<I19,I21,①借入条件表!$AH14)) -> 0 | K19: =IF(J21<=0,0,IF(J21<J19,J21,①借入条件表!$AH14)) -> 0 | L19: =IF(K21<=0,0,IF(K21<K19,K21,①借入条件表!$AH14)) -> 0 | M19: =IF(L21<=0,0,IF(L21<L19,L21,①借入条件表!$AH14)) -> 0 | N19: =IF(M21<=0,0,IF(M21<M19,M21,①借入条件表!$AH14)) -> 0 | O19: =IF(N21<=0,0,IF(N21<N19,N21,①借入条件表!$AH14)) -> 0 | P19: =IF(O21<=0,0,IF(O21<O19,O21,①借入条件表!$AH14)) -> 0 | Q19: =SUM(E19:P19) -> 0 | R19: =IF(P21>Q19,P19*12,P21) -> 0 | T19: =IF(B21="データなし","〇"," ") -> 〇
B20: =①借入条件表!Q15 -> 0 | C20: =①借入条件表!W15 -> 0 | D20: 利息 | E20: =$C20*$C21/12 -> 0 | F20: =E21*$C21/12 -> 0 | G20: =F21*$C21/12 -> 0 | H20: 0 | I20: 0 | J20: 0 | K20: 0 | L20: 0 | M20: 0 | N20: 0 | O20: 0 | P20: 0 | Q20: =SUM(E20:P20) -> 0 | R20: =P20*12 -> 0 | T20: =IF(B21="データなし","〇"," ") -> 〇
B21: =①借入条件表!L14 -> データなし | C21: =①借入条件表!AN14+①借入条件表!AR14 -> 0 | D21: 残高 | E21: =C20-E19 -> 0 | F21: =E21-F19 -> 0 | G21: =F21-G19 -> 0 | H21: 0 | I21: 0 | J21: 0 | K21: 0 | L21: 0 | M21: 0 | N21: 0 | O21: 0 | P21: 0 | Q21: =P21 -> 0 | R21: =IF(P21>Q19,P21-Q19,0) -> 0 | T21: =IF(B21="データなし","〇"," ") -> 〇
B22: 小計 | C22: =C7+C10+C13+C16+C19 -> 40000000 | D22: 元金返済 | E22: =E7+E10+E13+E16+E19 -> 667000 | F22: =F7+F10+F13+F16+F19 -> 667000 | G22: =G7+G10+G13+G16+G19 -> 667000 | H22: 667000 | I22: 667000 | J22: 667000 | K22: 667000 | L22: 667000 | M22: 667000 | N22: 667000 | O22: 667000 | P22: =P7+P10+P13+P16+P19 -> 667000 | Q22: =SUM(E22:P22) -> 8004000 | R22: =+Q22 -> 8004000 | T22: =IF(C23>0,"","〇 ") -> 
C23: =C8+C11+C14+C17+C20 -> 23000000 | D23: 利息 | E23: =E8+E11+E14+E17+E20 -> 25000 | F23: =F8+F11+F14+F17+F20 -> 24291.25 | G23: 23582.5 | H23: 22873.75 | I23: 22165 | J23: 21456.25 | K23: 20747.5 | L23: 20038.75 | M23: 19330 | N23: 18621.25 | O23: 17912.5 | P23: =P8+P11+P14+P17+P20 -> 17203.75 | Q23: 253222.5 | R23: =Q23 -> 253222.5 | T23: =IF(C23>0,"","〇 ") -> 
D24: 残高 | E24: =E9+E12+E15+E18+E21 -> 22333000 | F24: =F9+F12+F15+F18+F21 -> 21666000 | G24: 20999000 | H24: 20332000 | I24: 19665000 | J24: 18998000 | K24: 18331000 | L24: 17664000 | M24: 16997000 | N24: 16330000 | O24: 15663000 | P24: =P9+P12+P15+P18+P21 -> 14996000 | Q24: =P24 -> 14996000 | R24: =Q24-R22 -> 6992000 | T24: =IF(C23>0,"","〇 ") -> 
A25: =①借入条件表!E22 -> Ｂ銀行 | B25: =①借入条件表!Q22 -> 0 | C25: =①借入条件表!W22 -> 0 | D25: 元金返済 | E25: =①借入条件表!$AH22 -> 0 | F25: =IF(E27<=0,0,IF(E27<E25,E27,①借入条件表!$AH22)) -> 0 | G25: =IF(F27<=0,0,IF(F27<F25,F27,①借入条件表!$AH22)) -> 0 | H25: =IF(G27<=0,0,IF(G27<G25,G27,①借入条件表!$AH22)) -> 0 | I25: =IF(H27<=0,0,IF(H27<H25,H27,①借入条件表!$AH22)) -> 0 | J25: =IF(I27<=0,0,IF(I27<I25,I27,①借入条件表!$AH22)) -> 0 | K25: =IF(J27<=0,0,IF(J27<J25,J27,①借入条件表!$AH22)) -> 0 | L25: =IF(K27<=0,0,IF(K27<K25,K27,①借入条件表!$AH22)) -> 0 | M25: =IF(L27<=0,0,IF(L27<L25,L27,①借入条件表!$AH22)) -> 0 | N25: =IF(M27<=0,0,IF(M27<M25,M27,①借入条件表!$AH22)) -> 0 | O25: =IF(N27<=0,0,IF(N27<N25,N27,①借入条件表!$AH22)) -> 0 | P25: =IF(O27<=0,0,IF(O27<O25,O27,①借入条件表!$AH22)) -> 0 | Q25: =SUM(E25:P25) -> 0 | R25: =IF(P27>Q25,P25*12,P27) -> 0 | T25: =IF(B27="データなし","〇"," ") -> 〇
B26: =①借入条件表!Q23 -> 0 | C26: =①借入条件表!W23 -> 0 | D26: 利息 | E26: =C26*C27/12 -> 0 | F26: =E27*$C27/12 -> 0 | G26: =F27*$C27/12 -> 0 | H26: =G27*$C27/12 -> 0 | I26: =H27*$C27/12 -> 0 | J26: =I27*$C27/12 -> 0 | K26: =J27*$C27/12 -> 0 | L26: =K27*$C27/12 -> 0 | M26: =L27*$C27/12 -> 0 | N26: =M27*$C27/12 -> 0 | O26: =N27*$C27/12 -> 0 | P26: =O27*$C27/12 -> 0 | Q26: =SUM(E26:P26) -> 0 | R26: =P26*12 -> 0 | T26: =IF(B27="データなし","〇"," ") -> 〇
B27: =①借入条件表!L22 -> データなし | C27: =①借入条件表!AN22+①借入条件表!AR22 -> 0 | D27: 残高 | E27: =C26-E25 -> 0 | F27: =E27-F25 -> 0 | G27: =F27-G25 -> 0 | H27: =G27-H25 -> 0 | I27: =H27-I25 -> 0 | J27: =I27-J25 -> 0 | K27: =J27-K25 -> 0 | L27: =K27-L25 -> 0 | M27: =L27-M25 -> 0 | N27: =M27-N25 -> 0 | O27: =N27-O25 -> 0 | P27: =O27-P25 -> 0 | Q27: =P27 -> 0 | R27: =IF(P27>Q25,P27-Q25,0) -> 0 | T27: =IF(B27="データなし","〇"," ") -> 〇
B28: =①借入条件表!Q24 -> 0 | C28: =①借入条件表!W24 -> 0 | D28: 元金返済 | E28: =①借入条件表!$AH24 -> 0 | F28: =IF(E30<=0,0,IF(E30<E28,E30,①借入条件表!$AH24)) -> 0 | G28: =IF(F30<=0,0,IF(F30<F28,F30,①借入条件表!$AH24)) -> 0 | H28: =IF(G30<=0,0,IF(G30<G28,G30,①借入条件表!$AH24)) -> 0 | I28: =IF(H30<=0,0,IF(H30<H28,H30,①借入条件表!$AH24)) -> 0 | J28: =IF(I30<=0,0,IF(I30<I28,I30,①借入条件表!$AH24)) -> 0 | K28: =IF(J30<=0,0,IF(J30<J28,J30,①借入条件表!$AH24)) -> 0 | L28: =IF(K30<=0,0,IF(K30<K28,K30,①借入条件表!$AH24)) -> 0 | M28: =IF(L30<=0,0,IF(L30<L28,L30,①借入条件表!$AH24)) -> 0 | N28: =IF(M30<=0,0,IF(M30<M28,M30,①借入条件表!$AH24)) -> 0 | O28: =IF(N30<=0,0,IF(N30<N28,N30,①借入条件表!$AH24)) -> 0 | P28: =IF(O30<=0,0,IF(O30<O28,O30,①借入条件表!$AH24)) -> 0 | Q28: =SUM(E28:P28) -> 0 | R28: =IF(P30>Q28,P28*12,P30) -> 0 | T28: =IF(B30="データなし","〇"," ") -> 〇
B29: =①借入条件表!Q25 -> 0 | C29: =①借入条件表!W25 -> 0 | D29: 利息 | E29: =C29*C30/12 -> 0 | F29: =E30*$C30/12 -> 0 | G29: =F30*$C30/12 -> 0 | H29: =G30*$C30/12 -> 0 | I29: =H30*$C30/12 -> 0 | J29: =I30*$C30/12 -> 0 | K29: =J30*$C30/12 -> 0 | L29: =K30*$C30/12 -> 0 | M29: =L30*$C30/12 -> 0 | N29: =M30*$C30/12 -> 0 | O29: =N30*$C30/12 -> 0 | P29: =O30*$C30/12 -> 0 | Q29: =SUM(E29:P29) -> 0 | R29: =P29*12 -> 0 | T29: =IF(B30="データなし","〇"," ") -> 〇
B30: =①借入条件表!L24 -> データなし | C30: =①借入条件表!AN24+①借入条件表!AR24 -> 0 | D30: 残高 | E30: =C29-E28 -> 0 | F30: =E30-F28 -> 0 | G30: =F30-G28 -> 0 | H30: =G30-H28 -> 0 | I30: =H30-I28 -> 0 | J30: =I30-J28 -> 0 | K30: =J30-K28 -> 0 | L30: =K30-L28 -> 0 | M30: =L30-M28 -> 0 | N30: =M30-N28 -> 0 | O30: =N30-O28 -> 0 | P30: =O30-P28 -> 0 | Q30: =P30 -> 0 | R30: =IF(P30>Q28,P30-Q28,0) -> 0 | T30: =IF(B30="データなし","〇"," ") -> 〇
B31: =①借入条件表!Q26 -> 0 | C31: =①借入条件表!W26 -> 0 | D31: 元金返済 | E31: =①借入条件表!$AH26 -> 0 | F31: =IF(E33<=0,0,IF(E33<E31,E33,①借入条件表!$AH26)) -> 0 | G31: =IF(F33<=0,0,IF(F33<F31,F33,①借入条件表!$AH26)) -> 0 | H31: =IF(G33<=0,0,IF(G33<G31,G33,①借入条件表!$AH26)) -> 0 | I31: =IF(H33<=0,0,IF(H33<H31,H33,①借入条件表!$AH26)) -> 0 | J31: =IF(I33<=0,0,IF(I33<I31,I33,①借入条件表!$AH26)) -> 0 | K31: =IF(J33<=0,0,IF(J33<J31,J33,①借入条件表!$AH26)) -> 0 | L31: =IF(K33<=0,0,IF(K33<K31,K33,①借入条件表!$AH26)) -> 0 | M31: =IF(L33<=0,0,IF(L33<L31,L33,①借入条件表!$AH26)) -> 0 | N31: =IF(M33<=0,0,IF(M33<M31,M33,①借入条件表!$AH26)) -> 0 | O31: =IF(N33<=0,0,IF(N33<N31,N33,①借入条件表!$AH26)) -> 0 | P31: =IF(O33<=0,0,IF(O33<O31,O33,①借入条件表!$AH26)) -> 0 | Q31: =SUM(E31:P31) -> 0 | R31: =IF(P33>Q31,P31*12,P33) -> 0 | T31: =IF(B33="データなし","〇"," ") -> 〇
B32: =①借入条件表!Q27 -> 0 | C32: =①借入条件表!W27 -> 0 | D32: 利息 | E32: =C32*C33/12 -> 0 | F32: =E33*$C33/12 -> 0 | G32: =F33*$C33/12 -> 0 | H32: =G33*$C33/12 -> 0 | I32: =H33*$C33/12 -> 0 | J32: =I33*$C33/12 -> 0 | K32: =J33*$C33/12 -> 0 | L32: =K33*$C33/12 -> 0 | M32: =L33*$C33/12 -> 0 | N32: =M33*$C33/12 -> 0 | O32: =N33*$C33/12 -> 0 | P32: =O33*$C33/12 -> 0 | Q32: =SUM(E32:P32) -> 0 | R32: =P32*12 -> 0 | T32: =IF(B33="データなし","〇"," ") -> 〇
B33: =①借入条件表!L26 -> データなし | C33: =①借入条件表!AN26+①借入条件表!AR26 -> 0 | D33: 残高 | E33: =C32-E31 -> 0 | F33: =E33-F31 -> 0 | G33: =F33-G31 -> 0 | H33: =G33-H31 -> 0 | I33: =H33-I31 -> 0 | J33: =I33-J31 -> 0 | K33: =J33-K31 -> 0 | L33: =K33-L31 -> 0 | M33: =L33-M31 -> 0 | N33: =M33-N31 -> 0 | O33: =N33-O31 -> 0 | P33: =O33-P31 -> 0 | Q33: =P33 -> 0 | R33: =IF(P33>Q31,P33-Q31,0) -> 0 | T33: =IF(B33="データなし","〇"," ") -> 〇
B34: =①借入条件表!Q28 -> 0 | C34: =①借入条件表!W28 -> 0 | D34: 元金返済 | E34: =①借入条件表!$AH28 -> 0 | F34: =IF(E36<=0,0,IF(E36<E34,E36,①借入条件表!$AH28)) -> 0 | G34: =IF(F36<=0,0,IF(F36<F34,F36,①借入条件表!$AH28)) -> 0 | H34: =IF(G36<=0,0,IF(G36<G34,G36,①借入条件表!$AH28)) -> 0 | I34: =IF(H36<=0,0,IF(H36<H34,H36,①借入条件表!$AH28)) -> 0 | J34: =IF(I36<=0,0,IF(I36<I34,I36,①借入条件表!$AH28)) -> 0 | K34: =IF(J36<=0,0,IF(J36<J34,J36,①借入条件表!$AH28)) -> 0 | L34: =IF(K36<=0,0,IF(K36<K34,K36,①借入条件表!$AH28)) -> 0 | M34: =IF(L36<=0,0,IF(L36<L34,L36,①借入条件表!$AH28)) -> 0 | N34: =IF(M36<=0,0,IF(M36<M34,M36,①借入条件表!$AH28)) -> 0 | O34: =IF(N36<=0,0,IF(N36<N34,N36,①借入条件表!$AH28)) -> 0 | P34: =IF(O36<=0,0,IF(O36<O34,O36,①借入条件表!$AH28)) -> 0 | Q34: =SUM(E34:P34) -> 0 | R34: =IF(P36>Q34,P34*12,P36) -> 0 | T34: =IF(B36="データなし","〇"," ") -> 〇
B35: =①借入条件表!Q29 -> 0 | C35: =①借入条件表!W29 -> 0 | D35: 利息 | E35: =C35*C36/12 -> 0 | F35: =E36*$C36/12 -> 0 | G35: =F36*$C36/12 -> 0 | H35: =G36*$C36/12 -> 0 | I35: =H36*$C36/12 -> 0 | J35: =I36*$C36/12 -> 0 | K35: =J36*$C36/12 -> 0 | L35: =K36*$C36/12 -> 0 | M35: =L36*$C36/12 -> 0 | N35: =M36*$C36/12 -> 0 | O35: =N36*$C36/12 -> 0 | P35: =O36*$C36/12 -> 0 | Q35: =SUM(E35:P35) -> 0 | R35: =P35*12 -> 0 | T35: =IF(B36="データなし","〇"," ") -> 〇
B36: =①借入条件表!L28 -> データなし | C36: =①借入条件表!AN28+①借入条件表!AR28 -> 0 | D36: 残高 | E36: =C35-E34 -> 0 | F36: =E36-F34 -> 0 | G36: =F36-G34 -> 0 | H36: =G36-H34 -> 0 | I36: =H36-I34 -> 0 | J36: =I36-J34 -> 0 | K36: =J36-K34 -> 0 | L36: =K36-L34 -> 0 | M36: =L36-M34 -> 0 | N36: =M36-N34 -> 0 | O36: =N36-O34 -> 0 | P36: =O36-P34 -> 0 | Q36: =P36 -> 0 | R36: =IF(P36>Q34,P36-Q34,0) -> 0 | T36: =IF(B36="データなし","〇"," ") -> 〇
B37: =①借入条件表!Q30 -> 0 | C37: =①借入条件表!W30 -> 0 | D37: 元金返済 | E37: =①借入条件表!$AH30 -> 0 | F37: =IF(E39<=0,0,IF(E39<E37,E39,①借入条件表!$AH30)) -> 0 | G37: =IF(F39<=0,0,IF(F39<F37,F39,①借入条件表!$AH30)) -> 0 | H37: =IF(G39<=0,0,IF(G39<G37,G39,①借入条件表!$AH30)) -> 0 | I37: =IF(H39<=0,0,IF(H39<H37,H39,①借入条件表!$AH30)) -> 0 | J37: =IF(I39<=0,0,IF(I39<I37,I39,①借入条件表!$AH30)) -> 0 | K37: =IF(J39<=0,0,IF(J39<J37,J39,①借入条件表!$AH30)) -> 0 | L37: =IF(K39<=0,0,IF(K39<K37,K39,①借入条件表!$AH30)) -> 0 | M37: =IF(L39<=0,0,IF(L39<L37,L39,①借入条件表!$AH30)) -> 0 | N37: =IF(M39<=0,0,IF(M39<M37,M39,①借入条件表!$AH30)) -> 0 | O37: =IF(N39<=0,0,IF(N39<N37,N39,①借入条件表!$AH30)) -> 0 | P37: =IF(O39<=0,0,IF(O39<O37,O39,①借入条件表!$AH30)) -> 0 | Q37: =SUM(E37:P37) -> 0 | R37: =IF(P39>Q37,P37*12,P39) -> 0 | T37: =IF(B39="データなし","〇"," ") -> 〇
B38: =①借入条件表!Q31 -> 0 | C38: =①借入条件表!W31 -> 0 | D38: 利息 | E38: =$C38*$C39/12 -> 0 | F38: =E39*$C39/12 -> 0 | G38: =F39*$C39/12 -> 0 | H38: =G39*$C39/12 -> 0 | I38: =H39*$C39/12 -> 0 | J38: =I39*$C39/12 -> 0 | K38: =J39*$C39/12 -> 0 | L38: =K39*$C39/12 -> 0 | M38: =L39*$C39/12 -> 0 | N38: =M39*$C39/12 -> 0 | O38: =N39*$C39/12 -> 0 | P38: =O39*$C39/12 -> 0 | Q38: =SUM(E38:P38) -> 0 | R38: =P38*12 -> 0 | T38: =IF(B39="データなし","〇"," ") -> 〇
B39: =①借入条件表!L30 -> データなし | C39: =①借入条件表!AN30+①借入条件表!AR30 -> 0 | D39: 残高 | E39: =C38-E37 -> 0 | F39: =E39-F37 -> 0 | G39: =F39-G37 -> 0 | H39: =G39-H37 -> 0 | I39: =H39-I37 -> 0 | J39: =I39-J37 -> 0 | K39: =J39-K37 -> 0 | L39: =K39-L37 -> 0 | M39: =L39-M37 -> 0 | N39: =M39-N37 -> 0 | O39: =N39-O37 -> 0 | P39: =O39-P37 -> 0 | Q39: =P39 -> 0 | R39: =IF(P39>Q37,P39-Q37,0) -> 0 | T39: =IF(B39="データなし","〇"," ") -> 〇
B40: 小計 | C40: =C25+C28+C31+C34+C37 -> 0 | D40: 元金返済 | E40: =E25+E28+E31+E34+E37 -> 0 | F40: =F25+F28+F31+F34+F37 -> 0 | G40: =G25+G28+G31+G34+G37 -> 0 | H40: 0 | I40: 0 | J40: 0 | K40: 0 | L40: 0 | M40: 0 | N40: 0 | O40: 0 | P40: =P25+P28+P31+P34+P37 -> 0 | Q40: =SUM(E40:P40) -> 0 | R40: =+Q40 -> 0 | T40: =IF(C41>0,"","〇 ") -> 〇
C41: =C26+C29+C32+C35+C38 -> 0 | D41: 利息 | E41: =E26+E29+E32+E35+E38 -> 0 | F41: =F26+F29+F32+F35+F38 -> 0 | G41: 0 | H41: 0 | I41: 0 | J41: 0 | K41: 0 | L41: 0 | M41: 0 | N41: 0 | O41: 0 | P41: =P26+P29+P32+P35+P38 -> 0 | Q41: 0 | R41: =Q41 -> 0 | T41: =IF(C41>0,"","〇 ") -> 〇
D42: 残高 | E42: =E27+E30+E33+E36+E39 -> 0 | F42: =F27+F30+F33+F36+F39 -> 0 | G42: 0 | H42: 0 | I42: 0 | J42: 0 | K42: 0 | L42: 0 | M42: 0 | N42: 0 | O42: 0 | P42: =P27+P30+P33+P36+P39 -> 0 | Q42: =P42 -> 0 | R42: =Q42-R40 -> 0 | T42: =IF(C41>0,"","〇 ") -> 〇
A43: =①借入条件表!E38 -> 0 | B43: =①借入条件表!Q38 -> 0 | C43: =①借入条件表!W38 -> 0 | D43: 元金返済 | E43: =①借入条件表!$AH38 -> 0 | F43: =IF(E45<=0,0,IF(E45<E43,E45,①借入条件表!$AH38)) -> 0 | G43: =IF(F45<=0,0,IF(F45<F43,F45,①借入条件表!$AH38)) -> 0 | H43: =IF(G45<=0,0,IF(G45<G43,G45,①借入条件表!$AH38)) -> 0 | I43: =IF(H45<=0,0,IF(H45<H43,H45,①借入条件表!$AH38)) -> 0 | J43: =IF(I45<=0,0,IF(I45<I43,I45,①借入条件表!$AH38)) -> 0 | K43: =IF(J45<=0,0,IF(J45<J43,J45,①借入条件表!$AH38)) -> 0 | L43: =IF(K45<=0,0,IF(K45<K43,K45,①借入条件表!$AH38)) -> 0 | M43: =IF(L45<=0,0,IF(L45<L43,L45,①借入条件表!$AH38)) -> 0 | N43: =IF(M45<=0,0,IF(M45<M43,M45,①借入条件表!$AH38)) -> 0 | O43: =IF(N45<=0,0,IF(N45<N43,N45,①借入条件表!$AH38)) -> 0 | P43: =IF(O45<=0,0,IF(O45<O43,O45,①借入条件表!$AH38)) -> 0 | Q43: =SUM(E43:P43) -> 0 | R43: =IF(P45>Q43,P43*12,P45) -> 0 | T43: =IF(B45="データなし","〇"," ") -> 〇
B44: =①借入条件表!Q39 -> 0 | C44: =①借入条件表!W39 -> 0 | D44: 利息 | E44: =C44*C45/12 -> 0 | F44: =E45*$C45/12 -> 0 | G44: =F45*$C45/12 -> 0 | H44: =G45*$C45/12 -> 0 | I44: =H45*$C45/12 -> 0 | J44: =I45*$C45/12 -> 0 | K44: =J45*$C45/12 -> 0 | L44: =K45*$C45/12 -> 0 | M44: =L45*$C45/12 -> 0 | N44: =M45*$C45/12 -> 0 | O44: =N45*$C45/12 -> 0 | P44: =O45*$C45/12 -> 0 | Q44: =SUM(E44:P44) -> 0 | R44: =P44*12 -> 0 | T44: =IF(B45="データなし","〇"," ") -> 〇
B45: =①借入条件表!L38 -> データなし | C45: =①借入条件表!AN38+①借入条件表!AR38 -> 0 | D45: 残高 | E45: =C44-E43 -> 0 | F45: =E45-F43 -> 0 | G45: =F45-G43 -> 0 | H45: =G45-H43 -> 0 | I45: =H45-I43 -> 0 | J45: =I45-J43 -> 0 | K45: =J45-K43 -> 0 | L45: =K45-L43 -> 0 | M45: =L45-M43 -> 0 | N45: =M45-N43 -> 0 | O45: =N45-O43 -> 0 | P45: =O45-P43 -> 0 | Q45: =P45 -> 0 | R45: =IF(P45>Q43,P45-Q43,0) -> 0 | T45: =IF(B45="データなし","〇"," ") -> 〇
B46: =①借入条件表!Q40 -> 0 | C46: =①借入条件表!W40 -> 0 | D46: 元金返済 | E46: =①借入条件表!$AH40 -> 0 | F46: =IF(E48<=0,0,IF(E48<E46,E48,①借入条件表!$AH40)) -> 0 | G46: =IF(F48<=0,0,IF(F48<F46,F48,①借入条件表!$AH40)) -> 0 | H46: =IF(G48<=0,0,IF(G48<G46,G48,①借入条件表!$AH40)) -> 0 | I46: =IF(H48<=0,0,IF(H48<H46,H48,①借入条件表!$AH40)) -> 0 | J46: =IF(I48<=0,0,IF(I48<I46,I48,①借入条件表!$AH40)) -> 0 | K46: =IF(J48<=0,0,IF(J48<J46,J48,①借入条件表!$AH40)) -> 0 | L46: =IF(K48<=0,0,IF(K48<K46,K48,①借入条件表!$AH40)) -> 0 | M46: =IF(L48<=0,0,IF(L48<L46,L48,①借入条件表!$AH40)) -> 0 | N46: =IF(M48<=0,0,IF(M48<M46,M48,①借入条件表!$AH40)) -> 0 | O46: =IF(N48<=0,0,IF(N48<N46,N48,①借入条件表!$AH40)) -> 0 | P46: =IF(O48<=0,0,IF(O48<O46,O48,①借入条件表!$AH40)) -> 0 | Q46: =SUM(E46:P46) -> 0 | R46: =IF(P48>Q46,P46*12,P48) -> 0 | T46: =IF(B48="データなし","〇"," ") -> 〇
B47: =①借入条件表!Q41 -> 0 | C47: =①借入条件表!W41 -> 0 | D47: 利息 | E47: =C47*C48/12 -> 0 | F47: =E48*$C48/12 -> 0 | G47: =F48*$C48/12 -> 0 | H47: =G48*$C48/12 -> 0 | I47: =H48*$C48/12 -> 0 | J47: =I48*$C48/12 -> 0 | K47: =J48*$C48/12 -> 0 | L47: =K48*$C48/12 -> 0 | M47: =L48*$C48/12 -> 0 | N47: =M48*$C48/12 -> 0 | O47: =N48*$C48/12 -> 0 | P47: =O48*$C48/12 -> 0 | Q47: =SUM(E47:P47) -> 0 | R47: =P47*12 -> 0 | T47: =IF(B48="データなし","〇"," ") -> 〇
B48: =①借入条件表!L40 -> データなし | C48: =①借入条件表!AN40+①借入条件表!AR40 -> 0 | D48: 残高 | E48: =C47-E46 -> 0 | F48: =E48-F46 -> 0 | G48: =F48-G46 -> 0 | H48: =G48-H46 -> 0 | I48: =H48-I46 -> 0 | J48: =I48-J46 -> 0 | K48: =J48-K46 -> 0 | L48: =K48-L46 -> 0 | M48: =L48-M46 -> 0 | N48: =M48-N46 -> 0 | O48: =N48-O46 -> 0 | P48: =O48-P46 -> 0 | Q48: =P48 -> 0 | R48: =IF(P48>Q46,P48-Q46,0) -> 0 | T48: =IF(B48="データなし","〇"," ") -> 〇
B49: =①借入条件表!Q42 -> 0 | C49: =①借入条件表!W42 -> 0 | D49: 元金返済 | E49: =①借入条件表!$AH42 -> 0 | F49: =IF(E51<=0,0,IF(E51<E49,E51,①借入条件表!$AH42)) -> 0 | G49: =IF(F51<=0,0,IF(F51<F49,F51,①借入条件表!$AH42)) -> 0 | H49: =IF(G51<=0,0,IF(G51<G49,G51,①借入条件表!$AH42)) -> 0 | I49: =IF(H51<=0,0,IF(H51<H49,H51,①借入条件表!$AH42)) -> 0 | J49: =IF(I51<=0,0,IF(I51<I49,I51,①借入条件表!$AH42)) -> 0 | K49: =IF(J51<=0,0,IF(J51<J49,J51,①借入条件表!$AH42)) -> 0 | L49: =IF(K51<=0,0,IF(K51<K49,K51,①借入条件表!$AH42)) -> 0 | M49: =IF(L51<=0,0,IF(L51<L49,L51,①借入条件表!$AH42)) -> 0 | N49: =IF(M51<=0,0,IF(M51<M49,M51,①借入条件表!$AH42)) -> 0 | O49: =IF(N51<=0,0,IF(N51<N49,N51,①借入条件表!$AH42)) -> 0 | P49: =IF(O51<=0,0,IF(O51<O49,O51,①借入条件表!$AH42)) -> 0 | Q49: =SUM(E49:P49) -> 0 | R49: =IF(P51>Q49,P49*12,P51) -> 0 | T49: =IF(B51="データなし","〇"," ") -> 〇
B50: =①借入条件表!Q43 -> 0 | C50: =①借入条件表!W43 -> 0 | D50: 利息 | E50: =C50*C51/12 -> 0 | F50: =E51*$C51/12 -> 0 | G50: =F51*$C51/12 -> 0 | H50: =G51*$C51/12 -> 0 | I50: =H51*$C51/12 -> 0 | J50: =I51*$C51/12 -> 0 | K50: =J51*$C51/12 -> 0 | L50: =K51*$C51/12 -> 0 | M50: =L51*$C51/12 -> 0 | N50: =M51*$C51/12 -> 0 | O50: =N51*$C51/12 -> 0 | P50: =O51*$C51/12 -> 0 | Q50: =SUM(E50:P50) -> 0 | R50: =P50*12 -> 0 | T50: =IF(B51="データなし","〇"," ") -> 〇
B51: =①借入条件表!L42 -> データなし | C51: =①借入条件表!AN42+①借入条件表!AR42 -> 0 | D51: 残高 | E51: =C50-E49 -> 0 | F51: =E51-F49 -> 0 | G51: =F51-G49 -> 0 | H51: =G51-H49 -> 0 | I51: =H51-I49 -> 0 | J51: =I51-J49 -> 0 | K51: =J51-K49 -> 0 | L51: =K51-L49 -> 0 | M51: =L51-M49 -> 0 | N51: =M51-N49 -> 0 | O51: =N51-O49 -> 0 | P51: =O51-P49 -> 0 | Q51: =P51 -> 0 | R51: =IF(P51>Q49,P51-Q49,0) -> 0 | T51: =IF(B51="データなし","〇"," ") -> 〇
B52: =①借入条件表!Q44 -> 0 | C52: =①借入条件表!W44 -> 0 | D52: 元金返済 | E52: =①借入条件表!$AH44 -> 0 | F52: =IF(E54<=0,0,IF(E54<E52,E54,①借入条件表!$AH44)) -> 0 | G52: =IF(F54<=0,0,IF(F54<F52,F54,①借入条件表!$AH44)) -> 0 | H52: =IF(G54<=0,0,IF(G54<G52,G54,①借入条件表!$AH44)) -> 0 | I52: =IF(H54<=0,0,IF(H54<H52,H54,①借入条件表!$AH44)) -> 0 | J52: =IF(I54<=0,0,IF(I54<I52,I54,①借入条件表!$AH44)) -> 0 | K52: =IF(J54<=0,0,IF(J54<J52,J54,①借入条件表!$AH44)) -> 0 | L52: =IF(K54<=0,0,IF(K54<K52,K54,①借入条件表!$AH44)) -> 0 | M52: =IF(L54<=0,0,IF(L54<L52,L54,①借入条件表!$AH44)) -> 0 | N52: =IF(M54<=0,0,IF(M54<M52,M54,①借入条件表!$AH44)) -> 0 | O52: =IF(N54<=0,0,IF(N54<N52,N54,①借入条件表!$AH44)) -> 0 | P52: =IF(O54<=0,0,IF(O54<O52,O54,①借入条件表!$AH44)) -> 0 | Q52: =SUM(E52:P52) -> 0 | R52: =IF(P54>Q52,P52*12,P54) -> 0 | T52: =IF(B54="データなし","〇"," ") -> 〇
B53: =①借入条件表!Q45 -> 0 | C53: =①借入条件表!W45 -> 0 | D53: 利息 | E53: =C53*C54/12 -> 0 | F53: =E54*$C54/12 -> 0 | G53: =F54*$C54/12 -> 0 | H53: =G54*$C54/12 -> 0 | I53: =H54*$C54/12 -> 0 | J53: =I54*$C54/12 -> 0 | K53: =J54*$C54/12 -> 0 | L53: =K54*$C54/12 -> 0 | M53: =L54*$C54/12 -> 0 | N53: =M54*$C54/12 -> 0 | O53: =N54*$C54/12 -> 0 | P53: =O54*$C54/12 -> 0 | Q53: =SUM(E53:P53) -> 0 | R53: =P53*12 -> 0 | T53: =IF(B54="データなし","〇"," ") -> 〇
B54: =①借入条件表!L44 -> データなし | C54: =①借入条件表!AN44+①借入条件表!AR44 -> 0 | D54: 残高 | E54: =C53-E52 -> 0 | F54: =E54-F52 -> 0 | G54: =F54-G52 -> 0 | H54: =G54-H52 -> 0 | I54: =H54-I52 -> 0 | J54: =I54-J52 -> 0 | K54: =J54-K52 -> 0 | L54: =K54-L52 -> 0 | M54: =L54-M52 -> 0 | N54: =M54-N52 -> 0 | O54: =N54-O52 -> 0 | P54: =O54-P52 -> 0 | Q54: =P54 -> 0 | R54: =IF(P54>Q52,P54-Q52,0) -> 0 | T54: =IF(B54="データなし","〇"," ") -> 〇
B55: =①借入条件表!Q46 -> 0 | C55: =①借入条件表!W46 -> 0 | D55: 元金返済 | E55: =①借入条件表!$AH46 -> 0 | F55: =IF(E57<=0,0,IF(E57<E55,E57,①借入条件表!$AH46)) -> 0 | G55: =IF(F57<=0,0,IF(F57<F55,F57,①借入条件表!$AH46)) -> 0 | H55: =IF(G57<=0,0,IF(G57<G55,G57,①借入条件表!$AH46)) -> 0 | I55: =IF(H57<=0,0,IF(H57<H55,H57,①借入条件表!$AH46)) -> 0 | J55: =IF(I57<=0,0,IF(I57<I55,I57,①借入条件表!$AH46)) -> 0 | K55: =IF(J57<=0,0,IF(J57<J55,J57,①借入条件表!$AH46)) -> 0 | L55: =IF(K57<=0,0,IF(K57<K55,K57,①借入条件表!$AH46)) -> 0 | M55: =IF(L57<=0,0,IF(L57<L55,L57,①借入条件表!$AH46)) -> 0 | N55: =IF(M57<=0,0,IF(M57<M55,M57,①借入条件表!$AH46)) -> 0 | O55: =IF(N57<=0,0,IF(N57<N55,N57,①借入条件表!$AH46)) -> 0 | P55: =IF(O57<=0,0,IF(O57<O55,O57,①借入条件表!$AH46)) -> 0 | Q55: =SUM(E55:P55) -> 0 | R55: =IF(P57>Q55,P55*12,P57) -> 0 | T55: =IF(B57="データなし","〇"," ") -> 〇
B56: =①借入条件表!Q47 -> 0 | C56: =①借入条件表!W47 -> 0 | D56: 利息 | E56: =$C56*$C57/12 -> 0 | F56: =E57*$C57/12 -> 0 | G56: =F57*$C57/12 -> 0 | H56: =G57*$C57/12 -> 0 | I56: =H57*$C57/12 -> 0 | J56: =I57*$C57/12 -> 0 | K56: =J57*$C57/12 -> 0 | L56: =K57*$C57/12 -> 0 | M56: =L57*$C57/12 -> 0 | N56: =M57*$C57/12 -> 0 | O56: =N57*$C57/12 -> 0 | P56: =O57*$C57/12 -> 0 | Q56: =SUM(E56:P56) -> 0 | R56: =P56*12 -> 0 | T56: =IF(B57="データなし","〇"," ") -> 〇
B57: =①借入条件表!L46 -> データなし | C57: =①借入条件表!AN46+①借入条件表!AR46 -> 0 | D57: 残高 | E57: =C56-E55 -> 0 | F57: =E57-F55 -> 0 | G57: =F57-G55 -> 0 | H57: =G57-H55 -> 0 | I57: =H57-I55 -> 0 | J57: =I57-J55 -> 0 | K57: =J57-K55 -> 0 | L57: =K57-L55 -> 0 | M57: =L57-M55 -> 0 | N57: =M57-N55 -> 0 | O57: =N57-O55 -> 0 | P57: =O57-P55 -> 0 | Q57: =P57 -> 0 | R57: =IF(P57>Q55,P57-Q55,0) -> 0 | T57: =IF(B57="データなし","〇"," ") -> 〇
B58: 小計 | C58: =C43+C46+C49+C52+C55 -> 0 | D58: 元金返済 | E58: =E43+E46+E49+E52+E55 -> 0 | F58: =F43+F46+F49+F52+F55 -> 0 | G58: =G43+G46+G49+G52+G55 -> 0 | H58: 0 | I58: 0 | J58: 0 | K58: 0 | L58: 0 | M58: 0 | N58: 0 | O58: 0 | P58: =P43+P46+P49+P52+P55 -> 0 | Q58: =SUM(E58:P58) -> 0 | R58: =+Q58 -> 0 | T58: =IF(C59>0,"","〇 ") -> 〇
C59: =C44+C47+C50+C53+C56 -> 0 | D59: 利息 | E59: =E44+E47+E50+E53+E56 -> 0 | F59: =F44+F47+F50+F53+F56 -> 0 | G59: 0 | H59: 0 | I59: 0 | J59: 0 | K59: 0 | L59: 0 | M59: 0 | N59: 0 | O59: 0 | P59: =P44+P47+P50+P53+P56 -> 0 | Q59: 0 | R59: =Q59 -> 0 | T59: =IF(C59>0,"","〇 ") -> 〇
D60: 残高 | E60: =E45+E48+E51+E54+E57 -> 0 | F60: =F45+F48+F51+F54+F57 -> 0 | G60: 0 | H60: 0 | I60: 0 | J60: 0 | K60: 0 | L60: 0 | M60: 0 | N60: 0 | O60: 0 | P60: =P45+P48+P51+P54+P57 -> 0 | Q60: =P60 -> 0 | R60: =Q60-R58 -> 0 | T60: =IF(C59>0,"","〇 ") -> 〇
A61: =①借入条件表!E54 -> 0 | B61: =①借入条件表!Q54 -> 0 | C61: =①借入条件表!W54 -> 0 | D61: 元金返済 | E61: =①借入条件表!$AH54 -> 0 | F61: =IF(E63<=0,0,IF(E63<E61,E63,①借入条件表!$AH54)) -> 0 | G61: =IF(F63<=0,0,IF(F63<F61,F63,①借入条件表!$AH54)) -> 0 | H61: =IF(G63<=0,0,IF(G63<G61,G63,①借入条件表!$AH54)) -> 0 | I61: =IF(H63<=0,0,IF(H63<H61,H63,①借入条件表!$AH54)) -> 0 | J61: =IF(I63<=0,0,IF(I63<I61,I63,①借入条件表!$AH54)) -> 0 | K61: =IF(J63<=0,0,IF(J63<J61,J63,①借入条件表!$AH54)) -> 0 | L61: =IF(K63<=0,0,IF(K63<K61,K63,①借入条件表!$AH54)) -> 0 | M61: =IF(L63<=0,0,IF(L63<L61,L63,①借入条件表!$AH54)) -> 0 | N61: =IF(M63<=0,0,IF(M63<M61,M63,①借入条件表!$AH54)) -> 0 | O61: =IF(N63<=0,0,IF(N63<N61,N63,①借入条件表!$AH54)) -> 0 | P61: =IF(O63<=0,0,IF(O63<O61,O63,①借入条件表!$AH54)) -> 0 | Q61: =SUM(E61:P61) -> 0 | R61: =IF(P63>Q61,P61*12,P63) -> 0 | T61: =IF(B63="データなし","〇"," ") -> 〇
B62: =①借入条件表!Q55 -> 0 | C62: =①借入条件表!W55 -> 0 | D62: 利息 | E62: =C62*C63/12 -> 0 | F62: =E63*$C63/12 -> 0 | G62: =F63*$C63/12 -> 0 | H62: =G63*$C63/12 -> 0 | I62: =H63*$C63/12 -> 0 | J62: =I63*$C63/12 -> 0 | K62: =J63*$C63/12 -> 0 | L62: =K63*$C63/12 -> 0 | M62: =L63*$C63/12 -> 0 | N62: =M63*$C63/12 -> 0 | O62: =N63*$C63/12 -> 0 | P62: =O63*$C63/12 -> 0 | Q62: =SUM(E62:P62) -> 0 | R62: =P62*12 -> 0 | T62: =IF(B63="データなし","〇"," ") -> 〇
B63: =①借入条件表!L54 -> データなし | C63: =①借入条件表!AN54+①借入条件表!AR54 -> 0 | D63: 残高 | E63: =C62-E61 -> 0 | F63: =E63-F61 -> 0 | G63: =F63-G61 -> 0 | H63: =G63-H61 -> 0 | I63: =H63-I61 -> 0 | J63: =I63-J61 -> 0 | K63: =J63-K61 -> 0 | L63: =K63-L61 -> 0 | M63: =L63-M61 -> 0 | N63: =M63-N61 -> 0 | O63: =N63-O61 -> 0 | P63: =O63-P61 -> 0 | Q63: =P63 -> 0 | R63: =IF(P63>Q61,P63-Q61,0) -> 0 | T63: =IF(B63="データなし","〇"," ") -> 〇
B64: =①借入条件表!Q56 -> 0 | C64: =①借入条件表!W56 -> 0 | D64: 元金返済 | E64: =①借入条件表!$AH56 -> 0 | F64: =IF(E66<=0,0,IF(E66<E64,E66,①借入条件表!$AH56)) -> 0 | G64: =IF(F66<=0,0,IF(F66<F64,F66,①借入条件表!$AH56)) -> 0 | H64: =IF(G66<=0,0,IF(G66<G64,G66,①借入条件表!$AH56)) -> 0 | I64: =IF(H66<=0,0,IF(H66<H64,H66,①借入条件表!$AH56)) -> 0 | J64: =IF(I66<=0,0,IF(I66<I64,I66,①借入条件表!$AH56)) -> 0 | K64: =IF(J66<=0,0,IF(J66<J64,J66,①借入条件表!$AH56)) -> 0 | L64: =IF(K66<=0,0,IF(K66<K64,K66,①借入条件表!$AH56)) -> 0 | M64: =IF(L66<=0,0,IF(L66<L64,L66,①借入条件表!$AH56)) -> 0 | N64: =IF(M66<=0,0,IF(M66<M64,M66,①借入条件表!$AH56)) -> 0 | O64: =IF(N66<=0,0,IF(N66<N64,N66,①借入条件表!$AH56)) -> 0 | P64: =IF(O66<=0,0,IF(O66<O64,O66,①借入条件表!$AH56)) -> 0 | Q64: =SUM(E64:P64) -> 0 | R64: =IF(P66>Q64,P64*12,P66) -> 0 | T64: =IF(B66="データなし","〇"," ") -> 〇
B65: =①借入条件表!Q57 -> 0 | C65: =①借入条件表!W57 -> 0 | D65: 利息 | E65: =C65*C66/12 -> 0 | F65: =E66*$C66/12 -> 0 | G65: =F66*$C66/12 -> 0 | H65: =G66*$C66/12 -> 0 | I65: =H66*$C66/12 -> 0 | J65: =I66*$C66/12 -> 0 | K65: =J66*$C66/12 -> 0 | L65: =K66*$C66/12 -> 0 | M65: =L66*$C66/12 -> 0 | N65: =M66*$C66/12 -> 0 | O65: =N66*$C66/12 -> 0 | P65: =O66*$C66/12 -> 0 | Q65: =SUM(E65:P65) -> 0 | R65: =P65*12 -> 0 | T65: =IF(B66="データなし","〇"," ") -> 〇
B66: =①借入条件表!L56 -> データなし | C66: =①借入条件表!AN56+①借入条件表!AR56 -> 0 | D66: 残高 | E66: =C65-E64 -> 0 | F66: =E66-F64 -> 0 | G66: =F66-G64 -> 0 | H66: =G66-H64 -> 0 | I66: =H66-I64 -> 0 | J66: =I66-J64 -> 0 | K66: =J66-K64 -> 0 | L66: =K66-L64 -> 0 | M66: =L66-M64 -> 0 | N66: =M66-N64 -> 0 | O66: =N66-O64 -> 0 | P66: =O66-P64 -> 0 | Q66: =P66 -> 0 | R66: =IF(P66>Q64,P66-Q64,0) -> 0 | T66: =IF(B66="データなし","〇"," ") -> 〇
B67: =①借入条件表!Q58 -> 0 | C67: =①借入条件表!W58 -> 0 | D67: 元金返済 | E67: =①借入条件表!$AH58 -> 0 | F67: =IF(E69<=0,0,IF(E69<E67,E69,①借入条件表!$AH58)) -> 0 | G67: =IF(F69<=0,0,IF(F69<F67,F69,①借入条件表!$AH58)) -> 0 | H67: =IF(G69<=0,0,IF(G69<G67,G69,①借入条件表!$AH58)) -> 0 | I67: =IF(H69<=0,0,IF(H69<H67,H69,①借入条件表!$AH58)) -> 0 | J67: =IF(I69<=0,0,IF(I69<I67,I69,①借入条件表!$AH58)) -> 0 | K67: =IF(J69<=0,0,IF(J69<J67,J69,①借入条件表!$AH58)) -> 0 | L67: =IF(K69<=0,0,IF(K69<K67,K69,①借入条件表!$AH58)) -> 0 | M67: =IF(L69<=0,0,IF(L69<L67,L69,①借入条件表!$AH58)) -> 0 | N67: =IF(M69<=0,0,IF(M69<M67,M69,①借入条件表!$AH58)) -> 0 | O67: =IF(N69<=0,0,IF(N69<N67,N69,①借入条件表!$AH58)) -> 0 | P67: =IF(O69<=0,0,IF(O69<O67,O69,①借入条件表!$AH58)) -> 0 | Q67: =SUM(E67:P67) -> 0 | R67: =IF(P69>Q67,P67*12,P69) -> 0 | T67: =IF(B69="データなし","〇"," ") -> 〇
B68: =①借入条件表!Q59 -> 0 | C68: =①借入条件表!W59 -> 0 | D68: 利息 | E68: =C68*C69/12 -> 0 | F68: =E69*$C69/12 -> 0 | G68: =F69*$C69/12 -> 0 | H68: =G69*$C69/12 -> 0 | I68: =H69*$C69/12 -> 0 | J68: =I69*$C69/12 -> 0 | K68: =J69*$C69/12 -> 0 | L68: =K69*$C69/12 -> 0 | M68: =L69*$C69/12 -> 0 | N68: =M69*$C69/12 -> 0 | O68: =N69*$C69/12 -> 0 | P68: =O69*$C69/12 -> 0 | Q68: =SUM(E68:P68) -> 0 | R68: =P68*12 -> 0 | T68: =IF(B69="データなし","〇"," ") -> 〇
B69: =①借入条件表!L58 -> データなし | C69: =①借入条件表!AN58+①借入条件表!AR58 -> 0 | D69: 残高 | E69: =C68-E67 -> 0 | F69: =E69-F67 -> 0 | G69: =F69-G67 -> 0 | H69: =G69-H67 -> 0 | I69: =H69-I67 -> 0 | J69: =I69-J67 -> 0 | K69: =J69-K67 -> 0 | L69: =K69-L67 -> 0 | M69: =L69-M67 -> 0 | N69: =M69-N67 -> 0 | O69: =N69-O67 -> 0 | P69: =O69-P67 -> 0 | Q69: =P69 -> 0 | R69: =IF(P69>Q67,P69-Q67,0) -> 0 | T69: =IF(B69="データなし","〇"," ") -> 〇
B70: =①借入条件表!Q60 -> 0 | C70: =①借入条件表!W60 -> 0 | D70: 元金返済 | E70: =①借入条件表!$AH60 -> 0 | F70: =IF(E72<=0,0,IF(E72<E70,E72,①借入条件表!$AH60)) -> 0 | G70: =IF(F72<=0,0,IF(F72<F70,F72,①借入条件表!$AH60)) -> 0 | H70: =IF(G72<=0,0,IF(G72<G70,G72,①借入条件表!$AH60)) -> 0 | I70: =IF(H72<=0,0,IF(H72<H70,H72,①借入条件表!$AH60)) -> 0 | J70: =IF(I72<=0,0,IF(I72<I70,I72,①借入条件表!$AH60)) -> 0 | K70: =IF(J72<=0,0,IF(J72<J70,J72,①借入条件表!$AH60)) -> 0 | L70: =IF(K72<=0,0,IF(K72<K70,K72,①借入条件表!$AH60)) -> 0 | M70: =IF(L72<=0,0,IF(L72<L70,L72,①借入条件表!$AH60)) -> 0 | N70: =IF(M72<=0,0,IF(M72<M70,M72,①借入条件表!$AH60)) -> 0 | O70: =IF(N72<=0,0,IF(N72<N70,N72,①借入条件表!$AH60)) -> 0 | P70: =IF(O72<=0,0,IF(O72<O70,O72,①借入条件表!$AH60)) -> 0 | Q70: =SUM(E70:P70) -> 0 | R70: =IF(P72>Q70,P70*12,P72) -> 0 | T70: =IF(B72="データなし","〇"," ") -> 〇
B71: =①借入条件表!Q61 -> 0 | C71: =①借入条件表!W61 -> 0 | D71: 利息 | E71: =C71*C72/12 -> 0 | F71: =E72*$C72/12 -> 0 | G71: =F72*$C72/12 -> 0 | H71: =G72*$C72/12 -> 0 | I71: =H72*$C72/12 -> 0 | J71: =I72*$C72/12 -> 0 | K71: =J72*$C72/12 -> 0 | L71: =K72*$C72/12 -> 0 | M71: =L72*$C72/12 -> 0 | N71: =M72*$C72/12 -> 0 | O71: =N72*$C72/12 -> 0 | P71: =O72*$C72/12 -> 0 | Q71: =SUM(E71:P71) -> 0 | R71: =P71*12 -> 0 | T71: =IF(B72="データなし","〇"," ") -> 〇
B72: =①借入条件表!L60 -> データなし | C72: =①借入条件表!AN60+①借入条件表!AR60 -> 0 | D72: 残高 | E72: =C71-E70 -> 0 | F72: =E72-F70 -> 0 | G72: =F72-G70 -> 0 | H72: =G72-H70 -> 0 | I72: =H72-I70 -> 0 | J72: =I72-J70 -> 0 | K72: =J72-K70 -> 0 | L72: =K72-L70 -> 0 | M72: =L72-M70 -> 0 | N72: =M72-N70 -> 0 | O72: =N72-O70 -> 0 | P72: =O72-P70 -> 0 | Q72: =P72 -> 0 | R72: =IF(P72>Q70,P72-Q70,0) -> 0 | T72: =IF(B72="データなし","〇"," ") -> 〇
B73: =①借入条件表!Q62 -> 0 | C73: =①借入条件表!W62 -> 0 | D73: 元金返済 | E73: =①借入条件表!$AH62 -> 0 | F73: =IF(E75<=0,0,IF(E75<E73,E75,①借入条件表!$AH62)) -> 0 | G73: =IF(F75<=0,0,IF(F75<F73,F75,①借入条件表!$AH62)) -> 0 | H73: =IF(G75<=0,0,IF(G75<G73,G75,①借入条件表!$AH62)) -> 0 | I73: =IF(H75<=0,0,IF(H75<H73,H75,①借入条件表!$AH62)) -> 0 | J73: =IF(I75<=0,0,IF(I75<I73,I75,①借入条件表!$AH62)) -> 0 | K73: =IF(J75<=0,0,IF(J75<J73,J75,①借入条件表!$AH62)) -> 0 | L73: =IF(K75<=0,0,IF(K75<K73,K75,①借入条件表!$AH62)) -> 0 | M73: =IF(L75<=0,0,IF(L75<L73,L75,①借入条件表!$AH62)) -> 0 | N73: =IF(M75<=0,0,IF(M75<M73,M75,①借入条件表!$AH62)) -> 0 | O73: =IF(N75<=0,0,IF(N75<N73,N75,①借入条件表!$AH62)) -> 0 | P73: =IF(O75<=0,0,IF(O75<O73,O75,①借入条件表!$AH62)) -> 0 | Q73: =SUM(E73:P73) -> 0 | R73: =IF(P75>Q73,P73*12,P75) -> 0 | T73: =IF(B75="データなし","〇"," ") -> 〇
B74: =①借入条件表!Q63 -> 0 | C74: =①借入条件表!W63 -> 0 | D74: 利息 | E74: =$C74*$C75/12 -> 0 | F74: =E75*$C75/12 -> 0 | G74: =F75*$C75/12 -> 0 | H74: =G75*$C75/12 -> 0 | I74: =H75*$C75/12 -> 0 | J74: =I75*$C75/12 -> 0 | K74: =J75*$C75/12 -> 0 | L74: =K75*$C75/12 -> 0 | M74: =L75*$C75/12 -> 0 | N74: =M75*$C75/12 -> 0 | O74: =N75*$C75/12 -> 0 | P74: =O75*$C75/12 -> 0 | Q74: =SUM(E74:P74) -> 0 | R74: =P74*12 -> 0 | T74: =IF(B75="データなし","〇"," ") -> 〇
B75: =①借入条件表!L62 -> データなし | C75: =①借入条件表!AN62+①借入条件表!AR62 -> 0 | D75: 残高 | E75: =C74-E73 -> 0 | F75: =E75-F73 -> 0 | G75: =F75-G73 -> 0 | H75: =G75-H73 -> 0 | I75: =H75-I73 -> 0 | J75: =I75-J73 -> 0 | K75: =J75-K73 -> 0 | L75: =K75-L73 -> 0 | M75: =L75-M73 -> 0 | N75: =M75-N73 -> 0 | O75: =N75-O73 -> 0 | P75: =O75-P73 -> 0 | Q75: =P75 -> 0 | R75: =IF(P75>Q73,P75-Q73,0) -> 0 | T75: =IF(B75="データなし","〇"," ") -> 〇
B76: 小計 | C76: =C61+C64+C67+C70+C73 -> 0 | D76: 元金返済 | E76: =E61+E64+E67+E70+E73 -> 0 | F76: =F61+F64+F67+F70+F73 -> 0 | G76: =G61+G64+G67+G70+G73 -> 0 | H76: 0 | I76: 0 | J76: 0 | K76: 0 | L76: 0 | M76: 0 | N76: 0 | O76: 0 | P76: =P61+P64+P67+P70+P73 -> 0 | Q76: =SUM(E76:P76) -> 0 | R76: =+Q76 -> 0 | T76: =IF(C77>0,"","〇 ") -> 〇
C77: =C62+C65+C68+C71+C74 -> 0 | D77: 利息 | E77: =E62+E65+E68+E71+E74 -> 0 | F77: =F62+F65+F68+F71+F74 -> 0 | G77: 0 | H77: 0 | I77: 0 | J77: 0 | K77: 0 | L77: 0 | M77: 0 | N77: 0 | O77: 0 | P77: =P62+P65+P68+P71+P74 -> 0 | Q77: 0 | R77: =Q77 -> 0 | T77: =IF(C77>0,"","〇 ") -> 〇
D78: 残高 | E78: =E63+E66+E69+E72+E75 -> 0 | F78: =F63+F66+F69+F72+F75 -> 0 | G78: 0 | H78: 0 | I78: 0 | J78: 0 | K78: 0 | L78: 0 | M78: 0 | N78: 0 | O78: 0 | P78: =P63+P66+P69+P72+P75 -> 0 | Q78: =P78 -> 0 | R78: =Q78-R76 -> 0 | T78: =IF(C77>0,"","〇 ") -> 〇
A79: =①借入条件表!E70 -> 0 | B79: =①借入条件表!Q70 -> 0 | C79: =①借入条件表!W70 -> 0 | D79: 元金返済 | E79: =①借入条件表!$AH70 -> 0 | F79: =IF(E81<=0,0,IF(E81<E79,E81,①借入条件表!$AH70)) -> 0 | G79: =IF(F81<=0,0,IF(F81<F79,F81,①借入条件表!$AH70)) -> 0 | H79: =IF(G81<=0,0,IF(G81<G79,G81,①借入条件表!$AH70)) -> 0 | I79: =IF(H81<=0,0,IF(H81<H79,H81,①借入条件表!$AH70)) -> 0 | J79: =IF(I81<=0,0,IF(I81<I79,I81,①借入条件表!$AH70)) -> 0 | K79: =IF(J81<=0,0,IF(J81<J79,J81,①借入条件表!$AH70)) -> 0 | L79: =IF(K81<=0,0,IF(K81<K79,K81,①借入条件表!$AH70)) -> 0 | M79: =IF(L81<=0,0,IF(L81<L79,L81,①借入条件表!$AH70)) -> 0 | N79: =IF(M81<=0,0,IF(M81<M79,M81,①借入条件表!$AH70)) -> 0 | O79: =IF(N81<=0,0,IF(N81<N79,N81,①借入条件表!$AH70)) -> 0 | P79: =IF(O81<=0,0,IF(O81<O79,O81,①借入条件表!$AH70)) -> 0 | Q79: =SUM(E79:P79) -> 0 | R79: =IF(P81>Q79,P79*12,P81) -> 0 | T79: =IF(B81="データなし","〇"," ") -> 〇
B80: =①借入条件表!Q71 -> 0 | C80: =①借入条件表!W71 -> 0 | D80: 利息 | E80: =C80*C81/12 -> 0 | F80: =E81*$C81/12 -> 0 | G80: =F81*$C81/12 -> 0 | H80: =G81*$C81/12 -> 0 | I80: =H81*$C81/12 -> 0 | J80: =I81*$C81/12 -> 0 | K80: =J81*$C81/12 -> 0 | L80: =K81*$C81/12 -> 0 | M80: =L81*$C81/12 -> 0 | N80: =M81*$C81/12 -> 0 | O80: =N81*$C81/12 -> 0 | P80: =O81*$C81/12 -> 0 | Q80: =SUM(E80:P80) -> 0 | R80: =P80*12 -> 0 | T80: =IF(B81="データなし","〇"," ") -> 〇
B81: =①借入条件表!L70 -> データなし | C81: =①借入条件表!AN70+①借入条件表!AR70 -> 0 | D81: 残高 | E81: =C80-E79 -> 0 | F81: =E81-F79 -> 0 | G81: =F81-G79 -> 0 | H81: =G81-H79 -> 0 | I81: =H81-I79 -> 0 | J81: =I81-J79 -> 0 | K81: =J81-K79 -> 0 | L81: =K81-L79 -> 0 | M81: =L81-M79 -> 0 | N81: =M81-N79 -> 0 | O81: =N81-O79 -> 0 | P81: =O81-P79 -> 0 | Q81: =P81 -> 0 | R81: =IF(P81>Q79,P81-Q79,0) -> 0 | T81: =IF(B81="データなし","〇"," ") -> 〇
B82: =①借入条件表!Q72 -> 0 | C82: =①借入条件表!W72 -> 0 | D82: 元金返済 | E82: =①借入条件表!$AH72 -> 0 | F82: =IF(E84<=0,0,IF(E84<E82,E84,①借入条件表!$AH72)) -> 0 | G82: =IF(F84<=0,0,IF(F84<F82,F84,①借入条件表!$AH72)) -> 0 | H82: =IF(G84<=0,0,IF(G84<G82,G84,①借入条件表!$AH72)) -> 0 | I82: =IF(H84<=0,0,IF(H84<H82,H84,①借入条件表!$AH72)) -> 0 | J82: =IF(I84<=0,0,IF(I84<I82,I84,①借入条件表!$AH72)) -> 0 | K82: =IF(J84<=0,0,IF(J84<J82,J84,①借入条件表!$AH72)) -> 0 | L82: =IF(K84<=0,0,IF(K84<K82,K84,①借入条件表!$AH72)) -> 0 | M82: =IF(L84<=0,0,IF(L84<L82,L84,①借入条件表!$AH72)) -> 0 | N82: =IF(M84<=0,0,IF(M84<M82,M84,①借入条件表!$AH72)) -> 0 | O82: =IF(N84<=0,0,IF(N84<N82,N84,①借入条件表!$AH72)) -> 0 | P82: =IF(O84<=0,0,IF(O84<O82,O84,①借入条件表!$AH72)) -> 0 | Q82: =SUM(E82:P82) -> 0 | R82: =IF(P84>Q82,P82*12,P84) -> 0 | T82: =IF(B84="データなし","〇"," ") -> 〇
B83: =①借入条件表!Q73 -> 0 | C83: =①借入条件表!W73 -> 0 | D83: 利息 | E83: =C83*C84/12 -> 0 | F83: =E84*$C84/12 -> 0 | G83: =F84*$C84/12 -> 0 | H83: =G84*$C84/12 -> 0 | I83: =H84*$C84/12 -> 0 | J83: =I84*$C84/12 -> 0 | K83: =J84*$C84/12 -> 0 | L83: =K84*$C84/12 -> 0 | M83: =L84*$C84/12 -> 0 | N83: =M84*$C84/12 -> 0 | O83: =N84*$C84/12 -> 0 | P83: =O84*$C84/12 -> 0 | Q83: =SUM(E83:P83) -> 0 | R83: =P83*12 -> 0 | T83: =IF(B84="データなし","〇"," ") -> 〇
B84: =①借入条件表!L72 -> データなし | C84: =①借入条件表!AN72+①借入条件表!AR72 -> 0 | D84: 残高 | E84: =C83-E82 -> 0 | F84: =E84-F82 -> 0 | G84: =F84-G82 -> 0 | H84: =G84-H82 -> 0 | I84: =H84-I82 -> 0 | J84: =I84-J82 -> 0 | K84: =J84-K82 -> 0 | L84: =K84-L82 -> 0 | M84: =L84-M82 -> 0 | N84: =M84-N82 -> 0 | O84: =N84-O82 -> 0 | P84: =O84-P82 -> 0 | Q84: =P84 -> 0 | R84: =IF(P84>Q82,P84-Q82,0) -> 0 | T84: =IF(B84="データなし","〇"," ") -> 〇
B85: =①借入条件表!Q74 -> 0 | C85: =①借入条件表!W74 -> 0 | D85: 元金返済 | E85: =①借入条件表!$AH74 -> 0 | F85: =IF(E87<=0,0,IF(E87<E85,E87,①借入条件表!$AH74)) -> 0 | G85: =IF(F87<=0,0,IF(F87<F85,F87,①借入条件表!$AH74)) -> 0 | H85: =IF(G87<=0,0,IF(G87<G85,G87,①借入条件表!$AH74)) -> 0 | I85: =IF(H87<=0,0,IF(H87<H85,H87,①借入条件表!$AH74)) -> 0 | J85: =IF(I87<=0,0,IF(I87<I85,I87,①借入条件表!$AH74)) -> 0 | K85: =IF(J87<=0,0,IF(J87<J85,J87,①借入条件表!$AH74)) -> 0 | L85: =IF(K87<=0,0,IF(K87<K85,K87,①借入条件表!$AH74)) -> 0 | M85: =IF(L87<=0,0,IF(L87<L85,L87,①借入条件表!$AH74)) -> 0 | N85: =IF(M87<=0,0,IF(M87<M85,M87,①借入条件表!$AH74)) -> 0 | O85: =IF(N87<=0,0,IF(N87<N85,N87,①借入条件表!$AH74)) -> 0 | P85: =IF(O87<=0,0,IF(O87<O85,O87,①借入条件表!$AH74)) -> 0 | Q85: =SUM(E85:P85) -> 0 | R85: =IF(P87>Q85,P85*12,P87) -> 0 | T85: =IF(B87="データなし","〇"," ") -> 〇
B86: =①借入条件表!Q75 -> 0 | C86: =①借入条件表!W75 -> 0 | D86: 利息 | E86: =C86*C87/12 -> 0 | F86: =E87*$C87/12 -> 0 | G86: =F87*$C87/12 -> 0 | H86: =G87*$C87/12 -> 0 | I86: =H87*$C87/12 -> 0 | J86: =I87*$C87/12 -> 0 | K86: =J87*$C87/12 -> 0 | L86: =K87*$C87/12 -> 0 | M86: =L87*$C87/12 -> 0 | N86: =M87*$C87/12 -> 0 | O86: =N87*$C87/12 -> 0 | P86: =O87*$C87/12 -> 0 | Q86: =SUM(E86:P86) -> 0 | R86: =P86*12 -> 0 | T86: =IF(B87="データなし","〇"," ") -> 〇
B87: =①借入条件表!L74 -> データなし | C87: =①借入条件表!AN74+①借入条件表!AR74 -> 0 | D87: 残高 | E87: =C86-E85 -> 0 | F87: =E87-F85 -> 0 | G87: =F87-G85 -> 0 | H87: =G87-H85 -> 0 | I87: =H87-I85 -> 0 | J87: =I87-J85 -> 0 | K87: =J87-K85 -> 0 | L87: =K87-L85 -> 0 | M87: =L87-M85 -> 0 | N87: =M87-N85 -> 0 | O87: =N87-O85 -> 0 | P87: =O87-P85 -> 0 | Q87: =P87 -> 0 | R87: =IF(P87>Q85,P87-Q85,0) -> 0 | T87: =IF(B87="データなし","〇"," ") -> 〇
B88: =①借入条件表!Q76 -> 0 | C88: =①借入条件表!W76 -> 0 | D88: 元金返済 | E88: =①借入条件表!$AH76 -> 0 | F88: =IF(E90<=0,0,IF(E90<E88,E90,①借入条件表!$AH76)) -> 0 | G88: =IF(F90<=0,0,IF(F90<F88,F90,①借入条件表!$AH76)) -> 0 | H88: =IF(G90<=0,0,IF(G90<G88,G90,①借入条件表!$AH76)) -> 0 | I88: =IF(H90<=0,0,IF(H90<H88,H90,①借入条件表!$AH76)) -> 0 | J88: =IF(I90<=0,0,IF(I90<I88,I90,①借入条件表!$AH76)) -> 0 | K88: =IF(J90<=0,0,IF(J90<J88,J90,①借入条件表!$AH76)) -> 0 | L88: =IF(K90<=0,0,IF(K90<K88,K90,①借入条件表!$AH76)) -> 0 | M88: =IF(L90<=0,0,IF(L90<L88,L90,①借入条件表!$AH76)) -> 0 | N88: =IF(M90<=0,0,IF(M90<M88,M90,①借入条件表!$AH76)) -> 0 | O88: =IF(N90<=0,0,IF(N90<N88,N90,①借入条件表!$AH76)) -> 0 | P88: =IF(O90<=0,0,IF(O90<O88,O90,①借入条件表!$AH76)) -> 0 | Q88: =SUM(E88:P88) -> 0 | R88: =IF(P90>Q88,P88*12,P90) -> 0 | T88: =IF(B90="データなし","〇"," ") -> 〇
B89: =①借入条件表!Q77 -> 0 | C89: =①借入条件表!W77 -> 0 | D89: 利息 | E89: =C89*C90/12 -> 0 | F89: =E90*$C90/12 -> 0 | G89: =F90*$C90/12 -> 0 | H89: =G90*$C90/12 -> 0 | I89: =H90*$C90/12 -> 0 | J89: =I90*$C90/12 -> 0 | K89: =J90*$C90/12 -> 0 | L89: =K90*$C90/12 -> 0 | M89: =L90*$C90/12 -> 0 | N89: =M90*$C90/12 -> 0 | O89: =N90*$C90/12 -> 0 | P89: =O90*$C90/12 -> 0 | Q89: =SUM(E89:P89) -> 0 | R89: =P89*12 -> 0 | T89: =IF(B90="データなし","〇"," ") -> 〇
B90: =①借入条件表!L76 -> データなし | C90: =①借入条件表!AN76+①借入条件表!AR76 -> 0 | D90: 残高 | E90: =C89-E88 -> 0 | F90: =E90-F88 -> 0 | G90: =F90-G88 -> 0 | H90: =G90-H88 -> 0 | I90: =H90-I88 -> 0 | J90: =I90-J88 -> 0 | K90: =J90-K88 -> 0 | L90: =K90-L88 -> 0 | M90: =L90-M88 -> 0 | N90: =M90-N88 -> 0 | O90: =N90-O88 -> 0 | P90: =O90-P88 -> 0 | Q90: =P90 -> 0 | R90: =IF(P90>Q88,P90-Q88,0) -> 0 | T90: =IF(B90="データなし","〇"," ") -> 〇
B91: =①借入条件表!Q78 -> 0 | C91: =①借入条件表!W78 -> 0 | D91: 元金返済 | E91: =①借入条件表!$AH78 -> 0 | F91: =IF(E93<=0,0,IF(E93<E91,E93,①借入条件表!$AH78)) -> 0 | G91: =IF(F93<=0,0,IF(F93<F91,F93,①借入条件表!$AH78)) -> 0 | H91: =IF(G93<=0,0,IF(G93<G91,G93,①借入条件表!$AH78)) -> 0 | I91: =IF(H93<=0,0,IF(H93<H91,H93,①借入条件表!$AH78)) -> 0 | J91: =IF(I93<=0,0,IF(I93<I91,I93,①借入条件表!$AH78)) -> 0 | K91: =IF(J93<=0,0,IF(J93<J91,J93,①借入条件表!$AH78)) -> 0 | L91: =IF(K93<=0,0,IF(K93<K91,K93,①借入条件表!$AH78)) -> 0 | M91: =IF(L93<=0,0,IF(L93<L91,L93,①借入条件表!$AH78)) -> 0 | N91: =IF(M93<=0,0,IF(M93<M91,M93,①借入条件表!$AH78)) -> 0 | O91: =IF(N93<=0,0,IF(N93<N91,N93,①借入条件表!$AH78)) -> 0 | P91: =IF(O93<=0,0,IF(O93<O91,O93,①借入条件表!$AH78)) -> 0 | Q91: =SUM(E91:P91) -> 0 | R91: =IF(P93>Q91,P91*12,P93) -> 0 | T91: =IF(B93="データなし","〇"," ") -> 〇
B92: =①借入条件表!Q79 -> 0 | C92: =①借入条件表!W79 -> 0 | D92: 利息 | E92: =$C92*$C93/12 -> 0 | F92: =E93*$C93/12 -> 0 | G92: =F93*$C93/12 -> 0 | H92: =G93*$C93/12 -> 0 | I92: =H93*$C93/12 -> 0 | J92: =I93*$C93/12 -> 0 | K92: =J93*$C93/12 -> 0 | L92: =K93*$C93/12 -> 0 | M92: =L93*$C93/12 -> 0 | N92: =M93*$C93/12 -> 0 | O92: =N93*$C93/12 -> 0 | P92: =O93*$C93/12 -> 0 | Q92: =SUM(E92:P92) -> 0 | R92: =P92*12 -> 0 | T92: =IF(B93="データなし","〇"," ") -> 〇
B93: =①借入条件表!L78 -> データなし | C93: =①借入条件表!AN78+①借入条件表!AR78 -> 0 | D93: 残高 | E93: =C92-E91 -> 0 | F93: =E93-F91 -> 0 | G93: =F93-G91 -> 0 | H93: =G93-H91 -> 0 | I93: =H93-I91 -> 0 | J93: =I93-J91 -> 0 | K93: =J93-K91 -> 0 | L93: =K93-L91 -> 0 | M93: =L93-M91 -> 0 | N93: =M93-N91 -> 0 | O93: =N93-O91 -> 0 | P93: =O93-P91 -> 0 | Q93: =P93 -> 0 | R93: =IF(P93>Q91,P93-Q91,0) -> 0 | T93: =IF(B93="データなし","〇"," ") -> 〇
B94: 小計 | C94: =C79+C82+C85+C88+C91 -> 0 | D94: 元金返済 | E94: =E79+E82+E85+E88+E91 -> 0 | F94: =F79+F82+F85+F88+F91 -> 0 | G94: =G79+G82+G85+G88+G91 -> 0 | H94: 0 | I94: 0 | J94: 0 | K94: 0 | L94: 0 | M94: 0 | N94: 0 | O94: 0 | P94: =P79+P82+P85+P88+P91 -> 0 | Q94: =SUM(E94:P94) -> 0 | R94: =+Q94 -> 0 | T94: =IF(C95>0,"","〇 ") -> 〇
C95: =C80+C83+C86+C89+C92 -> 0 | D95: 利息 | E95: =E80+E83+E86+E89+E92 -> 0 | F95: =F80+F83+F86+F89+F92 -> 0 | G95: 0 | H95: 0 | I95: 0 | J95: 0 | K95: 0 | L95: 0 | M95: 0 | N95: 0 | O95: 0 | P95: =P80+P83+P86+P89+P92 -> 0 | Q95: 0 | R95: =Q95 -> 0 | T95: =IF(C95>0,"","〇 ") -> 〇
D96: 残高 | E96: =E81+E84+E87+E90+E93 -> 0 | F96: =F81+F84+F87+F90+F93 -> 0 | G96: 0 | H96: 0 | I96: 0 | J96: 0 | K96: 0 | L96: 0 | M96: 0 | N96: 0 | O96: 0 | P96: =P81+P84+P87+P90+P93 -> 0 | Q96: =P96 -> 0 | R96: =Q96-R94 -> 0 | T96: =IF(C95>0,"","〇 ") -> 〇
A97: =①借入条件表!E86 -> 0 | B97: =①借入条件表!Q86 -> 0 | C97: =①借入条件表!W86 -> 0 | D97: 元金返済 | E97: =①借入条件表!$AH86 -> 0 | F97: =IF(E99<=0,0,IF(E99<E97,E99,①借入条件表!$AH86)) -> 0 | G97: =IF(F99<=0,0,IF(F99<F97,F99,①借入条件表!$AH86)) -> 0 | H97: =IF(G99<=0,0,IF(G99<G97,G99,①借入条件表!$AH86)) -> 0 | I97: =IF(H99<=0,0,IF(H99<H97,H99,①借入条件表!$AH86)) -> 0 | J97: =IF(I99<=0,0,IF(I99<I97,I99,①借入条件表!$AH86)) -> 0 | K97: =IF(J99<=0,0,IF(J99<J97,J99,①借入条件表!$AH86)) -> 0 | L97: =IF(K99<=0,0,IF(K99<K97,K99,①借入条件表!$AH86)) -> 0 | M97: =IF(L99<=0,0,IF(L99<L97,L99,①借入条件表!$AH86)) -> 0 | N97: =IF(M99<=0,0,IF(M99<M97,M99,①借入条件表!$AH86)) -> 0 | O97: =IF(N99<=0,0,IF(N99<N97,N99,①借入条件表!$AH86)) -> 0 | P97: =IF(O99<=0,0,IF(O99<O97,O99,①借入条件表!$AH86)) -> 0 | Q97: =SUM(E97:P97) -> 0 | R97: =IF(P99>Q97,P97*12,P99) -> 0 | T97: =IF(B99="データなし","〇"," ") -> 〇
B98: =①借入条件表!Q87 -> 0 | C98: =①借入条件表!W87 -> 0 | D98: 利息 | E98: =C98*C99/12 -> 0 | F98: =E99*$C99/12 -> 0 | G98: =F99*$C99/12 -> 0 | H98: =G99*$C99/12 -> 0 | I98: =H99*$C99/12 -> 0 | J98: =I99*$C99/12 -> 0 | K98: =J99*$C99/12 -> 0 | L98: =K99*$C99/12 -> 0 | M98: =L99*$C99/12 -> 0 | N98: =M99*$C99/12 -> 0 | O98: =N99*$C99/12 -> 0 | P98: =O99*$C99/12 -> 0 | Q98: =SUM(E98:P98) -> 0 | R98: =P98*12 -> 0 | T98: =IF(B99="データなし","〇"," ") -> 〇
B99: =①借入条件表!L86 -> データなし | C99: =①借入条件表!AN86+①借入条件表!AR86 -> 0 | D99: 残高 | E99: =C98-E97 -> 0 | F99: =E99-F97 -> 0 | G99: =F99-G97 -> 0 | H99: =G99-H97 -> 0 | I99: =H99-I97 -> 0 | J99: =I99-J97 -> 0 | K99: =J99-K97 -> 0 | L99: =K99-L97 -> 0 | M99: =L99-M97 -> 0 | N99: =M99-N97 -> 0 | O99: =N99-O97 -> 0 | P99: =O99-P97 -> 0 | Q99: =P99 -> 0 | R99: =IF(P99>Q97,P99-Q97,0) -> 0 | T99: =IF(B99="データなし","〇"," ") -> 〇
B100: =①借入条件表!Q88 -> 0 | C100: =①借入条件表!W88 -> 0 | D100: 元金返済 | E100: =①借入条件表!$AH88 -> 0 | F100: =IF(E102<=0,0,IF(E102<E100,E102,①借入条件表!$AH88)) -> 0 | G100: =IF(F102<=0,0,IF(F102<F100,F102,①借入条件表!$AH88)) -> 0 | H100: =IF(G102<=0,0,IF(G102<G100,G102,①借入条件表!$AH88)) -> 0 | I100: =IF(H102<=0,0,IF(H102<H100,H102,①借入条件表!$AH88)) -> 0 | J100: =IF(I102<=0,0,IF(I102<I100,I102,①借入条件表!$AH88)) -> 0 | K100: =IF(J102<=0,0,IF(J102<J100,J102,①借入条件表!$AH88)) -> 0 | L100: =IF(K102<=0,0,IF(K102<K100,K102,①借入条件表!$AH88)) -> 0 | M100: =IF(L102<=0,0,IF(L102<L100,L102,①借入条件表!$AH88)) -> 0 | N100: =IF(M102<=0,0,IF(M102<M100,M102,①借入条件表!$AH88)) -> 0 | O100: =IF(N102<=0,0,IF(N102<N100,N102,①借入条件表!$AH88)) -> 0 | P100: =IF(O102<=0,0,IF(O102<O100,O102,①借入条件表!$AH88)) -> 0 | Q100: =SUM(E100:P100) -> 0 | R100: =IF(P102>Q100,P100*12,P102) -> 0 | T100: =IF(B102="データなし","〇"," ") -> 〇
B101: =①借入条件表!Q89 -> 0 | C101: =①借入条件表!W89 -> 0 | D101: 利息 | E101: =C101*C102/12 -> 0 | F101: =E102*$C102/12 -> 0 | G101: =F102*$C102/12 -> 0 | H101: =G102*$C102/12 -> 0 | I101: =H102*$C102/12 -> 0 | J101: =I102*$C102/12 -> 0 | K101: =J102*$C102/12 -> 0 | L101: =K102*$C102/12 -> 0 | M101: 0 | N101: =M102*$C102/12 -> 0 | O101: =N102*$C102/12 -> 0 | P101: =O102*$C102/12 -> 0 | Q101: =SUM(E101:P101) -> 0 | R101: =P101*12 -> 0 | T101: =IF(B102="データなし","〇"," ") -> 〇
B102: =①借入条件表!L88 -> データなし | C102: =①借入条件表!AN88+①借入条件表!AR88 -> 0 | D102: 残高 | E102: =C101-E100 -> 0 | F102: =E102-F100 -> 0 | G102: =F102-G100 -> 0 | H102: =G102-H100 -> 0 | I102: =H102-I100 -> 0 | J102: =I102-J100 -> 0 | K102: =J102-K100 -> 0 | L102: =K102-L100 -> 0 | M102: =L102-M100 -> 0 | N102: =M102-N100 -> 0 | O102: =N102-O100 -> 0 | P102: =O102-P100 -> 0 | Q102: =P102 -> 0 | R102: =IF(P102>Q100,P102-Q100,0) -> 0 | T102: =IF(B102="データなし","〇"," ") -> 〇
B103: =①借入条件表!Q90 -> 0 | C103: =①借入条件表!W90 -> 0 | D103: 元金返済 | E103: =①借入条件表!$AH90 -> 0 | F103: =IF(E105<=0,0,IF(E105<E103,E105,①借入条件表!$AH90)) -> 0 | G103: =IF(F105<=0,0,IF(F105<F103,F105,①借入条件表!$AH90)) -> 0 | H103: =IF(G105<=0,0,IF(G105<G103,G105,①借入条件表!$AH90)) -> 0 | I103: =IF(H105<=0,0,IF(H105<H103,H105,①借入条件表!$AH90)) -> 0 | J103: =IF(I105<=0,0,IF(I105<I103,I105,①借入条件表!$AH90)) -> 0 | K103: =IF(J105<=0,0,IF(J105<J103,J105,①借入条件表!$AH90)) -> 0 | L103: =IF(K105<=0,0,IF(K105<K103,K105,①借入条件表!$AH90)) -> 0 | M103: =IF(L105<=0,0,IF(L105<L103,L105,①借入条件表!$AH90)) -> 0 | N103: =IF(M105<=0,0,IF(M105<M103,M105,①借入条件表!$AH90)) -> 0 | O103: =IF(N105<=0,0,IF(N105<N103,N105,①借入条件表!$AH90)) -> 0 | P103: =IF(O105<=0,0,IF(O105<O103,O105,①借入条件表!$AH90)) -> 0 | Q103: =SUM(E103:P103) -> 0 | R103: =IF(P105>Q103,P103*12,P105) -> 0 | T103: =IF(B105="データなし","〇"," ") -> 〇
B104: =①借入条件表!Q91 -> 0 | C104: =①借入条件表!W91 -> 0 | D104: 利息 | E104: =C104*C105/12 -> 0 | F104: =E105*$C105/12 -> 0 | G104: =F105*$C105/12 -> 0 | H104: =G105*$C105/12 -> 0 | I104: =H105*$C105/12 -> 0 | J104: =I105*$C105/12 -> 0 | K104: =J105*$C105/12 -> 0 | L104: =K105*$C105/12 -> 0 | M104: =L105*$C105/12 -> 0 | N104: =M105*$C105/12 -> 0 | O104: =N105*$C105/12 -> 0 | P104: =O105*$C105/12 -> 0 | Q104: =SUM(E104:P104) -> 0 | R104: =P104*12 -> 0 | T104: =IF(B105="データなし","〇"," ") -> 〇
B105: =①借入条件表!L90 -> データなし | C105: =①借入条件表!AN90+①借入条件表!AR90 -> 0 | D105: 残高 | E105: =C104-E103 -> 0 | F105: =E105-F103 -> 0 | G105: =F105-G103 -> 0 | H105: =G105-H103 -> 0 | I105: =H105-I103 -> 0 | J105: =I105-J103 -> 0 | K105: =J105-K103 -> 0 | L105: =K105-L103 -> 0 | M105: =L105-M103 -> 0 | N105: =M105-N103 -> 0 | O105: =N105-O103 -> 0 | P105: =O105-P103 -> 0 | Q105: =P105 -> 0 | R105: =IF(P105>Q103,P105-Q103,0) -> 0 | T105: =IF(B105="データなし","〇"," ") -> 〇
B106: =①借入条件表!Q92 -> 0 | C106: =①借入条件表!W92 -> 0 | D106: 元金返済 | E106: =①借入条件表!$AH92 -> 0 | F106: =IF(E108<=0,0,IF(E108<E106,E108,①借入条件表!$AH92)) -> 0 | G106: =IF(F108<=0,0,IF(F108<F106,F108,①借入条件表!$AH92)) -> 0 | H106: =IF(G108<=0,0,IF(G108<G106,G108,①借入条件表!$AH92)) -> 0 | I106: =IF(H108<=0,0,IF(H108<H106,H108,①借入条件表!$AH92)) -> 0 | J106: =IF(I108<=0,0,IF(I108<I106,I108,①借入条件表!$AH92)) -> 0 | K106: =IF(J108<=0,0,IF(J108<J106,J108,①借入条件表!$AH92)) -> 0 | L106: =IF(K108<=0,0,IF(K108<K106,K108,①借入条件表!$AH92)) -> 0 | M106: =IF(L108<=0,0,IF(L108<L106,L108,①借入条件表!$AH92)) -> 0 | N106: =IF(M108<=0,0,IF(M108<M106,M108,①借入条件表!$AH92)) -> 0 | O106: =IF(N108<=0,0,IF(N108<N106,N108,①借入条件表!$AH92)) -> 0 | P106: =IF(O108<=0,0,IF(O108<O106,O108,①借入条件表!$AH92)) -> 0 | Q106: =SUM(E106:P106) -> 0 | R106: =IF(P108>Q106,P106*12,P108) -> 0 | T106: =IF(B108="データなし","〇"," ") -> 〇
B107: =①借入条件表!Q93 -> 0 | C107: =①借入条件表!W93 -> 0 | D107: 利息 | E107: =C107*C108/12 -> 0 | F107: =E108*$C108/12 -> 0 | G107: =F108*$C108/12 -> 0 | H107: =G108*$C108/12 -> 0 | I107: =H108*$C108/12 -> 0 | J107: =I108*$C108/12 -> 0 | K107: =J108*$C108/12 -> 0 | L107: =K108*$C108/12 -> 0 | M107: =L108*$C108/12 -> 0 | N107: =M108*$C108/12 -> 0 | O107: =N108*$C108/12 -> 0 | P107: =O108*$C108/12 -> 0 | Q107: =SUM(E107:P107) -> 0 | R107: =P107*12 -> 0 | T107: =IF(B108="データなし","〇"," ") -> 〇
B108: =①借入条件表!L92 -> データなし | C108: =①借入条件表!AN92+①借入条件表!AR92 -> 0 | D108: 残高 | E108: =C107-E106 -> 0 | F108: =E108-F106 -> 0 | G108: =F108-G106 -> 0 | H108: =G108-H106 -> 0 | I108: =H108-I106 -> 0 | J108: =I108-J106 -> 0 | K108: =J108-K106 -> 0 | L108: =K108-L106 -> 0 | M108: =L108-M106 -> 0 | N108: =M108-N106 -> 0 | O108: =N108-O106 -> 0 | P108: =O108-P106 -> 0 | Q108: =P108 -> 0 | R108: =IF(P108>Q106,P108-Q106,0) -> 0 | T108: =IF(B108="データなし","〇"," ") -> 〇
B109: =①借入条件表!Q94 -> 0 | C109: =①借入条件表!W94 -> 0 | D109: 元金返済 | E109: =①借入条件表!$AH94 -> 0 | F109: =IF(E111<=0,0,IF(E111<E109,E111,①借入条件表!$AH94)) -> 0 | G109: =IF(F111<=0,0,IF(F111<F109,F111,①借入条件表!$AH94)) -> 0 | H109: =IF(G111<=0,0,IF(G111<G109,G111,①借入条件表!$AH94)) -> 0 | I109: =IF(H111<=0,0,IF(H111<H109,H111,①借入条件表!$AH94)) -> 0 | J109: =IF(I111<=0,0,IF(I111<I109,I111,①借入条件表!$AH94)) -> 0 | K109: =IF(J111<=0,0,IF(J111<J109,J111,①借入条件表!$AH94)) -> 0 | L109: =IF(K111<=0,0,IF(K111<K109,K111,①借入条件表!$AH94)) -> 0 | M109: =IF(L111<=0,0,IF(L111<L109,L111,①借入条件表!$AH94)) -> 0 | N109: =IF(M111<=0,0,IF(M111<M109,M111,①借入条件表!$AH94)) -> 0 | O109: =IF(N111<=0,0,IF(N111<N109,N111,①借入条件表!$AH94)) -> 0 | P109: =IF(O111<=0,0,IF(O111<O109,O111,①借入条件表!$AH94)) -> 0 | Q109: =SUM(E109:P109) -> 0 | R109: =IF(P111>Q109,P109*12,P111) -> 0 | T109: =IF(B111="データなし","〇"," ") -> 〇
B110: =①借入条件表!Q95 -> 0 | C110: =①借入条件表!W95 -> 0 | D110: 利息 | E110: =$C110*$C111/12 -> 0 | F110: =E111*$C111/12 -> 0 | G110: =F111*$C111/12 -> 0 | H110: =G111*$C111/12 -> 0 | I110: =H111*$C111/12 -> 0 | J110: =I111*$C111/12 -> 0 | K110: =J111*$C111/12 -> 0 | L110: =K111*$C111/12 -> 0 | M110: =L111*$C111/12 -> 0 | N110: =M111*$C111/12 -> 0 | O110: =N111*$C111/12 -> 0 | P110: =O111*$C111/12 -> 0 | Q110: =SUM(E110:P110) -> 0 | R110: =P110*12 -> 0 | T110: =IF(B111="データなし","〇"," ") -> 〇
B111: =①借入条件表!L94 -> データなし | C111: =①借入条件表!AN94+①借入条件表!AR94 -> 0 | D111: 残高 | E111: =C110-E109 -> 0 | F111: =E111-F109 -> 0 | G111: =F111-G109 -> 0 | H111: =G111-H109 -> 0 | I111: =H111-I109 -> 0 | J111: =I111-J109 -> 0 | K111: =J111-K109 -> 0 | L111: =K111-L109 -> 0 | M111: =L111-M109 -> 0 | N111: =M111-N109 -> 0 | O111: =N111-O109 -> 0 | P111: =O111-P109 -> 0 | Q111: =P111 -> 0 | R111: =IF(P111>Q109,P111-Q109,0) -> 0 | T111: =IF(B111="データなし","〇"," ") -> 〇
B112: 小計 | C112: =C97+C100+C103+C106+C109 -> 0 | D112: 元金返済 | E112: =E97+E100+E103+E106+E109 -> 0 | F112: =F97+F100+F103+F106+F109 -> 0 | G112: =G97+G100+G103+G106+G109 -> 0 | H112: 0 | I112: 0 | J112: 0 | K112: 0 | L112: 0 | M112: 0 | N112: 0 | O112: 0 | P112: =P97+P100+P103+P106+P109 -> 0 | Q112: =SUM(E112:P112) -> 0 | R112: =+Q112 -> 0 | T112: =IF(C113>0,"","〇 ") -> 〇
C113: =C98+C101+C104+C107+C110 -> 0 | D113: 利息 | E113: =E98+E101+E104+E107+E110 -> 0 | F113: =F98+F101+F104+F107+F110 -> 0 | G113: 0 | H113: 0 | I113: 0 | J113: 0 | K113: 0 | L113: 0 | M113: 0 | N113: 0 | O113: 0 | P113: =P98+P101+P104+P107+P110 -> 0 | Q113: 0 | R113: =Q113 -> 0 | T113: =IF(C113>0,"","〇 ") -> 〇
D114: 残高 | E114: =E99+E102+E105+E108+E111 -> 0 | F114: =F99+F102+F105+F108+F111 -> 0 | G114: 0 | H114: 0 | I114: 0 | J114: 0 | K114: 0 | L114: 0 | M114: 0 | N114: 0 | O114: 0 | P114: =P99+P102+P105+P108+P111 -> 0 | Q114: =P114 -> 0 | R114: =Q114-R112 -> 0 | T114: =IF(C113>0,"","〇 ") -> 〇
A115: =①借入条件表!E102 -> 0 | B115: =①借入条件表!Q102 -> 0 | C115: =①借入条件表!W102 -> 0 | D115: 元金返済 | E115: =①借入条件表!$AH102 -> 0 | F115: =IF(E117<=0,0,IF(E117<E115,E117,①借入条件表!$AH102)) -> 0 | G115: =IF(F117<=0,0,IF(F117<F115,F117,①借入条件表!$AH102)) -> 0 | H115: =IF(G117<=0,0,IF(G117<G115,G117,①借入条件表!$AH102)) -> 0 | I115: =IF(H117<=0,0,IF(H117<H115,H117,①借入条件表!$AH102)) -> 0 | J115: =IF(I117<=0,0,IF(I117<I115,I117,①借入条件表!$AH102)) -> 0 | K115: =IF(J117<=0,0,IF(J117<J115,J117,①借入条件表!$AH102)) -> 0 | L115: =IF(K117<=0,0,IF(K117<K115,K117,①借入条件表!$AH102)) -> 0 | M115: =IF(L117<=0,0,IF(L117<L115,L117,①借入条件表!$AH102)) -> 0 | N115: =IF(M117<=0,0,IF(M117<M115,M117,①借入条件表!$AH102)) -> 0 | O115: =IF(N117<=0,0,IF(N117<N115,N117,①借入条件表!$AH102)) -> 0 | P115: =IF(O117<=0,0,IF(O117<O115,O117,①借入条件表!$AH102)) -> 0 | Q115: =SUM(E115:P115) -> 0 | R115: =IF(P117>Q115,P115*12,P117) -> 0 | T115: =IF(B117="データなし","〇"," ") -> 〇
B116: =①借入条件表!Q103 -> 0 | C116: =①借入条件表!W103 -> 0 | D116: 利息 | E116: =C116*C117/12 -> 0 | F116: =E117*$C117/12 -> 0 | G116: =F117*$C117/12 -> 0 | H116: =G117*$C117/12 -> 0 | I116: =H117*$C117/12 -> 0 | J116: =I117*$C117/12 -> 0 | K116: =J117*$C117/12 -> 0 | L116: =K117*$C117/12 -> 0 | M116: =L117*$C117/12 -> 0 | N116: =M117*$C117/12 -> 0 | O116: =N117*$C117/12 -> 0 | P116: =O117*$C117/12 -> 0 | Q116: =SUM(E116:P116) -> 0 | R116: =P116*12 -> 0 | T116: =IF(B117="データなし","〇"," ") -> 〇
B117: =①借入条件表!L102 -> データなし | C117: =①借入条件表!AN102+①借入条件表!AR102 -> 0 | D117: 残高 | E117: =C116-E115 -> 0 | F117: =E117-F115 -> 0 | G117: =F117-G115 -> 0 | H117: =G117-H115 -> 0 | I117: =H117-I115 -> 0 | J117: =I117-J115 -> 0 | K117: =J117-K115 -> 0 | L117: =K117-L115 -> 0 | M117: =L117-M115 -> 0 | N117: =M117-N115 -> 0 | O117: =N117-O115 -> 0 | P117: =O117-P115 -> 0 | Q117: =P117 -> 0 | R117: =IF(P117>Q115,P117-Q115,0) -> 0 | T117: =IF(B117="データなし","〇"," ") -> 〇
B118: =①借入条件表!Q104 -> 0 | C118: =①借入条件表!W104 -> 0 | D118: 元金返済 | E118: =①借入条件表!$AH104 -> 0 | F118: =IF(E120<=0,0,IF(E120<E118,E120,①借入条件表!$AH104)) -> 0 | G118: =IF(F120<=0,0,IF(F120<F118,F120,①借入条件表!$AH104)) -> 0 | H118: =IF(G120<=0,0,IF(G120<G118,G120,①借入条件表!$AH104)) -> 0 | I118: =IF(H120<=0,0,IF(H120<H118,H120,①借入条件表!$AH104)) -> 0 | J118: =IF(I120<=0,0,IF(I120<I118,I120,①借入条件表!$AH104)) -> 0 | K118: =IF(J120<=0,0,IF(J120<J118,J120,①借入条件表!$AH104)) -> 0 | L118: =IF(K120<=0,0,IF(K120<K118,K120,①借入条件表!$AH104)) -> 0 | M118: =IF(L120<=0,0,IF(L120<L118,L120,①借入条件表!$AH104)) -> 0 | N118: =IF(M120<=0,0,IF(M120<M118,M120,①借入条件表!$AH104)) -> 0 | O118: =IF(N120<=0,0,IF(N120<N118,N120,①借入条件表!$AH104)) -> 0 | P118: =IF(O120<=0,0,IF(O120<O118,O120,①借入条件表!$AH104)) -> 0 | Q118: =SUM(E118:P118) -> 0 | R118: =IF(P120>Q118,P118*12,P120) -> 0 | T118: =IF(B120="データなし","〇"," ") -> 〇
B119: =①借入条件表!Q105 -> 0 | C119: =①借入条件表!W105 -> 0 | D119: 利息 | E119: =C119*C120/12 -> 0 | F119: =E120*$C120/12 -> 0 | G119: =F120*$C120/12 -> 0 | H119: =G120*$C120/12 -> 0 | I119: =H120*$C120/12 -> 0 | J119: =I120*$C120/12 -> 0 | K119: =J120*$C120/12 -> 0 | L119: =K120*$C120/12 -> 0 | M119: =L120*$C120/12 -> 0 | N119: =M120*$C120/12 -> 0 | O119: =N120*$C120/12 -> 0 | P119: =O120*$C120/12 -> 0 | Q119: =SUM(E119:P119) -> 0 | R119: =P119*12 -> 0 | T119: =IF(B120="データなし","〇"," ") -> 〇
B120: =①借入条件表!L104 -> データなし | C120: =①借入条件表!AN104+①借入条件表!AR104 -> 0 | D120: 残高 | E120: =C119-E118 -> 0 | F120: =E120-F118 -> 0 | G120: =F120-G118 -> 0 | H120: =G120-H118 -> 0 | I120: =H120-I118 -> 0 | J120: =I120-J118 -> 0 | K120: =J120-K118 -> 0 | L120: =K120-L118 -> 0 | M120: =L120-M118 -> 0 | N120: =M120-N118 -> 0 | O120: =N120-O118 -> 0 | P120: =O120-P118 -> 0 | Q120: =P120 -> 0 | R120: =IF(P120>Q118,P120-Q118,0) -> 0 | T120: =IF(B120="データなし","〇"," ") -> 〇
B121: =①借入条件表!Q106 -> 0 | C121: =①借入条件表!W106 -> 0 | D121: 元金返済 | E121: =①借入条件表!$AH106 -> 0 | F121: =IF(E123<=0,0,IF(E123<E121,E123,①借入条件表!$AH106)) -> 0 | G121: =IF(F123<=0,0,IF(F123<F121,F123,①借入条件表!$AH106)) -> 0 | H121: =IF(G123<=0,0,IF(G123<G121,G123,①借入条件表!$AH106)) -> 0 | I121: =IF(H123<=0,0,IF(H123<H121,H123,①借入条件表!$AH106)) -> 0 | J121: =IF(I123<=0,0,IF(I123<I121,I123,①借入条件表!$AH106)) -> 0 | K121: =IF(J123<=0,0,IF(J123<J121,J123,①借入条件表!$AH106)) -> 0 | L121: =IF(K123<=0,0,IF(K123<K121,K123,①借入条件表!$AH106)) -> 0 | M121: =IF(L123<=0,0,IF(L123<L121,L123,①借入条件表!$AH106)) -> 0 | N121: =IF(M123<=0,0,IF(M123<M121,M123,①借入条件表!$AH106)) -> 0 | O121: =IF(N123<=0,0,IF(N123<N121,N123,①借入条件表!$AH106)) -> 0 | P121: =IF(O123<=0,0,IF(O123<O121,O123,①借入条件表!$AH106)) -> 0 | Q121: =SUM(E121:P121) -> 0 | R121: =IF(P123>Q121,P121*12,P123) -> 0 | T121: =IF(B123="データなし","〇"," ") -> 〇
B122: =①借入条件表!Q107 -> 0 | C122: =①借入条件表!W107 -> 0 | D122: 利息 | E122: =C122*C123/12 -> 0 | F122: =E123*$C123/12 -> 0 | G122: =F123*$C123/12 -> 0 | H122: =G123*$C123/12 -> 0 | I122: =H123*$C123/12 -> 0 | J122: =I123*$C123/12 -> 0 | K122: =J123*$C123/12 -> 0 | L122: =K123*$C123/12 -> 0 | M122: =L123*$C123/12 -> 0 | N122: =M123*$C123/12 -> 0 | O122: =N123*$C123/12 -> 0 | P122: =O123*$C123/12 -> 0 | Q122: =SUM(E122:P122) -> 0 | R122: =P122*12 -> 0 | T122: =IF(B123="データなし","〇"," ") -> 〇
B123: =①借入条件表!L106 -> データなし | C123: =①借入条件表!AN106+①借入条件表!AR106 -> 0 | D123: 残高 | E123: =C122-E121 -> 0 | F123: =E123-F121 -> 0 | G123: =F123-G121 -> 0 | H123: =G123-H121 -> 0 | I123: =H123-I121 -> 0 | J123: =I123-J121 -> 0 | K123: =J123-K121 -> 0 | L123: =K123-L121 -> 0 | M123: =L123-M121 -> 0 | N123: =M123-N121 -> 0 | O123: =N123-O121 -> 0 | P123: =O123-P121 -> 0 | Q123: =P123 -> 0 | R123: =IF(P123>Q121,P123-Q121,0) -> 0 | T123: =IF(B123="データなし","〇"," ") -> 〇
B124: =①借入条件表!Q108 -> 0 | C124: =①借入条件表!W108 -> 0 | D124: 元金返済 | E124: =①借入条件表!$AH108 -> 0 | F124: =IF(E126<=0,0,IF(E126<E124,E126,①借入条件表!$AH108)) -> 0 | G124: =IF(F126<=0,0,IF(F126<F124,F126,①借入条件表!$AH108)) -> 0 | H124: =IF(G126<=0,0,IF(G126<G124,G126,①借入条件表!$AH108)) -> 0 | I124: =IF(H126<=0,0,IF(H126<H124,H126,①借入条件表!$AH108)) -> 0 | J124: =IF(I126<=0,0,IF(I126<I124,I126,①借入条件表!$AH108)) -> 0 | K124: =IF(J126<=0,0,IF(J126<J124,J126,①借入条件表!$AH108)) -> 0 | L124: =IF(K126<=0,0,IF(K126<K124,K126,①借入条件表!$AH108)) -> 0 | M124: =IF(L126<=0,0,IF(L126<L124,L126,①借入条件表!$AH108)) -> 0 | N124: =IF(M126<=0,0,IF(M126<M124,M126,①借入条件表!$AH108)) -> 0 | O124: =IF(N126<=0,0,IF(N126<N124,N126,①借入条件表!$AH108)) -> 0 | P124: =IF(O126<=0,0,IF(O126<O124,O126,①借入条件表!$AH108)) -> 0 | Q124: =SUM(E124:P124) -> 0 | R124: =IF(P126>Q124,P124*12,P126) -> 0 | T124: =IF(B126="データなし","〇"," ") -> 〇
B125: =①借入条件表!Q109 -> 0 | C125: =①借入条件表!W109 -> 0 | D125: 利息 | E125: =C125*C126/12 -> 0 | F125: =E126*$C126/12 -> 0 | G125: =F126*$C126/12 -> 0 | H125: =G126*$C126/12 -> 0 | I125: =H126*$C126/12 -> 0 | J125: =I126*$C126/12 -> 0 | K125: =J126*$C126/12 -> 0 | L125: =K126*$C126/12 -> 0 | M125: =L126*$C126/12 -> 0 | N125: =M126*$C126/12 -> 0 | O125: =N126*$C126/12 -> 0 | P125: =O126*$C126/12 -> 0 | Q125: =SUM(E125:P125) -> 0 | R125: =P125*12 -> 0 | T125: =IF(B126="データなし","〇"," ") -> 〇
B126: =①借入条件表!L108 -> データなし | C126: =①借入条件表!AN108+①借入条件表!AR108 -> 0 | D126: 残高 | E126: =C125-E124 -> 0 | F126: =E126-F124 -> 0 | G126: =F126-G124 -> 0 | H126: =G126-H124 -> 0 | I126: =H126-I124 -> 0 | J126: =I126-J124 -> 0 | K126: =J126-K124 -> 0 | L126: =K126-L124 -> 0 | M126: =L126-M124 -> 0 | N126: =M126-N124 -> 0 | O126: =N126-O124 -> 0 | P126: =O126-P124 -> 0 | Q126: =P126 -> 0 | R126: =IF(P126>Q124,P126-Q124,0) -> 0 | T126: =IF(B126="データなし","〇"," ") -> 〇
B127: =①借入条件表!Q110 -> 0 | C127: =①借入条件表!W110 -> 0 | D127: 元金返済 | E127: =①借入条件表!$AH110 -> 0 | F127: =IF(E129<=0,0,IF(E129<E127,E129,①借入条件表!$AH110)) -> 0 | G127: =IF(F129<=0,0,IF(F129<F127,F129,①借入条件表!$AH110)) -> 0 | H127: =IF(G129<=0,0,IF(G129<G127,G129,①借入条件表!$AH110)) -> 0 | I127: =IF(H129<=0,0,IF(H129<H127,H129,①借入条件表!$AH110)) -> 0 | J127: =IF(I129<=0,0,IF(I129<I127,I129,①借入条件表!$AH110)) -> 0 | K127: =IF(J129<=0,0,IF(J129<J127,J129,①借入条件表!$AH110)) -> 0 | L127: =IF(K129<=0,0,IF(K129<K127,K129,①借入条件表!$AH110)) -> 0 | M127: =IF(L129<=0,0,IF(L129<L127,L129,①借入条件表!$AH110)) -> 0 | N127: =IF(M129<=0,0,IF(M129<M127,M129,①借入条件表!$AH110)) -> 0 | O127: =IF(N129<=0,0,IF(N129<N127,N129,①借入条件表!$AH110)) -> 0 | P127: =IF(O129<=0,0,IF(O129<O127,O129,①借入条件表!$AH110)) -> 0 | Q127: =SUM(E127:P127) -> 0 | R127: =IF(P129>Q127,P127*12,P129) -> 0 | T127: =IF(B129="データなし","〇"," ") -> 〇
B128: =①借入条件表!Q111 -> 0 | C128: =①借入条件表!W111 -> 0 | D128: 利息 | E128: =$C128*$C129/12 -> 0 | F128: =E129*$C129/12 -> 0 | G128: =F129*$C129/12 -> 0 | H128: =G129*$C129/12 -> 0 | I128: =H129*$C129/12 -> 0 | J128: =I129*$C129/12 -> 0 | K128: =J129*$C129/12 -> 0 | L128: =K129*$C129/12 -> 0 | M128: =L129*$C129/12 -> 0 | N128: =M129*$C129/12 -> 0 | O128: =N129*$C129/12 -> 0 | P128: =O129*$C129/12 -> 0 | Q128: =SUM(E128:P128) -> 0 | R128: =P128*12 -> 0 | T128: =IF(B129="データなし","〇"," ") -> 〇
B129: =①借入条件表!L110 -> データなし | C129: =①借入条件表!AN110+①借入条件表!AR110 -> 0 | D129: 残高 | E129: =C128-E127 -> 0 | F129: =E129-F127 -> 0 | G129: =F129-G127 -> 0 | H129: =G129-H127 -> 0 | I129: =H129-I127 -> 0 | J129: =I129-J127 -> 0 | K129: =J129-K127 -> 0 | L129: =K129-L127 -> 0 | M129: =L129-M127 -> 0 | N129: =M129-N127 -> 0 | O129: =N129-O127 -> 0 | P129: =O129-P127 -> 0 | Q129: =P129 -> 0 | R129: =IF(P129>Q127,P129-Q127,0) -> 0 | T129: =IF(B129="データなし","〇"," ") -> 〇
B130: 小計 | C130: =C115+C118+C121+C124+C127 -> 0 | D130: 元金返済 | E130: =E115+E118+E121+E124+E127 -> 0 | F130: =F115+F118+F121+F124+F127 -> 0 | G130: =G115+G118+G121+G124+G127 -> 0 | H130: 0 | I130: 0 | J130: 0 | K130: 0 | L130: 0 | M130: 0 | N130: 0 | O130: 0 | P130: =P115+P118+P121+P124+P127 -> 0 | Q130: =SUM(E130:P130) -> 0 | R130: =+Q130 -> 0 | T130: =IF(C131>0,"","〇 ") -> 〇
C131: =C116+C119+C122+C125+C128 -> 0 | D131: 利息 | E131: =E116+E119+E122+E125+E128 -> 0 | F131: =F116+F119+F122+F125+F128 -> 0 | G131: 0 | H131: 0 | I131: 0 | J131: 0 | K131: 0 | L131: 0 | M131: 0 | N131: 0 | O131: 0 | P131: =P116+P119+P122+P125+P128 -> 0 | Q131: 0 | R131: =Q131 -> 0 | T131: =IF(C131>0,"","〇 ") -> 〇
D132: 残高 | E132: =E117+E120+E123+E126+E129 -> 0 | F132: =F117+F120+F123+F126+F129 -> 0 | G132: 0 | H132: 0 | I132: 0 | J132: 0 | K132: 0 | L132: 0 | M132: 0 | N132: 0 | O132: 0 | P132: =P117+P120+P123+P126+P129 -> 0 | Q132: =P132 -> 0 | R132: =Q132-R130 -> 0 | T132: =IF(C131>0,"","〇 ") -> 〇
A133: =①借入条件表!E118 -> 日本政策金融公庫 | B133: =①借入条件表!Q118 -> 0 | C133: =①借入条件表!W118 -> 0 | D133: 元金返済 | E133: =①借入条件表!$AH118 -> 0 | F133: =IF(E135<=0,0,IF(E135<E133,E135,①借入条件表!$AH118)) -> 0 | G133: =IF(F135<=0,0,IF(F135<F133,F135,①借入条件表!$AH118)) -> 0 | H133: =IF(G135<=0,0,IF(G135<G133,G135,①借入条件表!$AH118)) -> 0 | I133: =IF(H135<=0,0,IF(H135<H133,H135,①借入条件表!$AH118)) -> 0 | J133: =IF(I135<=0,0,IF(I135<I133,I135,①借入条件表!$AH118)) -> 0 | K133: =IF(J135<=0,0,IF(J135<J133,J135,①借入条件表!$AH118)) -> 0 | L133: =IF(K135<=0,0,IF(K135<K133,K135,①借入条件表!$AH118)) -> 0 | M133: =IF(L135<=0,0,IF(L135<L133,L135,①借入条件表!$AH118)) -> 0 | N133: =IF(M135<=0,0,IF(M135<M133,M135,①借入条件表!$AH118)) -> 0 | O133: =IF(N135<=0,0,IF(N135<N133,N135,①借入条件表!$AH118)) -> 0 | P133: =IF(O135<=0,0,IF(O135<O133,O135,①借入条件表!$AH118)) -> 0 | Q133: =SUM(E133:P133) -> 0 | R133: =IF(P135>Q133,P133*12,P135) -> 0 | T133: =IF(B135="データなし","〇"," ") -> 〇
B134: =①借入条件表!Q119 -> 0 | C134: =①借入条件表!W119 -> 0 | D134: 利息 | E134: =C134*C135/12 -> 0 | F134: =E135*$C135/12 -> 0 | G134: =F135*$C135/12 -> 0 | H134: =G135*$C135/12 -> 0 | I134: =H135*$C135/12 -> 0 | J134: =I135*$C135/12 -> 0 | K134: =J135*$C135/12 -> 0 | L134: =K135*$C135/12 -> 0 | M134: =L135*$C135/12 -> 0 | N134: =M135*$C135/12 -> 0 | O134: =N135*$C135/12 -> 0 | P134: =O135*$C135/12 -> 0 | Q134: =SUM(E134:P134) -> 0 | R134: =P134*12 -> 0 | T134: =IF(B135="データなし","〇"," ") -> 〇
B135: =①借入条件表!L118 -> データなし | C135: =①借入条件表!AN118+①借入条件表!AR118 -> 0 | D135: 残高 | E135: =C134-E133 -> 0 | F135: =E135-F133 -> 0 | G135: =F135-G133 -> 0 | H135: =G135-H133 -> 0 | I135: =H135-I133 -> 0 | J135: =I135-J133 -> 0 | K135: =J135-K133 -> 0 | L135: =K135-L133 -> 0 | M135: =L135-M133 -> 0 | N135: =M135-N133 -> 0 | O135: =N135-O133 -> 0 | P135: =O135-P133 -> 0 | Q135: =P135 -> 0 | R135: =IF(P135>Q133,P135-Q133,0) -> 0 | T135: =IF(B135="データなし","〇"," ") -> 〇
B136: =①借入条件表!Q120 -> 0 | C136: =①借入条件表!W120 -> 0 | D136: 元金返済 | E136: =①借入条件表!$AH120 -> 0 | F136: =IF(E138<=0,0,IF(E138<E136,E138,①借入条件表!$AH120)) -> 0 | G136: =IF(F138<=0,0,IF(F138<F136,F138,①借入条件表!$AH120)) -> 0 | H136: =IF(G138<=0,0,IF(G138<G136,G138,①借入条件表!$AH120)) -> 0 | I136: =IF(H138<=0,0,IF(H138<H136,H138,①借入条件表!$AH120)) -> 0 | J136: =IF(I138<=0,0,IF(I138<I136,I138,①借入条件表!$AH120)) -> 0 | K136: =IF(J138<=0,0,IF(J138<J136,J138,①借入条件表!$AH120)) -> 0 | L136: =IF(K138<=0,0,IF(K138<K136,K138,①借入条件表!$AH120)) -> 0 | M136: =IF(L138<=0,0,IF(L138<L136,L138,①借入条件表!$AH120)) -> 0 | N136: =IF(M138<=0,0,IF(M138<M136,M138,①借入条件表!$AH120)) -> 0 | O136: =IF(N138<=0,0,IF(N138<N136,N138,①借入条件表!$AH120)) -> 0 | P136: =IF(O138<=0,0,IF(O138<O136,O138,①借入条件表!$AH120)) -> 0 | Q136: =SUM(E136:P136) -> 0 | R136: =IF(P138>Q136,P136*12,P138) -> 0 | T136: =IF(B138="データなし","〇"," ") -> 〇
B137: =①借入条件表!Q121 -> 0 | C137: =①借入条件表!W121 -> 0 | D137: 利息 | E137: =C137*C138/12 -> 0 | F137: =E138*$C138/12 -> 0 | G137: =F138*$C138/12 -> 0 | H137: =G138*$C138/12 -> 0 | I137: =H138*$C138/12 -> 0 | J137: =I138*$C138/12 -> 0 | K137: =J138*$C138/12 -> 0 | L137: =K138*$C138/12 -> 0 | M137: =L138*$C138/12 -> 0 | N137: =M138*$C138/12 -> 0 | O137: =N138*$C138/12 -> 0 | P137: =O138*$C138/12 -> 0 | Q137: =SUM(E137:P137) -> 0 | R137: =P137*12 -> 0 | T137: =IF(B138="データなし","〇"," ") -> 〇
B138: =①借入条件表!L120 -> データなし | C138: =①借入条件表!AN120+①借入条件表!AR120 -> 0 | D138: 残高 | E138: =C137-E136 -> 0 | F138: =E138-F136 -> 0 | G138: =F138-G136 -> 0 | H138: =G138-H136 -> 0 | I138: =H138-I136 -> 0 | J138: =I138-J136 -> 0 | K138: =J138-K136 -> 0 | L138: =K138-L136 -> 0 | M138: =L138-M136 -> 0 | N138: =M138-N136 -> 0 | O138: =N138-O136 -> 0 | P138: =O138-P136 -> 0 | Q138: =P138 -> 0 | R138: =IF(P138>Q136,P138-Q136,0) -> 0 | T138: =IF(B138="データなし","〇"," ") -> 〇
B139: =①借入条件表!Q122 -> 0 | C139: =①借入条件表!W122 -> 0 | D139: 元金返済 | E139: =①借入条件表!$AH122 -> 0 | F139: =IF(E141<=0,0,IF(E141<E139,E141,①借入条件表!$AH122)) -> 0 | G139: =IF(F141<=0,0,IF(F141<F139,F141,①借入条件表!$AH122)) -> 0 | H139: =IF(G141<=0,0,IF(G141<G139,G141,①借入条件表!$AH122)) -> 0 | I139: =IF(H141<=0,0,IF(H141<H139,H141,①借入条件表!$AH122)) -> 0 | J139: =IF(I141<=0,0,IF(I141<I139,I141,①借入条件表!$AH122)) -> 0 | K139: =IF(J141<=0,0,IF(J141<J139,J141,①借入条件表!$AH122)) -> 0 | L139: =IF(K141<=0,0,IF(K141<K139,K141,①借入条件表!$AH122)) -> 0 | M139: =IF(L141<=0,0,IF(L141<L139,L141,①借入条件表!$AH122)) -> 0 | N139: =IF(M141<=0,0,IF(M141<M139,M141,①借入条件表!$AH122)) -> 0 | O139: =IF(N141<=0,0,IF(N141<N139,N141,①借入条件表!$AH122)) -> 0 | P139: =IF(O141<=0,0,IF(O141<O139,O141,①借入条件表!$AH122)) -> 0 | Q139: =SUM(E139:P139) -> 0 | R139: =IF(P141>Q139,P139*12,P141) -> 0 | T139: =IF(B141="データなし","〇"," ") -> 〇
B140: =①借入条件表!Q123 -> 0 | C140: =①借入条件表!W123 -> 0 | D140: 利息 | E140: =C140*C141/12 -> 0 | F140: =E141*$C141/12 -> 0 | G140: =F141*$C141/12 -> 0 | H140: =G141*$C141/12 -> 0 | I140: =H141*$C141/12 -> 0 | J140: =I141*$C141/12 -> 0 | K140: =J141*$C141/12 -> 0 | L140: =K141*$C141/12 -> 0 | M140: =L141*$C141/12 -> 0 | N140: =M141*$C141/12 -> 0 | O140: =N141*$C141/12 -> 0 | P140: =O141*$C141/12 -> 0 | Q140: =SUM(E140:P140) -> 0 | R140: =P140*12 -> 0 | T140: =IF(B141="データなし","〇"," ") -> 〇
B141: =①借入条件表!L122 -> データなし | C141: =①借入条件表!AN122+①借入条件表!AR122 -> 0 | D141: 残高 | E141: =C140-E139 -> 0 | F141: =E141-F139 -> 0 | G141: =F141-G139 -> 0 | H141: =G141-H139 -> 0 | I141: =H141-I139 -> 0 | J141: =I141-J139 -> 0 | K141: =J141-K139 -> 0 | L141: =K141-L139 -> 0 | M141: =L141-M139 -> 0 | N141: =M141-N139 -> 0 | O141: =N141-O139 -> 0 | P141: =O141-P139 -> 0 | Q141: =P141 -> 0 | R141: =IF(P141>Q139,P141-Q139,0) -> 0 | T141: =IF(B141="データなし","〇"," ") -> 〇
B142: =①借入条件表!Q124 -> 0 | C142: =①借入条件表!W124 -> 0 | D142: 元金返済 | E142: =①借入条件表!$AH124 -> 0 | F142: =IF(E144<=0,0,IF(E144<E142,E144,①借入条件表!$AH124)) -> 0 | G142: =IF(F144<=0,0,IF(F144<F142,F144,①借入条件表!$AH124)) -> 0 | H142: =IF(G144<=0,0,IF(G144<G142,G144,①借入条件表!$AH124)) -> 0 | I142: =IF(H144<=0,0,IF(H144<H142,H144,①借入条件表!$AH124)) -> 0 | J142: =IF(I144<=0,0,IF(I144<I142,I144,①借入条件表!$AH124)) -> 0 | K142: =IF(J144<=0,0,IF(J144<J142,J144,①借入条件表!$AH124)) -> 0 | L142: =IF(K144<=0,0,IF(K144<K142,K144,①借入条件表!$AH124)) -> 0 | M142: =IF(L144<=0,0,IF(L144<L142,L144,①借入条件表!$AH124)) -> 0 | N142: =IF(M144<=0,0,IF(M144<M142,M144,①借入条件表!$AH124)) -> 0 | O142: =IF(N144<=0,0,IF(N144<N142,N144,①借入条件表!$AH124)) -> 0 | P142: =IF(O144<=0,0,IF(O144<O142,O144,①借入条件表!$AH124)) -> 0 | Q142: =SUM(E142:P142) -> 0 | R142: =IF(P144>Q142,P142*12,P144) -> 0 | T142: =IF(B144="データなし","〇"," ") -> 〇
B143: =①借入条件表!Q125 -> 0 | C143: =①借入条件表!W125 -> 0 | D143: 利息 | E143: =C143*C144/12 -> 0 | F143: =E144*$C144/12 -> 0 | G143: =F144*$C144/12 -> 0 | H143: =G144*$C144/12 -> 0 | I143: =H144*$C144/12 -> 0 | J143: =I144*$C144/12 -> 0 | K143: =J144*$C144/12 -> 0 | L143: =K144*$C144/12 -> 0 | M143: =L144*$C144/12 -> 0 | N143: =M144*$C144/12 -> 0 | O143: =N144*$C144/12 -> 0 | P143: =O144*$C144/12 -> 0 | Q143: =SUM(E143:P143) -> 0 | R143: =P143*12 -> 0 | T143: =IF(B144="データなし","〇"," ") -> 〇
B144: =①借入条件表!L124 -> データなし | C144: =①借入条件表!AN124+①借入条件表!AR124 -> 0 | D144: 残高 | E144: =C143-E142 -> 0 | F144: =E144-F142 -> 0 | G144: =F144-G142 -> 0 | H144: =G144-H142 -> 0 | I144: =H144-I142 -> 0 | J144: =I144-J142 -> 0 | K144: =J144-K142 -> 0 | L144: =K144-L142 -> 0 | M144: =L144-M142 -> 0 | N144: =M144-N142 -> 0 | O144: =N144-O142 -> 0 | P144: =O144-P142 -> 0 | Q144: =P144 -> 0 | R144: =IF(P144>Q142,P144-Q142,0) -> 0 | T144: =IF(B144="データなし","〇"," ") -> 〇
B145: 小計 | C145: =C133+C136+C139+C142 -> 0 | D145: 元金返済 | E145: =E133+E136+E139+E142 -> 0 | F145: =F133+F136+F139+F142 -> 0 | G145: 0 | H145: 0 | I145: 0 | J145: 0 | K145: 0 | L145: 0 | M145: 0 | N145: 0 | O145: 0 | P145: 0 | Q145: =SUM(E145:P145) -> 0 | R145: =+Q145 -> 0 | T145: =IF(C146>0,"","〇 ") -> 〇
C146: =C134+C137+C140+C143 -> 0 | D146: 利息 | E146: =E134+E137+E140+E143 -> 0 | F146: 0 | G146: 0 | H146: 0 | I146: 0 | J146: 0 | K146: 0 | L146: 0 | M146: 0 | N146: 0 | O146: 0 | P146: 0 | Q146: =SUM(E146:P146) -> 0 | R146: =Q146 -> 0 | T146: =IF(C146>0,"","〇 ") -> 〇
D147: 残高 | E147: 0 | F147: 0 | G147: 0 | H147: 0 | I147: 0 | J147: 0 | K147: 0 | L147: 0 | M147: 0 | N147: 0 | O147: 0 | P147: 0 | Q147: =P147 -> 0 | R147: =Q147-R145 -> 0 | T147: =IF(C146>0,"","〇 ") -> 〇
A148: 総借入金 | C148: =C22+C40+C58+C76+C94+C112+C130+C145 -> 40000000 | D148: 元金返済 | E148: =E22+E40+E58+E76+E94+E112+E130+E145 -> 667000 | F148: =F22+F40+F58+F76+F94+F112+F130+F145 -> 667000 | G148: 667000 | H148: 667000 | I148: 667000 | J148: 667000 | K148: 667000 | L148: 667000 | M148: 667000 | N148: 667000 | O148: 667000 | P148: 667000 | Q148: =SUM(E148:P148) -> 8004000 | R148: =R22+R40+R58+R76+R94+R112+R130+R145 -> 8004000
A149: 残高合計 | C149: =C23+C41+C59+C77+C95+C113+C131+C146 -> 23000000 | D149: 利息 | E149: 25000 | F149: =F23+F41+F59+F77+F95+F113+F131+F146 -> 24291.25 | G149: 23582.5 | H149: 22873.75 | I149: 22165 | J149: 21456.25 | K149: 20747.5 | L149: 20038.75 | M149: 19330 | N149: 18621.25 | O149: 17912.5 | P149: 17203.75 | Q149: =SUM(E149:P149) -> 253222.5 | R149: =R23+R41+R59+R77+R95+R113+R131+R146 -> 253222.5 | T149: =IF(C148>0,"","〇 ") -> 
A150: 平均金利 | D150: 残高 | E150: 22333000 | F150: 21666000 | G150: 20999000 | H150: 20332000 | I150: 19665000 | J150: 18998000 | K150: 18331000 | L150: 17664000 | M150: 16997000 | N150: 16330000 | O150: 15663000 | P150: 14996000 | Q150: =P150 -> 14996000 | R150: =Q150-R148 -> 6992000
A152: 保全状況別残高推移 | C152: プロパー | E152: =SUMIF($B$7:$B$132,"プロパー",E$7:E$132) -> 7833000 | F152: =SUMIF($B$7:$B$132,"プロパー",F$7:F$132) -> 7666000 | G152: =SUMIF($B$7:$B$132,"プロパー",G$7:G$132) -> 7499000 | H152: 7332000 | I152: 7165000 | J152: 6998000 | K152: 6831000 | L152: 6664000 | M152: 6497000 | N152: 6330000 | O152: 6163000 | P152: 5996000 | Q152: 5996000 | R152: 3992000
C153: 保証協会 | E153: =SUMIF($B$7:$B$147,"協会",E$7:E$147) -> 14500000 | F153: =SUMIF($B$7:$B$147,"協会",F$7:F$147) -> 14000000 | G153: 13500000 | H153: 13000000 | I153: 12500000 | J153: 12000000 | K153: 11500000 | L153: 11000000 | M153: 10500000 | N153: 10000000 | O153: 9500000 | P153: 9000000 | Q153: =SUMIF($B$7:$B$147,"協会",Q$7:Q$147) -> 9000000 | R153: 3000000
C154: 日本政策金融公庫 | E154: =SUMIF($B$133:$B$147,"プロパー",E$133:E$147) -> 0 | F154: =SUMIF($B$133:$B$147,"プロパー",F$133:F$147) -> 0 | G154: 0 | H154: 0 | I154: 0 | J154: 0 | K154: 0 | L154: 0 | M154: 0 | N154: 0 | O154: 0 | P154: 0 | Q154: 0 | R154: =SUMIF($B$133:$B$147,"プロパー",R$133:R$147) -> 0
A156: 金融機関別保全率 | C156: =A7 -> Ａ銀行 | E156: =E24/E$150 -> 1 | F156: 1 | G156: 1 | H156: 1 | I156: 1 | J156: 1 | K156: 1 | L156: 1 | M156: 1 | N156: 1 | O156: 1 | P156: 1 | Q156: 1 | R156: 1 | T156: =IF(C156=0,"〇"," ") -> 
C157: =A25 -> Ｂ銀行 | E157: =E42/E$150 -> 0 | F157: 0 | G157: 0 | H157: 0 | I157: 0 | J157: 0 | K157: 0 | L157: 0 | M157: 0 | N157: 0 | O157: 0 | P157: 0 | Q157: 0 | R157: 0
C158: =A43 -> 0 | E158: =E60/E$150 -> 0 | F158: =F60/F$150 -> 0 | G158: 0 | H158: 0 | I158: 0 | J158: 0 | K158: 0 | L158: 0 | M158: 0 | N158: 0 | O158: 0 | P158: 0 | Q158: =Q60/Q$150 -> 0 | R158: 0 | T158: 〇
C159: =A61 -> 0 | E159: =E78/E$150 -> 0 | F159: =F78/F$150 -> 0 | G159: 0 | H159: 0 | I159: 0 | J159: 0 | K159: 0 | L159: 0 | M159: 0 | N159: 0 | O159: 0 | P159: 0 | Q159: =Q78/Q$150 -> 0 | R159: 0 | T159: 〇
C160: =A79 -> 0 | E160: =E96/E$150 -> 0 | F160: =F96/F$150 -> 0 | G160: 0 | H160: 0 | I160: 0 | J160: 0 | K160: 0 | L160: 0 | M160: 0 | N160: 0 | O160: 0 | P160: 0 | Q160: =Q96/Q$150 -> 0 | R160: 0 | T160: 〇
C161: =A97 -> 0 | E161: =E114/E$150 -> 0 | F161: =F114/F$150 -> 0 | G161: 0 | H161: 0 | I161: 0 | J161: 0 | K161: 0 | L161: 0 | M161: 0 | N161: 0 | O161: 0 | P161: 0 | Q161: =Q114/Q$150 -> 0 | R161: 0 | T161: 〇
C162: =A115 -> 0 | E162: =E132/E$150 -> 0 | F162: =F132/F$150 -> 0 | G162: 0 | H162: 0 | I162: 0 | J162: 0 | K162: 0 | L162: 0 | M162: 0 | N162: 0 | O162: 0 | P162: 0 | Q162: =Q132/Q$150 -> 0 | R162: 0 | T162: =IF(C162=0,"〇"," ") -> 〇
C163: =A133 -> 日本政策金融公庫 | E163: =E147/E$150 -> 0 | F163: =F147/F$150 -> 0 | G163: 0 | H163: 0 | I163: 0 | J163: 0 | K163: 0 | L163: 0 | M163: 0 | N163: 0 | O163: 0 | P163: 0 | Q163: =Q147/Q$150 -> 0 | R163: 0 | T163: =IF(C163=0,"〇"," ") -> 

Sheet ③長期取引推移表_合計
A1: 株式会社 ○○○○ 銀行別長期借入計画表 (合計分)
A3: <合計> | CA3: (単位：円)
A4: 金融機関 | E4: 保全状況 | I4: 借入期間 | N4: 年数 | P4: 資金 使途 | S4: 当初借入額 | W4: 前期 | AD4: =①借入条件表!$W$5 -> 令和 | AE4: =$AL$4-1 -> 3 | AF4: =①借入条件表!$Y$5 -> 年 | AG4: =$AN$4 -> 5 | AH4: =①借入条件表!$AA$5 -> 月末 | AK4: =①借入条件表!$W$5 -> 令和 | AL4: =①借入条件表!$X$5 -> 4 | AM4: =①借入条件表!$Y$5 -> 年 | AN4: =①借入条件表!$Z$5 -> 5 | AO4: =①借入条件表!$AA$5 -> 月末 | AR4: =①借入条件表!$W$5 -> 令和 | AS4: =$AL$4+1 -> 5 | AT4: =①借入条件表!$Y$5 -> 年 | AU4: =$AN$4 -> 5 | AV4: =①借入条件表!$AA$5 -> 月末 | AY4: =①借入条件表!$W$5 -> 令和 | AZ4: =$AS$4+1 -> 6 | BA4: =①借入条件表!$Y$5 -> 年 | BB4: =$AN$4 -> 5 | BC4: =①借入条件表!$AA$5 -> 月末 | BF4: =①借入条件表!$W$5 -> 令和 | BG4: =$AZ$4+1 -> 7 | BH4: =①借入条件表!$Y$5 -> 年 | BI4: =$AN$4 -> 5 | BJ4: =①借入条件表!$AA$5 -> 月末 | BM4: =①借入条件表!$W$5 -> 令和 | BN4: =$BG$4+1 -> 8 | BO4: =①借入条件表!$Y$5 -> 年 | BP4: =$AN$4 -> 5 | BQ4: =①借入条件表!$AA$5 -> 月末 | BT4: =①借入条件表!$W$5 -> 令和 | BU4: =$BN$4+1 -> 9 | BV4: =①借入条件表!$Y$5 -> 年 | BW4: =$AN$4 -> 5 | BX4: =①借入条件表!$AA$5 -> 月末 | CA4: =①借入条件表!$W$5 -> 令和 | CB4: =$BU$4+1 -> 10 | CC4: =①借入条件表!$Y$5 -> 年 | CD4: =$AN$4 -> 5 | CE4: =①借入条件表!$AA$5 -> 月末
W5: H22.10 | AA5: 比率 | AD5: 残高 | AH5: 比率 | AK5: 残高 | AO5: 比率 | AR5: 残高 | AV5: 比率 | AY5: 残高 | BC5: 比率 | BF5: 残高 | BJ5: 比率 | BM5: 残高 | BQ5: 比率 | BT5: 残高 | BX5: 比率 | CA5: 残高 | CE5: 比率
A6: =①借入条件表!$E$6 -> Ａ銀行 | E6: =①借入条件表!L6 -> プロパー | I6: =①借入条件表!Q6 -> 60 | N6: =①借入条件表!Q7 -> 5 | P6: =①借入条件表!AV6 -> 0 | S6: =①借入条件表!W6 -> 10000000 | W6: 0 | AA6: =W6/$W$53 ->  | AD6: =IF((AK6+AK6-AR6)>S6,0,AK6+AK6-AR6) -> 0 | AH6: =IF(AD6=0,"0",AD6/$AD$53) -> 0 | AK6: =①借入条件表!W7 -> 8000000 | AO6: =IF(AK6=0,"0",AK6/$AK$53) -> 0.347826087 | AR6: =②銀行別取引推移表!Q9 -> 5996000 | AV6: =IF(AR6=0,"0",AR6/$AR$53) -> 0.3998399573 | AY6: =②銀行別取引推移表!R9 -> 3992000 | BC6: =IF(AY6=0,"0",AY6/$AY$53) -> 0.5709382151 | BF6: =IF(AY6-(AR6-AY6)>0,AY6-(AR6-AY6),0) -> 1988000 | BJ6: =IF(BF6=0,"0",BF6/$BF$53) -> 1 | BM6: =IF(BF6-(AY6-BF6)>0,BF6-(AY6-BF6),0) -> 0 | BQ6: =IF(BM6=0,"0",BM6/$BM$53) -> 0 | BT6: =IF(BM6-(BF6-BM6)>0,BM6-(BF6-BM6),0) -> 0 | BX6: =IF(BT6=0,"0",BT6/$BT$53) -> 0 | CA6: =IF(BT6-(BM6-BT6)>0,BT6-(BM6-BT6),0) -> 0 | CE6: =IF(CA6=0,"0",CA6/$CA$53) -> 0 | CI6: =IF(E6="データなし","〇","") -> 
E7: =①借入条件表!L8 -> 協会 | I7: =①借入条件表!Q8 -> 60 | N7: =①借入条件表!Q9 -> 5 | P7: =①借入条件表!AV8 -> 0 | S7: =①借入条件表!W8 -> 30000000 | W7: 0 | AD7: =IF((AK7+AK7-AR7)>S7,0,AK7+AK7-AR7) -> 21000000 | AH7: =IF(AD7=0,"0",AD7/$AD$53) -> 1 | AK7: =①借入条件表!W9 -> 15000000 | AO7: =IF(AK7=0,"0",AK7/$AK$53) -> 0.652173913 | AR7: =②銀行別取引推移表!Q12 -> 9000000 | AV7: =IF(AR7=0,"0",AR7/$AR$53) -> 0.6001600427 | AY7: =②銀行別取引推移表!R12 -> 3000000 | BC7: =IF(AY7=0,"0",AY7/$AY$53) -> 0.4290617849 | BF7: =IF(AY7-(AR7-AY7)>0,AY7-(AR7-AY7),0) -> 0 | BJ7: =IF(BF7=0,"0",BF7/$BF$53) -> 0 | BM7: =IF(BF7-(AY7-BF7)>0,BF7-(AY7-BF7),0) -> 0 | BQ7: =IF(BM7=0,"0",BM7/$BM$53) -> 0 | BT7: =IF(BM7-(BF7-BM7)>0,BM7-(BF7-BM7),0) -> 0 | BX7: =IF(BT7=0,"0",BT7/$BT$53) -> 0 | CA7: =IF(BT7-(BM7-BT7)>0,BT7-(BM7-BT7),0) -> 0 | CE7: =IF(CA7=0,"0",CA7/$CA$53) -> 0 | CI7: =IF(E7="データなし","〇","") -> 
E8: =①借入条件表!L10 -> データなし | I8: =①借入条件表!Q10 -> 0 | N8: =①借入条件表!Q11 -> 0 | P8: =①借入条件表!AV10 -> 0 | S8: =①借入条件表!W10 -> 0 | W8: 0 | AD8: =IF((AK8+AK8-AR8)>S8,0,AK8+AK8-AR8) -> 0 | AH8: 0 | AK8: =①借入条件表!W11 -> 0 | AO8: 0 | AR8: =②銀行別取引推移表!Q15 -> 0 | AV8: 0 | AY8: =②銀行別取引推移表!R15 -> 0 | BC8: 0 | BF8: 0 | BJ8: 0 | BM8: 0 | BQ8: 0 | BT8: 0 | BX8: 0 | CA8: 0 | CE8: 0 | CI8: 〇
E9: =①借入条件表!L12 -> データなし | I9: =①借入条件表!Q12 -> 0 | N9: =①借入条件表!Q13 -> 0 | P9: =①借入条件表!AV12 -> 0 | S9: =①借入条件表!W12 -> 0 | W9: 0 | AD9: =IF((AK9+AK9-AR9)>S9,0,AK9+AK9-AR9) -> 0 | AH9: 0 | AK9: =①借入条件表!W13 -> 0 | AO9: 0 | AR9: =②銀行別取引推移表!Q18 -> 0 | AV9: 0 | AY9: =②銀行別取引推移表!R18 -> 0 | BC9: 0 | BF9: 0 | BJ9: 0 | BM9: 0 | BQ9: 0 | BT9: 0 | BX9: 0 | CA9: 0 | CE9: 0 | CI9: 〇
E10: =①借入条件表!L14 -> データなし | I10: =①借入条件表!Q14 -> 0 | N10: =①借入条件表!Q15 -> 0 | P10: =①借入条件表!AV14 -> 0 | S10: =①借入条件表!W14 -> 0 | W10: 0 | AD10: 0 | AH10: 0 | AK10: =①借入条件表!W15 -> 0 | AO10: 0 | AR10: =②銀行別取引推移表!Q21 -> 0 | AV10: 0 | AY10: =②銀行別取引推移表!R21 -> 0 | BC10: 0 | BF10: 0 | BJ10: 0 | BM10: 0 | BQ10: 0 | BT10: 0 | BX10: 0 | CA10: 0 | CE10: 0 | CI10: 〇
E11: 小計 | S11: =SUBTOTAL(9,S6:V10) -> 40000000 | W11: =SUM(W6:Z10) -> 0 | AD11: =SUBTOTAL(9,AD6:AG10) -> 21000000 | AH11: =IF(AD11=0,"0",AD11/$AD$53) -> 1 | AK11: =SUBTOTAL(9,AK6:AN10) -> 23000000 | AO11: 1 | AR11: =SUBTOTAL(9,AR6:AU10) -> 14996000 | AV11: 1 | AY11: =SUBTOTAL(9,AY6:BB10) -> 6992000 | BC11: 1 | BF11: =SUBTOTAL(9,BF6:BI10) -> 1988000 | BJ11: 1 | BM11: =SUBTOTAL(9,BM6:BP10) -> 0 | BQ11: 0 | BT11: =SUBTOTAL(9,BT6:BW10) -> 0 | BX11: 0 | CA11: =SUBTOTAL(9,CA6:CD10) -> 0 | CE11: 0 | CI11: =IF(S11>0,"","〇") ->  | CJ11: =S11 -> 40000000 | CK11: =AD11 -> 21000000 | CL11: =AK11 -> 23000000 | CM11: =AR11 -> 14996000 | CN11: =AY11 -> 6992000 | CO11: =BF11 -> 1988000 | CP11: =BM11 -> 0 | CQ11: =BT11 -> 0 | CR11: =CA11 -> 0
A12: =①借入条件表!$E$22 -> Ｂ銀行 | E12: =①借入条件表!L22 -> データなし | I12: =①借入条件表!Q22 -> 0 | N12: =①借入条件表!Q23 -> 0 | P12: =①借入条件表!AV22 -> 0 | S12: =①借入条件表!W22 -> 0 | W12: 0 | AD12: =IF((AK12+AK12-AR12)>S12,0,AK12+AK12-AR12) -> 0 | AH12: =IF(AD12=0,"0",AD12/$AD$53) -> 0 | AK12: =①借入条件表!W23 -> 0 | AO12: 0 | AR12: =②銀行別取引推移表!Q27 -> 0 | AV12: 0 | AY12: =②銀行別取引推移表!R27 -> 0 | BC12: 0 | BF12: =IF(AY12-(AR12-AY12)>0,AY12-(AR12-AY12),0) -> 0 | BJ12: 0 | BM12: =IF(BF12-(AY12-BF12)>0,BF12-(AY12-BF12),0) -> 0 | BQ12: 0 | BT12: =IF(BM12-(BF12-BM12)>0,BM12-(BF12-BM12),0) -> 0 | BX12: 0 | CA12: =IF(BT12-(BM12-BT12)>0,BT12-(BM12-BT12),0) -> 0 | CE12: 0 | CI12: =IF(E12="データなし","〇","") -> 〇
E13: =①借入条件表!L24 -> データなし | I13: =①借入条件表!Q24 -> 0 | N13: =①借入条件表!Q25 -> 0 | P13: =①借入条件表!AV24 -> 0 | S13: =①借入条件表!W24 -> 0 | W13: 0 | AD13: 0 | AH13: 0 | AK13: =①借入条件表!W25 -> 0 | AO13: 0 | AR13: =②銀行別取引推移表!Q30 -> 0 | AV13: 0 | AY13: =②銀行別取引推移表!R30 -> 0 | BC13: 0 | BF13: =IF(AY13-(AR13-AY13)>0,AY13-(AR13-AY13),0) -> 0 | BJ13: 0 | BM13: =IF(BF13-(AY13-BF13)>0,BF13-(AY13-BF13),0) -> 0 | BQ13: 0 | BT13: =IF(BM13-(BF13-BM13)>0,BM13-(BF13-BM13),0) -> 0 | BX13: 0 | CA13: =IF(BT13-(BM13-BT13)>0,BT13-(BM13-BT13),0) -> 0 | CE13: 0 | CI13: =IF(E13="データなし","〇","") -> 〇
E14: =①借入条件表!L26 -> データなし | I14: =①借入条件表!Q26 -> 0 | N14: =①借入条件表!Q27 -> 0 | P14: =①借入条件表!AV26 -> 0 | S14: =①借入条件表!W26 -> 0 | W14: 0 | AD14: =IF((AK14+AK14-AR14)>S14,0,AK14+AK14-AR14) -> 0 | AH14: 0 | AK14: =①借入条件表!W27 -> 0 | AO14: 0 | AR14: =②銀行別取引推移表!Q33 -> 0 | AV14: 0 | AY14: =②銀行別取引推移表!R33 -> 0 | BC14: 0 | BF14: 0 | BJ14: 0 | BM14: 0 | BQ14: 0 | BT14: 0 | BX14: 0 | CA14: 0 | CE14: 0 | CI14: 〇
E15: =①借入条件表!L28 -> データなし | I15: =①借入条件表!Q28 -> 0 | N15: =①借入条件表!Q29 -> 0 | P15: =①借入条件表!AV28 -> 0 | S15: =①借入条件表!W28 -> 0 | W15: 0 | AD15: =IF((AK15+AK15-AR15)>S15,0,AK15+AK15-AR15) -> 0 | AH15: 0 | AK15: =①借入条件表!W29 -> 0 | AO15: 0 | AR15: =②銀行別取引推移表!Q36 -> 0 | AV15: 0 | AY15: =②銀行別取引推移表!R36 -> 0 | BC15: 0 | BF15: 0 | BJ15: 0 | BM15: 0 | BQ15: 0 | BT15: 0 | BX15: 0 | CA15: 0 | CE15: 0 | CI15: 〇
E16: =①借入条件表!L30 -> データなし | I16: =①借入条件表!Q30 -> 0 | N16: =①借入条件表!Q31 -> 0 | P16: =①借入条件表!AV30 -> 0 | S16: =①借入条件表!W30 -> 0 | W16: 0 | AD16: 0 | AH16: 0 | AK16: =①借入条件表!W31 -> 0 | AO16: 0 | AR16: =②銀行別取引推移表!Q39 -> 0 | AV16: 0 | AY16: =②銀行別取引推移表!R39 -> 0 | BC16: 0 | BF16: 0 | BJ16: 0 | BM16: 0 | BQ16: 0 | BT16: 0 | BX16: 0 | CA16: 0 | CE16: 0 | CI16: 〇
E17: 小計 | S17: =SUBTOTAL(9,S12:V16) -> 0 | W17: =SUM(W12:Z16) -> 0 | AD17: =SUBTOTAL(9,AD12:AG16) -> 0 | AH17: 0 | AK17: =SUBTOTAL(9,AK12:AN16) -> 0 | AO17: 0 | AR17: =SUBTOTAL(9,AR12:AU16) -> 0 | AV17: 0 | AY17: =SUBTOTAL(9,AY12:BB16) -> 0 | BC17: 0 | BF17: =SUBTOTAL(9,BF12:BI16) -> 0 | BJ17: 0 | BM17: =SUBTOTAL(9,BM12:BP16) -> 0 | BQ17: 0 | BT17: =SUBTOTAL(9,BT12:BW16) -> 0 | BX17: 0 | CA17: =SUBTOTAL(9,CA12:CD16) -> 0 | CE17: 0 | CI17: =IF(S17>0,"","〇") -> 〇 | CJ17: =S17 -> 0 | CK17: =AD17 -> 0 | CL17: =AK17 -> 0 | CM17: =AR17 -> 0 | CN17: =AY17 -> 0 | CO17: =BF17 -> 0 | CP17: =BM17 -> 0 | CQ17: =BT17 -> 0 | CR17: =CA17 -> 0
A18: =①借入条件表!$E$38 -> 0 | E18: =①借入条件表!L38 -> データなし | I18: =①借入条件表!Q38 -> 0 | N18: =①借入条件表!Q39 -> 0 | P18: =①借入条件表!AV38 -> 0 | S18: =①借入条件表!W38 -> 0 | W18: 0 | AD18: =IF((AK18+AK18-AR18)>S18,0,AK18+AK18-AR18) -> 0 | AH18: 0 | AK18: =①借入条件表!W39 -> 0 | AO18: 0 | AR18: =②銀行別取引推移表!Q45 -> 0 | AV18: 0 | AY18: =②銀行別取引推移表!R45 -> 0 | BC18: 0 | BF18: =IF(AY18-(AR18-AY18)>0,AY18-(AR18-AY18),0) -> 0 | BJ18: 0 | BM18: =IF(BF18-(AY18-BF18)>0,BF18-(AY18-BF18),0) -> 0 | BQ18: 0 | BT18: =IF(BM18-(BF18-BM18)>0,BM18-(BF18-BM18),0) -> 0 | BX18: 0 | CA18: =IF(BT18-(BM18-BT18)>0,BT18-(BM18-BT18),0) -> 0 | CE18: 0 | CI18: =IF(E18="データなし","〇","") -> 〇
E19: =①借入条件表!L40 -> データなし | I19: =①借入条件表!Q40 -> 0 | N19: =①借入条件表!Q41 -> 0 | P19: =①借入条件表!AV40 -> 0 | S19: =①借入条件表!W40 -> 0 | W19: 0 | AD19: 0 | AH19: 0 | AK19: =①借入条件表!W41 -> 0 | AO19: 0 | AR19: =②銀行別取引推移表!Q48 -> 0 | AV19: 0 | AY19: =②銀行別取引推移表!R48 -> 0 | BC19: 0 | BF19: =IF(AY19-(AR19-AY19)>0,AY19-(AR19-AY19),0) -> 0 | BJ19: 0 | BM19: =IF(BF19-(AY19-BF19)>0,BF19-(AY19-BF19),0) -> 0 | BQ19: 0 | BT19: =IF(BM19-(BF19-BM19)>0,BM19-(BF19-BM19),0) -> 0 | BX19: 0 | CA19: =IF(BT19-(BM19-BT19)>0,BT19-(BM19-BT19),0) -> 0 | CE19: 0 | CI19: =IF(E19="データなし","〇","") -> 〇
E20: =①借入条件表!L42 -> データなし | I20: =①借入条件表!Q42 -> 0 | N20: =①借入条件表!Q43 -> 0 | P20: =①借入条件表!AV42 -> 0 | S20: =①借入条件表!W42 -> 0 | W20: 0 | AD20: =IF((AK20+AK20-AR20)>S20,0,AK20+AK20-AR20) -> 0 | AH20: 0 | AK20: =①借入条件表!W43 -> 0 | AO20: 0 | AR20: =②銀行別取引推移表!Q51 -> 0 | AV20: 0 | AY20: =②銀行別取引推移表!R51 -> 0 | BC20: 0 | BF20: 0 | BJ20: 0 | BM20: 0 | BQ20: 0 | BT20: 0 | BX20: 0 | CA20: 0 | CE20: 0 | CI20: 〇
E21: =①借入条件表!L44 -> データなし | I21: =①借入条件表!Q44 -> 0 | N21: =①借入条件表!Q45 -> 0 | P21: =①借入条件表!AV44 -> 0 | S21: =①借入条件表!W44 -> 0 | W21: 0 | AD21: =IF((AK21+AK21-AR21)>S21,0,AK21+AK21-AR21) -> 0 | AH21: 0 | AK21: =①借入条件表!W45 -> 0 | AO21: 0 | AR21: =②銀行別取引推移表!Q54 -> 0 | AV21: 0 | AY21: =②銀行別取引推移表!R54 -> 0 | BC21: 0 | BF21: 0 | BJ21: 0 | BM21: 0 | BQ21: 0 | BT21: 0 | BX21: 0 | CA21: 0 | CE21: 0 | CI21: 〇
E22: =①借入条件表!L46 -> データなし | I22: =①借入条件表!Q46 -> 0 | N22: =①借入条件表!Q47 -> 0 | P22: =①借入条件表!AV46 -> 0 | S22: =①借入条件表!W46 -> 0 | W22: 0 | AD22: 0 | AH22: 0 | AK22: =①借入条件表!W47 -> 0 | AO22: 0 | AR22: =②銀行別取引推移表!Q57 -> 0 | AV22: 0 | AY22: =②銀行別取引推移表!R57 -> 0 | BC22: 0 | BF22: 0 | BJ22: 0 | BM22: 0 | BQ22: 0 | BT22: 0 | BX22: 0 | CA22: 0 | CE22: 0 | CI22: 〇
E23: 小計 | S23: =SUBTOTAL(9,S18:V22) -> 0 | W23: =SUM(W18:Z22) -> 0 | AD23: =SUBTOTAL(9,AD18:AG22) -> 0 | AH23: 0 | AK23: =SUBTOTAL(9,AK18:AN22) -> 0 | AO23: 0 | AR23: =SUBTOTAL(9,AR18:AU22) -> 0 | AV23: 0 | AY23: =SUBTOTAL(9,AY18:BB22) -> 0 | BC23: 0 | BF23: =SUBTOTAL(9,BF18:BI22) -> 0 | BJ23: 0 | BM23: =SUBTOTAL(9,BM18:BP22) -> 0 | BQ23: 0 | BT23: =SUBTOTAL(9,BT18:BW22) -> 0 | BX23: 0 | CA23: =SUBTOTAL(9,CA18:CD22) -> 0 | CE23: 0 | CI23: =IF(S23>0,"","〇") -> 〇 | CJ23: =S23 -> 0 | CK23: =AD23 -> 0 | CL23: =AK23 -> 0 | CM23: =AR23 -> 0 | CN23: =AY23 -> 0 | CO23: =BF23 -> 0 | CP23: =BM23 -> 0 | CQ23: =BT23 -> 0 | CR23: =CA23 -> 0
A24: =①借入条件表!$E$54 -> 0 | E24: =①借入条件表!L54 -> データなし | I24: =①借入条件表!Q54 -> 0 | N24: =①借入条件表!Q55 -> 0 | P24: =①借入条件表!AV54 -> 0 | S24: =①借入条件表!W54 -> 0 | W24: 0 | AD24: =IF((AK24+AK24-AR24)>S24,0,AK24+AK24-AR24) -> 0 | AH24: 0 | AK24: =①借入条件表!W55 -> 0 | AO24: 0 | AR24: =②銀行別取引推移表!Q63 -> 0 | AV24: 0 | AY24: =②銀行別取引推移表!R63 -> 0 | BC24: 0 | BF24: =IF(AY24-(AR24-AY24)>0,AY24-(AR24-AY24),0) -> 0 | BJ24: 0 | BM24: =IF(BF24-(AY24-BF24)>0,BF24-(AY24-BF24),0) -> 0 | BQ24: 0 | BT24: =IF(BM24-(BF24-BM24)>0,BM24-(BF24-BM24),0) -> 0 | BX24: 0 | CA24: =IF(BT24-(BM24-BT24)>0,BT24-(BM24-BT24),0) -> 0 | CE24: 0 | CI24: =IF(E24="データなし","〇","") -> 〇
E25: =①借入条件表!L56 -> データなし | I25: =①借入条件表!Q56 -> 0 | N25: =①借入条件表!Q57 -> 0 | P25: =①借入条件表!AV56 -> 0 | S25: =①借入条件表!W56 -> 0 | W25: 0 | AD25: 0 | AH25: 0 | AK25: =①借入条件表!W57 -> 0 | AO25: 0 | AR25: =②銀行別取引推移表!Q66 -> 0 | AV25: 0 | AY25: =②銀行別取引推移表!R66 -> 0 | BC25: 0 | BF25: =IF(AY25-(AR25-AY25)>0,AY25-(AR25-AY25),0) -> 0 | BJ25: 0 | BM25: =IF(BF25-(AY25-BF25)>0,BF25-(AY25-BF25),0) -> 0 | BQ25: 0 | BT25: =IF(BM25-(BF25-BM25)>0,BM25-(BF25-BM25),0) -> 0 | BX25: 0 | CA25: =IF(BT25-(BM25-BT25)>0,BT25-(BM25-BT25),0) -> 0 | CE25: 0 | CI25: =IF(E25="データなし","〇","") -> 〇
E26: =①借入条件表!L58 -> データなし | I26: =①借入条件表!Q58 -> 0 | N26: =①借入条件表!Q59 -> 0 | P26: =①借入条件表!AV58 -> 0 | S26: =①借入条件表!W58 -> 0 | W26: 0 | AD26: =IF((AK26+AK26-AR26)>S26,0,AK26+AK26-AR26) -> 0 | AH26: 0 | AK26: =①借入条件表!W59 -> 0 | AO26: 0 | AR26: =②銀行別取引推移表!Q69 -> 0 | AV26: 0 | AY26: =②銀行別取引推移表!R69 -> 0 | BC26: 0 | BF26: 0 | BJ26: 0 | BM26: 0 | BQ26: 0 | BT26: 0 | BX26: 0 | CA26: 0 | CE26: 0 | CI26: 〇
E27: =①借入条件表!L60 -> データなし | I27: =①借入条件表!Q60 -> 0 | N27: =①借入条件表!Q61 -> 0 | P27: =①借入条件表!AV60 -> 0 | S27: =①借入条件表!W60 -> 0 | W27: 0 | AD27: =IF((AK27+AK27-AR27)>S27,0,AK27+AK27-AR27) -> 0 | AH27: 0 | AK27: =①借入条件表!W61 -> 0 | AO27: 0 | AR27: =②銀行別取引推移表!Q72 -> 0 | AV27: 0 | AY27: =②銀行別取引推移表!R72 -> 0 | BC27: 0 | BF27: 0 | BJ27: 0 | BM27: 0 | BQ27: 0 | BT27: 0 | BX27: 0 | CA27: 0 | CE27: 0 | CI27: 〇
E28: =①借入条件表!L62 -> データなし | I28: =①借入条件表!Q62 -> 0 | N28: =①借入条件表!Q63 -> 0 | P28: =①借入条件表!AV62 -> 0 | S28: =①借入条件表!W62 -> 0 | W28: 0 | AD28: 0 | AH28: 0 | AK28: =①借入条件表!W63 -> 0 | AO28: 0 | AR28: =②銀行別取引推移表!Q75 -> 0 | AV28: 0 | AY28: =②銀行別取引推移表!R75 -> 0 | BC28: 0 | BF28: 0 | BJ28: 0 | BM28: 0 | BQ28: 0 | BT28: 0 | BX28: 0 | CA28: 0 | CE28: 0 | CI28: 〇
E29: 小計 | S29: =SUBTOTAL(9,S24:V28) -> 0 | W29: =SUM(W24:Z28) -> 0 | AD29: =SUBTOTAL(9,AD24:AG28) -> 0 | AH29: 0 | AK29: =SUBTOTAL(9,AK24:AN28) -> 0 | AO29: 0 | AR29: =SUBTOTAL(9,AR24:AU28) -> 0 | AV29: 0 | AY29: =SUBTOTAL(9,AY24:BB28) -> 0 | BC29: 0 | BF29: =SUBTOTAL(9,BF24:BI28) -> 0 | BJ29: 0 | BM29: =SUBTOTAL(9,BM24:BP28) -> 0 | BQ29: 0 | BT29: =SUBTOTAL(9,BT24:BW28) -> 0 | BX29: 0 | CA29: =SUBTOTAL(9,CA24:CD28) -> 0 | CE29: 0 | CI29: =IF(S29>0,"","〇") -> 〇 | CJ29: =S29 -> 0 | CK29: =AD29 -> 0 | CL29: =AK29 -> 0 | CM29: =AR29 -> 0 | CN29: =AY29 -> 0 | CO29: =BF29 -> 0 | CP29: =BM29 -> 0 | CQ29: =BT29 -> 0 | CR29: =CA29 -> 0
A30: =①借入条件表!$E$70 -> 0 | E30: =①借入条件表!L70 -> データなし | I30: =①借入条件表!Q70 -> 0 | N30: =①借入条件表!Q71 -> 0 | P30: =①借入条件表!AV70 -> 0 | S30: =①借入条件表!W70 -> 0 | W30: 0 | AD30: =IF((AK30+AK30-AR30)>S30,0,AK30+AK30-AR30) -> 0 | AH30: 0 | AK30: =①借入条件表!W71 -> 0 | AO30: 0 | AR30: =②銀行別取引推移表!Q81 -> 0 | AV30: 0 | AY30: =②銀行別取引推移表!R81 -> 0 | BC30: 0 | BF30: =IF(AY30-(AR30-AY30)>0,AY30-(AR30-AY30),0) -> 0 | BJ30: 0 | BM30: =IF(BF30-(AY30-BF30)>0,BF30-(AY30-BF30),0) -> 0 | BQ30: 0 | BT30: =IF(BM30-(BF30-BM30)>0,BM30-(BF30-BM30),0) -> 0 | BX30: 0 | CA30: =IF(BT30-(BM30-BT30)>0,BT30-(BM30-BT30),0) -> 0 | CE30: 0 | CI30: =IF(E30="データなし","〇","") -> 〇
E31: =①借入条件表!L72 -> データなし | I31: =①借入条件表!Q72 -> 0 | N31: =①借入条件表!Q73 -> 0 | P31: =①借入条件表!AV72 -> 0 | S31: =①借入条件表!W72 -> 0 | W31: 0 | AD31: 0 | AH31: 0 | AK31: =①借入条件表!W73 -> 0 | AO31: 0 | AR31: =②銀行別取引推移表!Q84 -> 0 | AV31: 0 | AY31: =②銀行別取引推移表!R84 -> 0 | BC31: 0 | BF31: =IF(AY31-(AR31-AY31)>0,AY31-(AR31-AY31),0) -> 0 | BJ31: 0 | BM31: =IF(BF31-(AY31-BF31)>0,BF31-(AY31-BF31),0) -> 0 | BQ31: 0 | BT31: =IF(BM31-(BF31-BM31)>0,BM31-(BF31-BM31),0) -> 0 | BX31: 0 | CA31: =IF(BT31-(BM31-BT31)>0,BT31-(BM31-BT31),0) -> 0 | CE31: 0 | CI31: =IF(E31="データなし","〇","") -> 〇
... 36 more rows
